Workbook

Sheet Table1A List of required stocks
A1: Table1A: List of required stocks
L2: WP years | M2: 2017-2019
L3: AR year | M3: 2017
A4: MS | B4: Reference years | C4: Species | D4: Region | E4: RFMO/RFO/IO | F4: Area / Stock | G4: Selected for sampling (Y/N) | H4: Average landings in the reference years (tons) | I4: EU TAC (if any) (%) | J4: Share (%) in EU landings | K4: Threshold (Y/N) | L4: Comments | M4: Changes in species landings
A5: SWE | B5: 2013-2015 | C5: All | D5: All | E5: All | F5: All | G5: NA | H5: NA | I5: NA | J5: NA | K5: NA | L5: In general, figures on landings are based on EUROSTAT, TACs are based on FIDES opening quota table and the areas are based on Table 1A in EU MAP. These data sources do not always corresponds to each other or to the stock definition. Deviations from this common approach are described in the comments below.
A6: SWE | B6: 2013-2015 | C6: Anguilla anguilla | D6: East Arctic, Norwegian sea and Barents sea | E6: ICES | F6: I, II | G6: N | H6: <200 | I6: None | J6: None | K6: NA
A7: SWE | B7: 2013-2015 | C7: Brosme brosme | D7: East Arctic, Norwegian sea and Barents sea | E7: ICES | F7: I, II | G7: N | H7: <200 | I7: None | J7: None | K7: Y
A8: SWE | B8: 2013-2015 | C8: Clupea harengus | D8: East Arctic, Norwegian sea and Barents sea | E8: ICES | F8: I, II | G8: N | H8: <200 | I8: 0.13 | J8: None | K8: Y
A9: SWE | B9: 2013-2015 | C9: Gadus morhua | D9: East Arctic, Norwegian sea and Barents sea | E9: ICES | F9: I, II | G9: N | H9: <200 | I9: None | J9: None | K9: Y
A10: SWE | B10: 2013-2015 | C10: Mallotus villosus | D10: East Arctic, Norwegian sea and Barents sea | E10: ICES | F10: I, II | G10: N | H10: <200 | I10: None | J10: None | K10: Y
A11: SWE | B11: 2013-2015 | C11: Melanogrammus aeglefinus | D11: East Arctic, Norwegian sea and Barents sea | E11: ICES | F11: I, II | G11: N | H11: <200 | I11: None | J11: None | K11: Y
A12: SWE | B12: 2013-2015 | C12: Micromesistius poutassou | D12: East Arctic, Norwegian sea and Barents sea | E12: ICES | F12: I, II | G12: N | H12: <200 | I12: 0.04 | J12: None | K12: Y
A13: SWE | B13: 2013-2015 | C13: Pandalus borealis | D13: East Arctic, Norwegian sea and Barents sea | E13: ICES | F13: I, II | G13: N | H13: <200 | I13: 0.03 | J13: None | K13: Y
A14: SWE | B14: 2013-2015 | C14: Pollachius virens | D14: East Arctic, Norwegian sea and Barents sea | E14: ICES | F14: I, II | G14: N | H14: <200 | I14: None | J14: None | K14: Y
A15: SWE | B15: 2013-2015 | C15: Reinhardtius hippoglossoides | D15: East Arctic, Norwegian sea and Barents sea | E15: ICES | F15: I, II | G15: N | H15: <200 | I15: None | J15: None | K15: Y
A16: SWE | B16: 2013-2015 | C16: Salmo salar | D16: East Arctic, Norwegian sea and Barents sea | E16: ICES | F16: I, II | G16: N | H16: <200 | I16: None | J16: None | K16: Y
A17: SWE | B17: 2013-2015 | C17: Scomber scombrus | D17: East Arctic, Norwegian sea and Barents sea | E17: ICES | F17: II | G17: N | H17: 1630 | I17: None | J17: 0.08 | K17: Y | L17: The mackerel stock is widely distributed and covers subareas I,II,III, IV, V, VI, VII and XIV and divisions VIIIa-e and IXa. Sweden is fishing on the northern component of the stock (area IIIa and IV). The Swedish share on the total stock is well below the threshold of 10 %. An agreement with UK to secure the overall sampling is setup.
A18: SWE | B18: 2013-2015 | C18: Sebastes marinus | D18: East Arctic, Norwegian sea and Barents sea | E18: ICES | F18: I, II | G18: N | H18: <200 | I18: None | J18: None | K18: Y
A19: SWE | B19: 2013-2015 | C19: Sebastes mentella | D19: East Arctic, Norwegian sea and Barents sea | E19: ICES | F19: I, II | G19: N | H19: <200 | I19: None | J19: None | K19: Y
A20: SWE | B20: 2013-2015 | C20: Trachurus trachurus | D20: East Arctic, Norwegian sea and Barents sea | E20: ICES | F20: IIa | G20: N | H20: <200 | I20: 0.01 | J20: None | K20: Y
A21: SWE | B21: 2013-2015 | C21: Ammodytidae | D21: Skagerrak and Kattegat | E21: ICES | F21: IIIa | G21: N | H21: <200 | I21: None | J21: None | K21: Y
A22: SWE | B22: 2013-2015 | C22: Anguilla anguilla | D22: Skagerrak and Kattegat | E22: ICES | F22: IIIa | G22: Y | H22: <200 | I22: None | J22: 0.05 | K22: NA | L22: Fishing is largely prohibited and sampling is carried out through a survey. | M22: 0
A23: SWE | B23: 2013-2015 | C23: Clupea harengus | D23: Skagerrak and Kattegat | E23: ICES | F23: IIIa | G23: Y | H23: 17080 | I23: 0.45 | J23: 0.72 | K23: N | M23: 2283
A24: SWE | B24: 2013-2015 | C24: Coryphaenoides rupestris | D24: Skagerrak and Kattegat | E24: ICES | F24: IIIa | G24: N | H24: <200 | I24: None | J24: None | K24: Y
A25: SWE | B25: 2013-2015 | C25: Eutrigla gurnardus | D25: Skagerrak and Kattegat | E25: ICES | F25: IIIa | G25: N | H25: <200 | I25: None | J25: 0.18 | K25: Y
A26: SWE | B26: 2013-2015 | C26: Aspitrigla cuculus | D26: Skagerrak and Kattegat | E26: ICES | F26: IIIa | G26: N | H26: <200 | I26: None | J26: None | K26: Y
A27: SWE | B27: 2013-2015 | C27: Gadus morhua | D27: Skagerrak and Kattegat | E27: ICES | F27: IIIaN | G27: Y | H27: 560 | I27: 0.14 | J27: 0.14 | K27: N | L27: Landings based on ICES WGBFAS allocation. | M27: 3
A28: SWE | B28: 2013-2015 | C28: Gadus morhua | D28: Skagerrak and Kattegat | E28: ICES | F28: IIIaS | G28: Y | H28: <200 | I28: 0.37 | J28: 0.33 | K28: N | L28: Landings based on ICES WGBFAS allocation. As the TAC´s (2013-2015) for the stock are low (100-300 tonnes), will appliance of the 200 tonnes threshold imply that the stock will not be sampled at all. As Sweden has 38% of the TAC we will continue to sample the stock. | M28: 51
A29: SWE | B29: 2013-2015 | C29: Glyptocephalus cynoglossus | D29: Skagerrak and Kattegat | E29: ICES | F29: IIIa | G29: Y | H29: 240 | I29: None | J29: 0.19 | K29: N | M29: -22
A30: SWE | B30: 2013-2015 | C30: Limanda limanda | D30: Skagerrak and Kattegat | E30: ICES | F30: IIIa | G30: N | H30: <200 | I30: None | J30: 0.02 | K30: Y
A31: SWE | B31: 2013-2015 | C31: Melanogrammus aeglefinus | D31: Skagerrak and Kattegat | E31: ICES | F31: IIIa | G31: N | H31: 210 | I31: 0.1 | J31: 0.12 | K31: Y
A32: SWE | B32: 2013-2015 | C32: Merlangius merlangus | D32: Skagerrak and Kattegat | E32: ICES | F32: IIIa | G32: N | H32: <200 | I32: 0.1 | J32: 0.2 | K32: Y
A33: SWE | B33: 2013-2015 | C33: Merluccius merluccius | D33: Skagerrak and Kattegat | E33: ICES | F33: IIIa | G33: N | H33: <200 | I33: 0.08 | J33: 0.11 | K33: Y
A34: SWE | B34: 2013-2015 | C34: Micromesistius poutassou | D34: Skagerrak and Kattegat | E34: ICES | F34: IIIa | G34: N | H34: <200 | I34: 0.04 | J34: 0.31 | K34: Y
A35: SWE | B35: 2015 | C35: Nephrops norvegicus | D35: Skagerrak and Kattegat | E35: ICES | F35: Functional unit 3-4 | G35: Y | H35: 1180 | I35: None | J35: 0.31 | K35: N | L35: Data on international landings was only available for 2015 as these figures origins from ICES Intercatch (landings by Functional Unit was not available in EUROSTAT. | M35: 250
A36: SWE | B36: 2013-2015 | C36: Pandalus borealis | D36: Skagerrak and Kattegat | E36: ICES | F36: IIIa | G36: Y | H36: 1195 | I36: 0.35 | J36: 0.35 | K36: N | M36: 217
A37: SWE | B37: 2013-2015 | C37: Pleuronectes platessa | D37: Skagerrak and Kattegat | E37: ICES | F37: IIIa | G37: N | H37: 295 | I37: 0.05 | J37: 0.03 | K37: Y | L37: For plaice we have followed the regions applied in table 1A in EU-MAP. In reality there are two plaice stocks in this region. SWE has limited TAC and landings in both and they are combined in one line to be consistence with table 1A in EU MAP.
A38: SWE | B38: 2013-2015 | C38: Pollachius virens | D38: Skagerrak and Kattegat | E38: ICES | F38: IIIa | G38: N | H38: 345 | I38: None | J38: 0.17 | K38: Y | L38: Saithe in IIIa appears above threshold for the sole reason that the area in column F do not match the stock/TAC. The TACs covers area IIIa and IV. The Swedish share of the overall TACs (EU zone and Norwegian zone) is less than 2 %.
A39: SWE | B39: 2013-2015 | C39: Salmo salar | D39: Skagerrak and Kattegat | E39: ICES | F39: IIIa | G39: N | H39: <200 | I39: None | J39: 1 | K39: NA
A40: SWE | B40: 2013-2015 | C40: Psetta maxima | D40: Skagerrak and Kattegat | E40: ICES | F40: IIIa | G40: N | H40: <200 | I40: None | J40: 0.11 | K40: Y
A41: SWE | B41: 2013-2015 | C41: Scomber scombrus | D41: Skagerrak and Kattegat | E41: ICES | F41: IIIa | G41: N | H41: 340 | I41: None | J41: 0.66 | K41: Y | L41: The mackerel stock is widely distributed and covers subareas I,II,III, IV, V, VI, VII and XIV and divisions VIIIa-e and IXa. Sweden is fishing on the northern component of the stock (area IIIa and IV). The Swedish share on the total stock is well below the threshold of 10 %. An agreement with UK to secure the overall sampling is setup.
A42: SWE | B42: 2013-2015 | C42: Scophthalmus rhombus | D42: Skagerrak and Kattegat | E42: ICES | F42: IIIa | G42: N | H42: <200 | I42: None | J42: 0.15 | K42: Y
A43: SWE | B43: 2013-2015 | C43: Solea solea | D43: Skagerrak and Kattegat | E43: ICES | F43: IIIa | G43: N | H43: <200 | I43: 0.03 | J43: 0.13 | K43: Y
A44: SWE | B44: 2013-2015 | C44: Sprattus sprattus | D44: Skagerrak and Kattegat | E44: ICES | F44: IIIa | G44: Y | H44: 1285 | I44: 0.27 | J44: 0.09 | K44: N | M44: -1082
A45: SWE | B45: 2013-2015 | C45: Trisopterus esmarkii | D45: Skagerrak and Kattegat | E45: ICES | F45: IIIa | G45: N | H45: <200 | I45: 0 | J45: None | K45: Y
A46: SWE | B46: 2013-2015 | C46: Anguilla anguilla | D46: Baltic Sea | E46: ICES | F46: 22-32 | G46: Y | H46: 210 | I46: None | J46: 0.38 | K46: N | M46: -69
A47: SWE | B47: 2013-2015 | C47: Clupea harengus | D47: Baltic Sea | E47: ICES | F47: 22-24 | G47: Y | H47: 1915 | I47: 0.18 | J47: 0.09 | K47: N | M47: 726
A48: SWE | B48: 2013-2015 | C48: Clupea harengus | D48: Baltic Sea | E48: ICES | F48: 25-29, 32 | G48: Y | H48: 38435 | I48: 0.33 | J48: 0.33 | K48: N | M48: 12741
A49: SWE | B49: 2013-2015 | C49: Clupea harengus | D49: Baltic Sea | E49: ICES | F49: 30 | G49: Y | H49: 12590 | I49: 0.18 | J49: 0.11 | K49: N | M49: -1916
A50: SWE | B50: 2013-2015 | C50: Clupea harengus | D50: Baltic Sea | E50: ICES | F50: 31 | G50: N | H50: <200 | I50: 0.18 | J50: 0.03 | K50: Y
A51: SWE | B51: 2013-2015 | C51: Clupea harengus | D51: Baltic Sea | E51: ICES | F51: Gulf of Riga | G51: N | H51: <200 | I51: None | J51: None | K51: Y
A52: SWE | B52: 2013-2015 | C52: Coregonus lavaretus | D52: Baltic Sea | E52: ICES | F52: IIId | G52: N | H52: <200 | I52: None | J52: None | K52: Y
A53: SWE | B53: 2013-2015 | C53: Coregonus albula | D53: Baltic Sea | E53: ICES | F53: 22-32 | G53: Y | H53: 1735 | I53: None | J53: 0.87 | K53: N | M53: -720
A54: SWE | B54: 2013-2015 | C54: Gadus morhua | D54: Baltic Sea | E54: ICES | F54: 22-24 | G54: Y | H54: 1965 | I54: 0.16 | J54: 0.15 | K54: N | M54: -1180
A55: SWE | B55: 2013-2015 | C55: Gadus morhua | D55: Baltic Sea | E55: ICES | F55: 25-32 | G55: Y | H55: 4685 | I55: 0.23 | J55: 0.16 | K55: N | M55: -279
A56: SWE | B56: 2013-2015 | C56: Limanda limanda | D56: Baltic Sea | E56: ICES | F56: 22-32 | G56: N | H56: <200 | I56: None | J56: None | K56: Y
A57: SWE | B57: 2013-2015 | C57: Perca fluviatilis | D57: Baltic Sea | E57: ICES | F57: IIId | G57: N | H57: <200 | I57: None | J57: 0.02 | K57: Y
A58: SWE | B58: 2013-2015 | C58: Platichthys flesus | D58: Baltic Sea | E58: ICES | F58: 22-32 | G58: Y | H58: 260 | I58: None | J58: 0.02 | K58: N | M58: -144
A59: SWE | B59: 2013-2015 | C59: Pleuronectes platessa | D59: Baltic Sea | E59: ICES | F59: 22-32 | G59: N | H59: <200 | I59: 0.05 | J59: 0.03 | K59: Y
A60: SWE | B60: 2013-2015 | C60: Psetta maxima | D60: Baltic Sea | E60: ICES | F60: 22-32 | G60: N | H60: <200 | I60: None | J60: 0.08 | K60: Y
A61: SWE | B61: 2013-2015 | C61: Salmo salar | D61: Baltic Sea | E61: ICES | F61: 22-31 | G61: Y | H61: <200 | I61: 0.28 | J61: 0.34 | K61: NA | L61: In 2017, SWE quota is 26 870 indivuals out of 95 928 EU .
A62: SWE | B62: 2013-2015 | C62: Salmo salar | D62: Baltic Sea | E62: ICES | F62: 32 | G62: N | H62: <200 | I62: None | J62: None | K62: NA
A63: SWE | B63: 2013-2015 | C63: Salmo trutta | D63: Baltic Sea | E63: ICES | F63: 22-32 | G63: N | H63: <200 | I63: None | J63: 0.04 | K63: NA
A64: SWE | B64: 2013-2015 | C64: Sander lucioperca | D64: Baltic Sea | E64: ICES | F64: IIId | G64: N | H64: <200 | I64: None | J64: 0.01 | K64: Y
A65: SWE | B65: 2013-2015 | C65: Scophthalmus rhombus | D65: Baltic Sea | E65: ICES | F65: 22-32 | G65: N | H65: <200 | I65: None | J65: 0.03 | K65: Y
A66: SWE | B66: 2013-2015 | C66: Solea solea | D66: Baltic Sea | E66: ICES | F66: 22 | G66: N | H66: <200 | I66: None | J66: None | K66: Y
A67: SWE | B67: 2013-2015 | C67: Sprattus sprattus | D67: Baltic Sea | E67: ICES | F67: 22-32 | G67: Y | H67: 36490 | I67: 0.19 | J67: 0.21 | K67: N | M67: 11824
A68: SWE | B68: 2013-2015 | C68: Ammodytidae | D68: North Sea and Eastern Channel | E68: ICES | F68: IV | G68: N | H68: 26355 | I68: None | J68: 0.13 | K68: Y
A69: SWE | B69: 2013-2015 | C69: Anarhichas spp. | D69: North Sea and Eastern Channel | E69: ICES | F69: IV | G69: N | H69: <200 | I69: None | J69: None | K69: Y
A70: SWE | B70: 2013-2015 | C70: Anguilla anguilla | D70: North Sea and Eastern Channel | E70: ICES | F70: IV, VIId | G70: N | H70: <200 | I70: None | J70: None | K70: NA
A71: SWE | B71: 2013-2015 | C71: Argentina spp. | D71: North Sea and Eastern Channel | E71: ICES | F71: IV | G71: N | H71: <200 | I71: 0.03 | J71: None | K71: Y
A72: SWE | B72: 2013-2015 | C72: Eutrigla gurnardus | D72: North Sea and Eastern Channel | E72: ICES | F72: IV | G72: N | H72: <200 | I72: None | J72: None | K72: Y
A73: SWE | B73: 2013-2015 | C73: Brosme brosme | D73: North Sea and Eastern Channel | E73: ICES | F73: IV | G73: N | H73: <200 | I73: 0.03 | J73: None | K73: Y
A74: SWE | B74: 2013-2015 | C74: Clupea harengus | D74: North Sea and Eastern Channel | E74: ICES | F74: IV, VIId | G74: N | H74: 15015 | I74: None | J74: 0.04 | K74: Y
A75: SWE | B75: 2013-2015 | C75: Crangon crangon | D75: North Sea and Eastern Channel | E75: ICES | F75: IV, VIId | G75: N | H75: <200 | I75: None | J75: None | K75: Y
A76: SWE | B76: 2013-2015 | C76: Dicentrarchus labrax | D76: North Sea and Eastern Channel | E76: ICES | F76: IV, VIId | G76: N | H76: <200 | I76: None | J76: None | K76: Y
A77: SWE | B77: 2013-2015 | C77: Gadus morhua | D77: North Sea and Eastern Channel | E77: ICES | F77: IV, VIId | G77: N | H77: 385 | I77: None | J77: 0.01 | K77: Y
A78: SWE | B78: 2013-2015 | C78: Glyptocephalus cynoglossus | D78: North Sea and Eastern Channel | E78: ICES | F78: IV | G78: N | H78: <200 | I78: None | J78: None | K78: Y
A79: SWE | B79: 2013-2015 | C79: Helicolenus dactylopterus | D79: North Sea and Eastern Channel | E79: ICES | F79: IV | G79: N | H79: <200 | I79: None | J79: None | K79: Y
A80: SWE | B80: 2013-2015 | C80: Lepidorhombus boscii | D80: North Sea and Eastern Channel | E80: ICES | F80: IV, VIId | G80: N | H80: <200 | I80: None | J80: None | K80: Y
A81: SWE | B81: 2013-2015 | C81: Lepidorhombus whiffiagonis | D81: North Sea and Eastern Channel | E81: ICES | F81: IV, VIId | G81: N | H81: <200 | I81: None | J81: None | K81: Y
A82: SWE | B82: 2013-2015 | C82: Limanda limanda | D82: North Sea and Eastern Channel | E82: ICES | F82: IV, VIId | G82: N | H82: <200 | I82: None | J82: None | K82: Y
A83: SWE | B83: 2013-2015 | C83: Lophius budegassa | D83: North Sea and Eastern Channel | E83: ICES | F83: IV, VIId | G83: N | H83: <200 | I83: None | J83: None | K83: Y
A84: SWE | B84: 2013-2015 | C84: Lophius piscatorius | D84: North Sea and Eastern Channel | E84: ICES | F84: IV | G84: N | H84: <200 | I84: None | J84: 0.01 | K84: Y
A85: SWE | B85: 2013-2015 | C85: Macrourus berglax | D85: North Sea and Eastern Channel | E85: ICES | F85: IV | G85: N | H85: <200 | I85: None | J85: None | K85: Y
A86: SWE | B86: 2013-2015 | C86: Melanogrammus aeglefinus | D86: North Sea and Eastern Channel | E86: ICES | F86: IV | G86: N | H86: <200 | I86: 0.01 | J86: None | K86: Y
A87: SWE | B87: 2013-2015 | C87: Merlangius merlangus | D87: North Sea and Eastern Channel | E87: ICES | F87: IV, VIId | G87: N | H87: <200 | I87: None | J87: None | K87: Y
A88: SWE | B88: 2013-2015 | C88: Merluccius merluccius | D88: North Sea and Eastern Channel | E88: ICES | F88: IV VII | G88: N | H88: <200 | I88: None | J88: None | K88: Y
A89: SWE | B89: 2013-2015 | C89: Micromesistius poutassou | D89: North Sea and Eastern Channel | E89: ICES | F89: IV, VIId | G89: N | H89: <200 | I89: 0.04 | J89: 0.05 | K89: Y
A90: SWE | B90: 2013-2015 | C90: Microstomus kitt | D90: North Sea and Eastern Channel | E90: ICES | F90: IV, VIId | G90: N | H90: <200 | I90: None | J90: None | K90: Y
A91: SWE | B91: 2013-2015 | C91: Molva dypterygia | D91: North Sea and Eastern Channel | E91: ICES | F91: IV | G91: N | H91: <200 | I91: None | J91: None | K91: Y
A92: SWE | B92: 2013-2015 | C92: Molva molva | D92: North Sea and Eastern Channel | E92: ICES | F92: IV | G92: N | H92: <200 | I92: None | J92: None | K92: Y
A93: SWE | B93: 2013-2015 | C93: Mullus barbatus | D93: North Sea and Eastern Channel | E93: ICES | F93: IV, VIId | G93: N | H93: <200 | I93: None | J93: None | K93: Y
A94: SWE | B94: 2013-2015 | C94: Mullus surmuletus | D94: North Sea and Eastern Channel | E94: ICES | F94: IV, VIId | G94: N | H94: <200 | I94: None | J94: None | K94: Y
A95: SWE | B95: 2015 | C95: Nephrops norvegicus | D95: North Sea and Eastern Channel | E95: ICES | F95: functional unit 7 | G95: N | H95: <200 | I95: None | J95: None | K95: Y | L95: Data on international landings was only available for 2015 as these figures origins from ICES Intercatch (landings by Functional Unit was not available in EUROSTAT.
A96: SWE | B96: 2015 | C96: Nephrops norvegicus | D96: North Sea and Eastern Channel | E96: ICES | F96: functional unit 10 | G96: N | H96: <200 | I96: None | J96: None | K96: Y | L96: Data on international landings was only available for 2015 as these figures origins from ICES Intercatch (landings by Functional Unit was not available in EUROSTAT.
A97: SWE | B97: 2013-2015 | C97: Nephrops norvegicus | D97: North Sea and Eastern Channel | E97: ICES | F97: functional units 32 (TAC IIa, IV) | G97: N | H97: <200 | I97: None | J97: None | K97: Y
A98: SWE | B98: 2015 | C98: Nephrops norvegicus | D98: North Sea and Eastern Channel | E98: ICES | F98: functional unit 6 | G98: N | H98: <200 | I98: None | J98: None | K98: Y | L98: Data on international landings was only available for 2015 as these figures origins from ICES Intercatch (landings by Functional Unit was not available in EUROSTAT.
A99: SWE | B99: 2015 | C99: Nephrops norvegicus | D99: North Sea and Eastern Channel | E99: ICES | F99: functional unit 8 | G99: N | H99: <200 | I99: None | J99: None | K99: Y | L99: Data on international landings was only available for 2015 as these figures origins from ICES Intercatch (landings by Functional Unit was not available in EUROSTAT.
A100: SWE | B100: 2015 | C100: Nephrops norvegicus | D100: North Sea and Eastern Channel | E100: ICES | F100: functional unit 9 | G100: N | H100: <200 | I100: None | J100: None | K100: Y | L100: Data on international landings was only available for 2015 as these figures origins from ICES Intercatch (landings by Functional Unit was not available in EUROSTAT.
A101: SWE | B101: 2013-2015 | C101: Nephrops norvegicus | D101: North Sea and Eastern Channel | E101: ICES | F101: functional units 33 (TAC IIa, VI) | G101: N | H101: <200 | I101: None | J101: None | K101: Y
A102: SWE | B102: 2015 | C102: Nephrops norvegicus | D102: North Sea and Eastern Channel | E102: ICES | F102: functional unit 34 | G102: N | H102: <200 | I102: None | J102: None | K102: Y | L102: Data on international landings was only available for 2015 as these figures origins from ICES Intercatch (landings by Functional Unit was not available in EUROSTAT.
A103: SWE | B103: 2013-2015 | C103: Pandalus borealis | D103: North Sea and Eastern Channel | E103: ICES | F103: IVa | G103: N | H103: <200 | I103: 0.03 | J103: 0.55 | K103: Y
A104: SWE | B104: 2013-2015 | C104: Pecten maximus | D104: North Sea and Eastern Channel | E104: ICES | F104: VIId | G104: N | H104: <200 | I104: None | J104: None | K104: Y
A105: SWE | B105: 2013-2015 | C105: Phycis blennoides | D105: North Sea and Eastern Channel | E105: ICES | F105: IV | G105: N | H105: <200 | I105: None | J105: None | K105: Y
A106: SWE | B106: 2013-2015 | C106: Phycis phycis | D106: North Sea and Eastern Channel | E106: ICES | F106: IV | G106: N | H106: <200 | I106: None | J106: None | K106: Y
A107: SWE | B107: 2013-2015 | C107: Platichthys flesus | D107: North Sea and Eastern Channel | E107: ICES | F107: IV | G107: N | H107: <200 | I107: None | J107: None | K107: Y
A108: SWE | B108: 2013-2015 | C108: Pleuronectes platessa | D108: North Sea and Eastern Channel | E108: ICES | F108: IV | G108: N | H108: <200 | I108: None | J108: None | K108: Y
A109: SWE | B109: 2013-2015 | C109: Pleuronectes platessa | D109: North Sea and Eastern Channel | E109: ICES | F109: VIId | G109: N | H109: <200 | I109: None | J109: None | K109: Y
A110: SWE | B110: 2013-2015 | C110: Pollachius virens | D110: North Sea and Eastern Channel | E110: ICES | F110: IV | G110: N | H110: 925 | I110: None | J110: 0.03 | K110: Y
A111: SWE | B111: 2013-2015 | C111: Psetta maxima | D111: North Sea and Eastern Channel | E111: ICES | F111: IV, VIId | G111: N | H111: <200 | I111: None | J111: None | K111: Y
A112: SWE | B112: 2013-2015 | C112: Reinhardtius hippoglossoides | D112: North Sea and Eastern Channel | E112: ICES | F112: IV | G112: N | H112: <200 | I112: None | J112: None | K112: Y
A113: SWE | B113: 2013-2015 | C113: Salmo salar | D113: North Sea and Eastern Channel | E113: ICES | F113: IV, VIId | G113: N | H113: <200 | I113: None | J113: None | K113: NA
A114: SWE | B114: 2013-2015 | C114: Scomber scombrus | D114: North Sea and Eastern Channel | E114: ICES | F114: IV, VIId | G114: N | H114: 1820 | I114: None | J114: 0.01 | K114: Y | L114: The mackerel stock is widely distributed and covers subareas I,II,III, IV, V, VI, VII and XIV and divisions VIIIa-e and IXa. Sweden is fishing on the northern component of the stock (area IIIa and IV). The Swedish share on the total stock is well below the threshold of 10 %. An agreement with UK to secure the overall sampling is setup.
A115: SWE | B115: 2013-2015 | C115: Scophthalmus rhombus | D115: North Sea and Eastern Channel | E115: ICES | F115: IV, VIId | G115: N | H115: <200 | I115: None | J115: None | K115: Y
A116: SWE | B116: 2013-2015 | C116: Sebastes mentella | D116: North Sea and Eastern Channel | E116: ICES | F116: IV | G116: N | H116: <200 | I116: None | J116: None | K116: Y
A117: SWE | B117: 2013-2015 | C117: Solea solea | D117: North Sea and Eastern Channel | E117: ICES | F117: IV | G117: N | H117: <200 | I117: None | J117: None | K117: Y
A118: SWE | B118: 2013-2015 | C118: Solea solea | D118: North Sea and Eastern Channel | E118: ICES | F118: VIId | G118: N | H118: <200 | I118: None | J118: None | K118: Y
A119: SWE | B119: 2013-2015 | C119: Sprattus sprattus | D119: North Sea and Eastern Channel | E119: ICES | F119: IV | G119: N | H119: 3975 | I119: 0.01 | J119: 0.02 | K119: Y
A120: SWE | B120: 2013-2015 | C120: Sprattus sprattus | D120: North Sea and Eastern Channel | E120: ICES | F120: VIId | G120: N | H120: <200 | I120: None | J120: None | K120: Y
A121: SWE | B121: 2013-2015 | C121: Trachurus trachurus | D121: North Sea and Eastern Channel | E121: ICES | F121: IV, VIId | G121: N | H121: <200 | I121: 0.01 | J121: None | K121: Y
A122: SWE | B122: 2013-2015 | C122: Trigla lucerna | D122: North Sea and Eastern Channel | E122: ICES | F122: IV | G122: N | H122: <200 | I122: None | J122: None | K122: Y
A123: SWE | B123: 2013-2015 | C123: Trisopterus esmarkii | D123: North Sea and Eastern Channel | E123: ICES | F123: IV | G123: N | H123: 245 | I123: None | J123: 0.01 | K123: Y
A124: SWE | B124: 2013-2015 | C124: Zeus faber | D124: North Sea and Eastern Channel | E124: ICES | F124: IV, VIId | G124: N | H124: <200 | I124: None | J124: None | K124: Y
A125: SWE | B125: 2013-2015 | C125: Alepocephalus bairdii | D125: North East Atlantic and Western Channel | E125: ICES | F125: VI, XII | G125: N | H125: <200 | I125: None | J125: None | K125: Y
A126: SWE | B126: 2013-2015 | C126: Ammodytidae | D126: North East Atlantic and Western Channel | E126: ICES | F126: VIa | G126: N | H126: <200 | I126: None | J126: None | K126: Y
A127: SWE | B127: 2013-2015 | C127: Capros aper | D127: North East Atlantic and Western Channel | E127: ICES | F127: V, VI,VII | G127: N | H127: <200 | I127: None | J127: None | K127: Y
A128: SWE | B128: 2013-2015 | C128: Pecten maximus | D128: North East Atlantic and Western Channel | E128: ICES | F128: IV, VI, VII | G128: N | H128: <200 | I128: None | J128: None | K128: Y
A129: SWE | B129: 2013-2015 | C129: Aequipecten opercularis | D129: North East Atlantic and Western Channel | E129: ICES | F129: VII | G129: N | H129: <200 | I129: None | J129: None | K129: Y
A130: SWE | B130: 2013-2015 | C130: Maja squinado | D130: North East Atlantic and Western Channel | E130: ICES | F130: V, VI,VII | G130: N | H130: <200 | I130: None | J130: None | K130: Y
A131: SWE | B131: 2013-2015 | C131: Anguilla anguilla | D131: North East Atlantic and Western Channel | E131: ICES | F131: all areas | G131: N | H131: <200 | I131: None | J131: None | K131: Y
A132: SWE | B132: 2013-2015 | C132: Aphanopus spp. | D132: North East Atlantic and Western Channel | E132: ICES | F132: all areas | G132: N | H132: <200 | I132: None | J132: None | K132: Y
A133: SWE | B133: 2013-2015 | C133: Argentina spp. | D133: North East Atlantic and Western Channel | E133: ICES | F133: all areas | G133: N | H133: <200 | I133: None | J133: None | K133: Y
A134: SWE | B134: 2013-2015 | C134: Argyrosomus regius | D134: North East Atlantic and Western Channel | E134: ICES | F134: all areas | G134: N | H134: <200 | I134: None | J134: None | K134: Y
A135: SWE | B135: 2013-2015 | C135: Aspitrigla cuculus | D135: North East Atlantic and Western Channel | E135: ICES | F135: all areas | G135: N | H135: <200 | I135: None | J135: None | K135: Y
A136: SWE | B136: 2013-2015 | C136: Beryx spp. | D136: North East Atlantic and Western Channel | E136: ICES | F136: all areas, excluding X and IXa | G136: N | H136: <200 | I136: None | J136: None | K136: Y
A137: SWE | B137: 2013-2015 | C137: Beryx spp. | D137: North East Atlantic and Western Channel | E137: ICES | F137: IXa and X | G137: N | H137: <200 | I137: None | J137: None | K137: Y
A138: SWE | B138: 2013-2015 | C138: Cancer pagurus | D138: North East Atlantic and Western Channel | E138: ICES | F138: all areas | G138: N | H138: <200 | I138: None | J138: None | K138: Y
A139: SWE | B139: 2013-2015 | C139: Clupea harengus | D139: North East Atlantic and Western Channel | E139: ICES | F139: VIa | G139: N | H139: <200 | I139: None | J139: None | K139: Y
A140: SWE | B140: 2013-2015 | C140: Clupea harengus | D140: North East Atlantic and Western Channel | E140: ICES | F140: VIa S, VIIbc | G140: N | H140: <200 | I140: None | J140: None | K140: Y
A141: SWE | B141: 2013-2015 | C141: Clupea harengus | D141: North East Atlantic and Western Channel | E141: ICES | F141: VIIa | G141: N | H141: <200 | I141: None | J141: None | K141: Y
A142: SWE | B142: 2013-2015 | C142: Clupea harengus | D142: North East Atlantic and Western Channel | E142: ICES | F142: VIIj | G142: N | H142: <200 | I142: None | J142: None | K142: Y
A143: SWE | B143: 2013-2015 | C143: Conger conger | D143: North East Atlantic and Western Channel | E143: ICES | F143: all areas, excluding X | G143: N | H143: <200 | I143: None | J143: None | K143: Y
A144: SWE | B144: 2013-2015 | C144: Conger conger | D144: North East Atlantic and Western Channel | E144: ICES | F144: X | G144: N | H144: <200 | I144: None | J144: None | K144: Y
A145: SWE | B145: 2013-2015 | C145: Coryphaenoides rupestris | D145: North East Atlantic and Western Channel | E145: ICES | F145: all areas | G145: N | H145: <200 | I145: None | J145: None | K145: Y
A146: SWE | B146: 2013-2015 | C146: Dalatias licha | D146: North East Atlantic and Western Channel | E146: ICES | F146: All areas | G146: N | H146: <200 | I146: None | J146: None | K146: Y
A147: SWE | B147: 2013-2015 | C147: Dasyatis pastinaca | D147: North East Atlantic and Western Channel | E147: ICES | F147: VII, VIII | G147: N | H147: <200 | I147: None | J147: None | K147: Y
A148: SWE | B148: 2013-2015 | C148: Deania calcea | D148: North East Atlantic and Western Channel | E148: ICES | F148: V, VI, VII, IX, X, XII | G148: N | H148: <200 | I148: None | J148: None | K148: Y
A149: SWE | B149: 2013-2015 | C149: Dicentrarchus labrax | D149: North East Atlantic and Western Channel | E149: ICES | F149: all areas, excluding IX | G149: N | H149: <200 | I149: None | J149: None | K149: Y
A150: SWE | B150: 2013-2015 | C150: Dicentrarchus labrax | D150: North East Atlantic and Western Channel | E150: ICES | F150: IX | G150: N | H150: <200 | I150: None | J150: None | K150: Y
A151: SWE | B151: 2013-2015 | C151: Dicologlossa cuneata | D151: North East Atlantic and Western Channel | E151: ICES | F151: VIIIc, IX | G151: N | H151: <200 | I151: None | J151: None | K151: Y
A152: SWE | B152: 2013-2015 | C152: Engraulis encrasicolus | D152: North East Atlantic and Western Channel | E152: ICES | F152: IXa (only Cádiz) | G152: N | H152: <200 | I152: None | J152: None | K152: Y
A153: SWE | B153: 2013-2015 | C153: Engraulis encrasicolus | D153: North East Atlantic and Western Channel | E153: ICES | F153: VIII | G153: N | H153: <200 | I153: None | J153: None | K153: Y
A154: SWE | B154: 2013-2015 | C154: Etmopterus spinax | D154: North East Atlantic and Western Channel | E154: ICES | F154: VI, VII, VIII | G154: N | H154: <200 | I154: None | J154: None | K154: Y
A155: SWE | B155: 2013-2015 | C155: Eutrigla gurnardus | D155: North East Atlantic and Western Channel | E155: ICES | F155: VIIe | G155: N | H155: <200 | I155: None | J155: None | K155: Y
A156: SWE | B156: 2013-2015 | C156: Gadus morhua | D156: North East Atlantic and Western Channel | E156: ICES | F156: Va | G156: N | H156: <200 | I156: None | J156: None | K156: Y
A157: SWE | B157: 2013-2015 | C157: Gadus morhua | D157: North East Atlantic and Western Channel | E157: ICES | F157: Vb | G157: N | H157: <200 | I157: None | J157: None | K157: Y
A158: SWE | B158: 2013-2015 | C158: Gadus morhua | D158: North East Atlantic and Western Channel | E158: ICES | F158: VIa | G158: N | H158: <200 | I158: None | J158: None | K158: Y
A159: SWE | B159: 2013-2015 | C159: Gadus morhua | D159: North East Atlantic and Western Channel | E159: ICES | F159: VIb | G159: N | H159: <200 | I159: None | J159: None | K159: Y
A160: SWE | B160: 2013-2015 | C160: Gadus morhua | D160: North East Atlantic and Western Channel | E160: ICES | F160: VIIa | G160: N | H160: <200 | I160: None | J160: None | K160: Y
A161: SWE | B161: 2013-2015 | C161: Gadus morhua | D161: North East Atlantic and Western Channel | E161: ICES | F161: VIIe-k | G161: N | H161: <200 | I161: None | J161: None | K161: Y
A162: SWE | B162: 2013-2015 | C162: Glyptocephalus cynoglossus | D162: North East Atlantic and Western Channel | E162: ICES | F162: VI, VII | G162: N | H162: <200 | I162: None | J162: None | K162: Y
A163: SWE | B163: 2013-2015 | C163: Helicolenus dactylopterus | D163: North East Atlantic and Western Channel | E163: ICES | F163: all areas | G163: N | H163: <200 | I163: None | J163: None | K163: Y
A164: SWE | B164: 2013-2015 | C164: Homarus gammarus | D164: North East Atlantic and Western Channel | E164: ICES | F164: all areas | G164: N | H164: <200 | I164: None | J164: None | K164: Y
A165: SWE | B165: 2013-2015 | C165: Hoplostethus atlanticus | D165: North East Atlantic and Western Channel | E165: ICES | F165: all areas | G165: N | H165: <200 | I165: None | J165: None | K165: Y
A166: SWE | B166: 2013-2015 | C166: Lepidopus caudatus | D166: North East Atlantic and Western Channel | E166: ICES | F166: IXa | G166: N | H166: <200 | I166: None | J166: None | K166: Y
A167: SWE | B167: 2013-2015 | C167: Lepidorhombus boscii | D167: North East Atlantic and Western Channel | E167: ICES | F167: VIIIc, IXa | G167: N | H167: <200 | I167: None | J167: None | K167: Y
A168: SWE | B168: 2013-2015 | C168: Lepidorhombus whiffiagonis | D168: North East Atlantic and Western Channel | E168: ICES | F168: VI | G168: N | H168: <200 | I168: None | J168: None | K168: Y
A169: SWE | B169: 2013-2015 | C169: Lepidorhombus whiffiagonis | D169: North East Atlantic and Western Channel | E169: ICES | F169: VII, VIIIabd | G169: N | H169: <200 | I169: None | J169: None | K169: Y
A170: SWE | B170: 2013-2015 | C170: Lepidorhombus whiffiagonis | D170: North East Atlantic and Western Channel | E170: ICES | F170: VIIIc, IXa | G170: N | H170: <200 | I170: None | J170: None | K170: Y
A171: SWE | B171: 2013-2015 | C171: Limanda limanda | D171: North East Atlantic and Western Channel | E171: ICES | F171: VIIe | G171: N | H171: <200 | I171: None | J171: None | K171: Y
A172: SWE | B172: 2013-2015 | C172: Limanda limanda | D172: North East Atlantic and Western Channel | E172: ICES | F172: VIIa,f-h | G172: N | H172: <200 | I172: None | J172: None | K172: Y
A173: SWE | B173: 2013-2015 | C173: Loligo vulgaris | D173: North East Atlantic and Western Channel | E173: ICES | F173: all areas, excluding VIIIc, IXa | G173: N | H173: <200 | I173: None | J173: None | K173: Y
A174: SWE | B174: 2013-2015 | C174: Loligo vulgaris | D174: North East Atlantic and Western Channel | E174: ICES | F174: VIIIc, IXa | G174: N | H174: <200 | I174: None | J174: None | K174: Y
A175: SWE | B175: 2013-2015 | C175: Lophius budegassa | D175: North East Atlantic and Western Channel | E175: ICES | F175: IV, VI | G175: N | H175: <200 | I175: None | J175: None | K175: Y
A176: SWE | B176: 2013-2015 | C176: Lophius budegassa | D176: North East Atlantic and Western Channel | E176: ICES | F176: VIIb-k, VIIIabd | G176: N | H176: <200 | I176: None | J176: None | K176: Y
A177: SWE | B177: 2013-2015 | C177: Lophius budegassa | D177: North East Atlantic and Western Channel | E177: ICES | F177: VIIIc, IXa | G177: N | H177: <200 | I177: None | J177: None | K177: Y
A178: SWE | B178: 2013-2015 | C178: Lophius piscatorius | D178: North East Atlantic and Western Channel | E178: ICES | F178: IV, VI | G178: N | H178: <200 | I178: None | J178: 0.01 | K178: Y
A179: SWE | B179: 2013-2015 | C179: Lophius piscatorius | D179: North East Atlantic and Western Channel | E179: ICES | F179: VIIb-k, VIIIabd | G179: N | H179: <200 | I179: None | J179: None | K179: Y
A180: SWE | B180: 2013-2015 | C180: Lophius piscatorius | D180: North East Atlantic and Western Channel | E180: ICES | F180: VIIIc, IXa | G180: N | H180: <200 | I180: None | J180: None | K180: Y
A181: SWE | B181: 2013-2015 | C181: Mallotus villosus | D181: North East Atlantic and Western Channel | E181: ICES | F181: XIV | G181: N | H181: <200 | I181: None | J181: None | K181: Y
A182: SWE | B182: 2013-2015 | C182: Melanogrammus aeglefinus | D182: North East Atlantic and Western Channel | E182: ICES | F182: Va | G182: N | H182: <200 | I182: None | J182: None | K182: Y
A183: SWE | B183: 2013-2015 | C183: Melanogrammus aeglefinus | D183: North East Atlantic and Western Channel | E183: ICES | F183: Vb | G183: N | H183: <200 | I183: None | J183: None | K183: Y
A184: SWE | B184: 2013-2015 | C184: Melanogrammus aeglefinus | D184: North East Atlantic and Western Channel | E184: ICES | F184: VIa | G184: N | H184: <200 | I184: None | J184: None | K184: Y
A185: SWE | B185: 2013-2015 | C185: Melanogrammus aeglefinus | D185: North East Atlantic and Western Channel | E185: ICES | F185: Vib | G185: N | H185: <200 | I185: None | J185: None | K185: Y
A186: SWE | B186: 2013-2015 | C186: Melanogrammus aeglefinus | D186: North East Atlantic and Western Channel | E186: ICES | F186: VIIa | G186: N | H186: <200 | I186: None | J186: None | K186: Y
A187: SWE | B187: 2013-2015 | C187: Melanogrammus aeglefinus | D187: North East Atlantic and Western Channel | E187: ICES | F187: VIIb-k | G187: N | H187: <200 | I187: None | J187: None | K187: Y
A188: SWE | B188: 2013-2015 | C188: Merlangius merlangus | D188: North East Atlantic and Western Channel | E188: ICES | F188: VIII | G188: N | H188: <200 | I188: None | J188: None | K188: Y
A189: SWE | B189: 2013-2015 | C189: Merlangius merlangus | D189: North East Atlantic and Western Channel | E189: ICES | F189: IX, X | G189: N | H189: <200 | I189: None | J189: None | K189: Y
A190: SWE | B190: 2013-2015 | C190: Merlangius merlangus | D190: North East Atlantic and Western Channel | E190: ICES | F190: Vb | G190: N | H190: <200 | I190: None | J190: None | K190: Y
A191: SWE | B191: 2013-2015 | C191: Merlangius merlangus | D191: North East Atlantic and Western Channel | E191: ICES | F191: VIa | G191: N | H191: <200 | I191: None | J191: None | K191: Y
A192: SWE | B192: 2013-2015 | C192: Merlangius merlangus | D192: North East Atlantic and Western Channel | E192: ICES | F192: VIb | G192: N | H192: <200 | I192: None | J192: None | K192: Y
A193: SWE | B193: 2013-2015 | C193: Merlangius merlangus | D193: North East Atlantic and Western Channel | E193: ICES | F193: VIIa | G193: N | H193: <200 | I193: None | J193: None | K193: Y
A194: SWE | B194: 2013-2015 | C194: Merlangius merlangus | D194: North East Atlantic and Western Channel | E194: ICES | F194: VIIe-k | G194: N | H194: <200 | I194: None | J194: None | K194: Y
A195: SWE | B195: 2013-2015 | C195: Merluccius merluccius | D195: North East Atlantic and Western Channel | E195: ICES | F195: VI, VII, VIIIab | G195: N | H195: <200 | I195: None | J195: None | K195: Y
A196: SWE | B196: 2013-2015 | C196: Merluccius merluccius | D196: North East Atlantic and Western Channel | E196: ICES | F196: VIIIc, IXa | G196: N | H196: <200 | I196: None | J196: None | K196: Y
A197: SWE | B197: 2013-2015 | C197: Microchirus variegatus | D197: North East Atlantic and Western Channel | E197: ICES | F197: all areas | G197: N | H197: <200 | I197: None | J197: None | K197: Y
A198: SWE | B198: 2013-2015 | C198: Micromesistius poutassou | D198: North East Atlantic and Western Channel | E198: ICES | F198: I-IX, XII, XIV | G198: N | H198: 205 | I198: None | J198: None | K198: Y
A199: SWE | B199: 2013-2015 | C199: Microstomus kitt | D199: North East Atlantic and Western Channel | E199: ICES | F199: all areas | G199: N | H199: <200 | I199: None | J199: None | K199: Y
A200: SWE | B200: 2013-2015 | C200: Molva dypterygia | D200: North East Atlantic and Western Channel | E200: ICES | F200: all areas, excluding X | G200: N | H200: <200 | I200: None | J200: None | K200: Y
... 69 more rows

Sheet Table1B Planning of sampling
A1: Table 1B: Planning of sampling for biological variables
R2: WP years | Y2: 2017-2019
R3: AR year | Y3: 2017
A4: MS | B4: Species | C4: Region | D4: RFMO/RFO/IO | E4: Area / Stock | F4: Frequency | G4: Length | J4: Age | M4: Weight | P4: Sex ratio | S4: Sexual maturity | V4: Fecundity | Y4: Comments
G5: 2017 | H5: 2018 | I5: 2019 | J5: 2017 | K5: 2018 | L5: 2019 | M5: 2017 | N5: 2018 | O5: 2019 | P5: 2017 | Q5: 2018 | R5: 2019 | S5: 2017 | T5: 2018 | U5: 2019 | V5: 2017 | W5: 2018 | X5: 2019
A6: SWE | B6: Anguilla anguilla | C6: Baltic Sea | D6: EIFAAC/ICES/GFCM | E6: IIIb-d | F6: O | G6: X | H6: X | I6: X | J6: X | K6: X | L6: X | M6: X | N6: X | O6: X | P6: X | Q6: X | R6: X | V6: Not applicable | Y6: Frequency: Commercial monthly during season, survey yearly. Maturity: Yellow and silver eels handled separately, hence sampling stratified on maturity
A7: SWE | B7: Anguilla anguilla | C7: Baltic Sea | D7: EIFAAC/ICES | E7: fresh water | F7: Y | G7: X | H7: X | I7: X | J7: X | K7: X | L7: X | M7: X | N7: X | O7: X | P7: X | Q7: X | R7: X | S7: X | T7: X | U7: X
A8: SWE | B8: Clupea harengus | C8: Baltic Sea | D8: ICES | E8: 22-24 | F8: Q | G8: X | H8: X | I8: X | J8: X | K8: X | L8: X | M8: X | N8: X | O8: X | P8: X | Q8: X | R8: X | S8: X | T8: X | U8: X
A9: SWE | B9: Clupea harengus | C9: Baltic Sea | D9: ICES | E9: IIId 25-29, 32 | F9: Q | G9: X | H9: X | I9: X | J9: X | K9: X | L9: X | M9: X | N9: X | O9: X | P9: X | Q9: X | R9: X | S9: X | T9: X | U9: X
A10: SWE | B10: Clupea harengus | C10: Baltic Sea | D10: ICES | E10: III MU 3 (sd30-31) | F10: M | G10: X | H10: X | I10: X | J10: X | K10: X | L10: X | M10: X | N10: X | O10: X | P10: X | Q10: X | R10: X | S10: X | T10: X | U10: X | V10: Not applicable | Y10: Frequency: Commercial sampling monthly during fishing season.
A11: SWE | B11: Coregonus albula | C11: Baltic Sea | D11: ICES | E11: 22-32 | F11: Y | H11: X | I11: X | K11: X | L11: X | N11: X | O11: X | Q11: X | R11: X | T11: X | U11: X | V11: Not applicable | Y11: Frequency: Sampling will be made during the commersiell fishing season which is limited to the vendace's spawning period in September-October.
A12: SWE | B12: Gadus morhua | C12: Baltic Sea | D12: ICES | E12: 22-24 | F12: Q | G12: X | H12: X | I12: X | J12: X | K12: X | L12: X | M12: X | N12: X | O12: X | P12: X | Q12: X | R12: X | S12: X | T12: X | U12: X
A13: SWE | B13: Gadus morhua | C13: Baltic Sea | D13: ICES | E13: 25-32 | F13: Q | G13: X | H13: X | I13: X | J13: X | K13: X | L13: X | M13: X | N13: X | O13: X | P13: X | Q13: X | R13: X | S13: X | T13: X | U13: X
A14: SWE | B14: Platichthys flesus | C14: Baltic Sea | D14: ICES | E14: 22-32 | F14: Q | G14: X | H14: X | I14: X | J14: X | K14: X | L14: X | M14: X | N14: X | O14: X | P14: X | Q14: X | R14: X | S14: X | T14: X | U14: X | V14: Not applicable | Y14: Frequency: Commercial quartely during season, survey twice a year.
A15: SWE | B15: Salmo salar | C15: Baltic Sea | D15: ICES | E15: 22-31/32 | Y15: Only number (not biological data) of individuals are used in stock assessment (WGBAST). This data is collected from fishermen journals, See Table 4A.
A16: SWE | B16: Sprattus sprattus | C16: Baltic Sea | D16: ICES | E16: 22-32 | F16: Q | G16: X | H16: X | I16: X | J16: X | K16: X | L16: X | M16: X | N16: X | O16: X | P16: X | Q16: X | R16: X | S16: X | T16: X | U16: X
A17: SWE | B17: Anguilla anguilla | C17: North Sea and Eastern Arctic | D17: EIFAAC/ICES/GFCM | E17: IIIa | F17: Y | G17: X | H17: X | I17: X | J17: X | K17: X | L17: X | M17: X | N17: X | O17: X | P17: X | Q17: X | R17: X | V17: Not applicable | Y17: Frequency: Survey yearly. Maturity: Yellow eels and silver eels are handled separately, hence sampling stratified on maturity.
A18: SWE | B18: Clupea harengus | C18: North Sea and Eastern Arctic | D18: ICES | E18: IIIa | F18: Q | G18: X | H18: X | I18: X | J18: X | K18: X | L18: X | M18: X | N18: X | O18: X | P18: X | Q18: X | R18: X | S18: X | T18: X | U18: X
A19: SWE | B19: Gadus morhua | C19: North Sea and Eastern Arctic | D19: ICES | E19: IIIaN | F19: Q | G19: X | H19: X | I19: X | J19: X | K19: X | L19: X | M19: X | N19: X | O19: X | P19: X | Q19: X | R19: X | S19: X | T19: X | U19: X
A20: SWE | B20: Gadus morhua | C20: North Sea and Eastern Arctic | D20: ICES | E20: IIIaS | F20: Q | G20: X | H20: X | I20: X | J20: X | K20: X | L20: X | M20: X | N20: X | O20: X | P20: X | Q20: X | R20: X | S20: X | T20: X | U20: X
A21: SWE | B21: Glyptocephalus cynoglossus | C21: North Sea and Eastern Arctic | D21: ICES | E21: IIIa | F21: Q | G21: X | H21: X | I21: X | J21: X | K21: X | L21: X | M21: X | N21: X | O21: X | P21: X | Q21: X | R21: X | S21: X | T21: X | U21: X
A22: SWE | B22: Melanogrammus aeglefinus | C22: North Sea and Eastern Arctic | D22: ICES | E22: IV, IIIa | F22: Y | G22: X | H22: X | I22: X | J22: X | K22: X | L22: X | M22: X | N22: X | O22: X | P22: X | Q22: X | R22: X | S22: X | T22: X | U22: X | Y22: Sampled for biological parameters in surveys only.
A23: SWE | B23: Nephrops norvegicus | C23: North Sea and Eastern Arctic | D23: ICES | E23: FU3 (IIIaN) | F23: Q | G23: X | H23: X | I23: X | J23: not applicable | M23: X | N23: X | O23: X | P23: X | Q23: X | R23: X | S23: X | T23: X | U23: X
A24: SWE | B24: Nephrops norvegicus | C24: North Sea and Eastern Arctic | D24: ICES | E24: FU4 (IIIaS) | F24: Q | G24: X | H24: X | I24: X | J24: not applicable | M24: X | N24: X | O24: X | P24: X | Q24: X | R24: X | S24: X | T24: X | U24: X
A25: SWE | B25: Pandalus borealis | C25: North Sea and Eastern Arctic | D25: ICES | E25: IIIa,IVa east/IVa/IVb | F25: Q | G25: X | H25: X | I25: X | J25: not applicable | M25: X | N25: X | O25: X | P25: X | Q25: X | R25: X | S25: X | T25: X | U25: X
A26: SWE | B26: Pleuronectes platessa | C26: North Sea and Eastern Arctic | D26: ICES | E26: IIIa | F26: Y | G26: X | H26: X | I26: X | J26: X | K26: X | L26: X | M26: X | N26: X | O26: X | P26: X | Q26: X | R26: X | S26: X | T26: X | U26: X | Y26: Sampled for biological parameters in surveys only.
A27: SWE | B27: Sprattus sprattus | C27: North Sea and Eastern Arctic | D27: ICES | E27: IIIa | F27: Q | G27: X | H27: X | I27: X | J27: X | K27: X | L27: X | M27: X | N27: X | O27: X | P27: X | Q27: X | R27: X | S27: X | T27: X | U27: X
A28: SWE | B28: Trisopterus esmarki | C28: North Sea and Eastern Arctic | D28: ICES | E28: IIIa | F28: Y | G28: X | H28: X | I28: X | J28: X | K28: X | L28: X | M28: X | N28: X | O28: X | P28: X | Q28: X | R28: X | S28: X | T28: X | U28: X | Y28: Sampled for biological parameters in surveys only.
A29: SWE | B29: Pollachius virens | C29: North Sea and Eastern Arctic | D29: ICES | E29: IIIa | F29: Y | G29: X | H29: X | I29: X | J29: X | K29: X | L29: X | M29: X | N29: X | O29: X | P29: X | Q29: X | R29: X | S29: X | T29: X | U29: X | Y29: Sampled for biological parameters in surveys only.
A30: SWE | B30: Merlangius merlangus | C30: North Sea and Eastern Arctic | D30: ICES | E30: IIIa | F30: Y | G30: X | H30: X | I30: X | J30: X | K30: X | L30: X | M30: X | N30: X | O30: X | P30: X | Q30: X | R30: X | S30: X | T30: X | U30: X | Y30: Sampled for biological parameters in surveys only.

Sheet Table1C Sampling intensity
A1: Table 1C: Sampling intensity for biological variables
P2: WP years | Q2: 2017-2019
P3: AR year | Q3: 2017
A4: MS | B4: MS partcipating in sampling | C4: Sampling year | D4: Species | E4: Region | F4: RFMO/RFO/IO | G4: Area / Stock | H4: Variables | I4: Data sources | J4: Planned minimum no of individuals to be measured at the national level | K4: Planned minimum no of individuals to be measured at the regional level | L4: Comments | M4: Achieved number of individuals measured at the national level | N4: % of achievement (100*M/J) | O4: Achieved number of samples | P4: Sampling protocol | Q4: AR Comments
A5: SWE | B5: SWE | C5: 2017 | D5: All | E5: All | F5: All | G5: All | H5: Length,weight | I5: Sea sampling, surveys | J5: NA | L5: A 2-year(2014, 2015) average rounded is used for all figures presented as planned minimum number. Only commercial species above the threshold (table 1A) and target species in surveys are listed in this table. Not all species collected during sampling at sea (Comment applicable to the entire table)
A6: SWE | B6: SWE | C6: 2017 | D6: Anguilla anguilla | E6: Baltic Sea | F6: EIFAAC/ICES | G6: Freshwater | H6: Age | I6: Commercial samples | J6: 375 | L6: 125 eels per lake in three lakes | M6: 358 | N6: =M6/J6*100 -> 95.46666667 | O6: 3 | P6: 125 eels per lake in three lakes
A7: SWE | B7: SWE | C7: 2017 | D7: Anguilla anguilla | E7: Baltic Sea | F7: EIFAAC/ICES | G7: Freshwater | H7: Weight | I7: Commercial samples | J7: 375 | L7: 125 eels per lake in three lakes | M7: 358 | N7: 95.46666667 | O7: 3 | P7: 125 eels per lake in three lakes
A8: SWE | B8: SWE | C8: 2017 | D8: Anguilla anguilla | E8: Baltic Sea | F8: EIFAAC/ICES | G8: Freshwater | H8: Length | I8: Commercial samples | J8: 375 | L8: 125 eels per lake in three lakes | M8: 358 | N8: 95.46666667 | O8: 3 | P8: 125 eels per lake in three lakes
A9: SWE | B9: SWE | C9: 2017 | D9: Anguilla anguilla | E9: Baltic Sea | F9: EIFAAC/ICES | G9: Freshwater | H9: Sex | I9: Commercial samples | J9: 375 | L9: 125 eels per lake in three lakes | M9: 358 | N9: 95.46666667 | O9: 3 | P9: 125 eels per lake in three lakes
A10: SWE | B10: SWE | C10: 2017 | D10: Anguilla anguilla | E10: Baltic Sea | F10: EIFAAC/ICES | G10: Freshwater | H10: Maturity | I10: Commercial samples | J10: 375 | L10: 125 eels per lake in three lakes | M10: 358 | N10: 95.46666667 | O10: 3 | P10: 125 eels per lake in three lakes
A11: SWE | B11: SWE | C11: 2017 | D11: Anguilla anguilla | E11: Baltic Sea | F11: EIFAAC/ICES/GFCM | G11: IIIb-d | H11: Age | I11: Commercial | J11: 600 | M11: 599 | N11: 99.83333333 | O11: 27 | P11: Annual goal to sample 200 silver eel selected by length stratification (5-7 ind/cm and year) in SD 23, 25 and 27 respectively.
A12: SWE | B12: SWE | C12: 2017 | D12: Anguilla anguilla | E12: Baltic Sea | F12: EIFAAC/ICES/GFCM | G12: IIIb-d | H12: Weight | I12: Commercial | J12: 600 | M12: 599 | N12: 99.83333333 | O12: 27 | P12: Annual goal to sample 200 silver eel selected by length stratification (5-7 ind/cm and year) in SD 23, 25 and 27 respectively.
A13: SWE | B13: SWE | C13: 2017 | D13: Anguilla anguilla | E13: Baltic Sea | F13: EIFAAC/ICES/GFCM | G13: IIIb-d | H13: Length | I13: Commercial | J13: 1175 | M13: 1083 | N13: 92.17021277 | O13: 27 | P13: All individuals collected are measured for length.
A14: SWE | B14: SWE | C14: 2017 | D14: Anguilla anguilla | E14: Baltic Sea | F14: EIFAAC/ICES/GFCM | G14: IIIb-d | H14: Sex | I14: Commercial | J14: 600 | M14: 599 | N14: 99.83333333 | O14: 27 | P14: Annual goal to sample 200 silver eel selected by length stratification (5-7 ind/cm and year) in SD 23, 25 and 27 respectively.
A15: SWE | B15: SWE | C15: 2017 | D15: Anguilla anguilla | E15: Baltic Sea | F15: EIFAAC/ICES/GFCM | G15: IIIb-d | H15: Maturity | I15: Commercial | J15: Not applicable | L15: Sexual maturity: Yellow eels and silver eels are handled separately, hence sampling stratified on maturity. | M15: Not applicable | O15: Not applicable | P15: Not applicable
A16: SWE | B16: SWE | C16: 2017 | D16: Anguilla anguilla | E16: Baltic Sea | F16: EIFAAC/ICES/GFCM | G16: IIIb-d | H16: Age | I16: Survey | J16: 200 | M16: 214 | N16: 107 | O16: 4 | P16: Set survey goal to sample 200 yellow eel selected by length stratification (5-7 ind/cm).
A17: SWE | B17: SWE | C17: 2017 | D17: Anguilla anguilla | E17: Baltic Sea | F17: EIFAAC/ICES/GFCM | G17: IIIb-d | H17: Weight | I17: Survey | J17: 200 | M17: 214 | N17: 107 | O17: 4 | P17: Set survey goal to sample 200 yellow eel selected by length stratification (5-7 ind/cm).
A18: SWE | B18: SWE | C18: 2017 | D18: Anguilla anguilla | E18: Baltic Sea | F18: EIFAAC/ICES/GFCM | G18: IIIb-d | H18: Length | I18: Survey | J18: 650 | M18: 344 | N18: 52.92307692 | O18: 4 | P18: All individuals collected are measured for length. | Q18: Planned maximum effort in this fyke net survey was carried out. The low % of achievement was due to that the catches of eel were lower than expected._Besides these 344 yellow eel, 6 silver eel were also sampled according to change in sampling scheme. When WP is updated, the addition of biological sampling of both stages of the species will be included.
A19: SWE | B19: SWE | C19: 2017 | D19: Anguilla anguilla | E19: Baltic Sea | F19: EIFAAC/ICES/GFCM | G19: IIIb-d | H19: Sex | I19: Survey | J19: 200 | M19: 214 | N19: 107 | O19: 4 | P19: Set survey goal to sample 200 yellow eel selected by length stratification (5-7 ind/cm).
A20: SWE | B20: SWE | C20: 2017 | D20: Anguilla anguilla | E20: Baltic Sea | F20: EIFAAC/ICES/GFCM | G20: IIIb-d | H20: Maturity | I20: Survey | J20: Not applicable | L20: Sexual maturity: Yellow eels and silver eels are handled separately, hence sampling stratified on maturity. | M20: Not applicable | O20: Not applicable | P20: Not applicable
A21: SWE | B21: SWE | C21: 2017 | D21: Clupea harengus | E21: Baltic Sea | F21: ICES | G21: SD22-24, IIIa | H21: Age | I21: Market | J21: 1480 | M21: 1597 | N21: =M21/J21*100 -> 107.9054054 | O21: 16 | P21: max 150 ind/box : 4 box/SD/quarter, fishing mainly in Quarter 1 and 4
A22: SWE | B22: SWE | C22: 2017 | D22: Clupea harengus | E22: Baltic Sea | F22: ICES | G22: SD22-24, IIIa | H22: Weight | I22: Market | J22: 1480 | M22: 1606 | N22: =M22/J22*100 -> 108.5135135 | O22: 16 | P22: max 150 ind/box : 4 box/SD/quarter, fishing mainly in Quarter 1 and 4
A23: SWE | B23: SWE | C23: 2017 | D23: Clupea harengus | E23: Baltic Sea | F23: ICES | G23: SD22-24, IIIa | H23: Length | I23: Market | J23: 1480 | M23: 1606 | N23: 108.5135135 | O23: 16 | P23: max 150 ind/box : 4 box/SD/quarter, fishing mainly in Quarter 1 and 4
A24: SWE | B24: SWE | C24: 2017 | D24: Clupea harengus | E24: Baltic Sea | F24: ICES | G24: SD22-24, IIIa | H24: Sex | I24: Market | J24: 1480 | M24: 1606 | N24: 108.5135135 | O24: 16 | P24: max 150 ind/box : 4 box/SD/quarter, fishing mainly in Quarter 1 and 4
A25: SWE | B25: SWE | C25: 2017 | D25: Clupea harengus | E25: Baltic Sea | F25: ICES | G25: SD22-24, IIIa | H25: Maturity | I25: Market | J25: 1480 | M25: 1606 | N25: 108.5135135 | O25: 16 | P25: max 150 ind/box : 4 box/SD/quarter, fishing mainly in Quarter 1 and 4
A26: SWE | B26: SWE | C26: 2017 | D26: Clupea harengus | E26: Baltic Sea | F26: ICES | G26: SD25-29, 32 | H26: Age | I26: Market | J26: 6125 | M26: 5088 | N26: 83.06938776 | O26: 77 | P26: max 100 ind/box : 4 box/SD/quarter | Q26: Not all areas(SD) fully covered in sampling due to restricted access to landings in some places. Unsorted samples with mix of herring and sprat, results in only sprat for some samples.
A27: SWE | B27: SWE | C27: 2017 | D27: Clupea harengus | E27: Baltic Sea | F27: ICES | G27: SD25-29, 32 | H27: Weight | I27: Market | J27: 6170 | M27: 5122 | N27: 83.01458671 | O27: 77 | P27: max 100 ind/box : 4 box/SD/quarter | Q27: Not all areas fully covered in sampling due to restricted access to landings in some places. Unsorted samples with mix of herring and sprat, results in only sprat for some samples.
A28: SWE | B28: SWE | C28: 2017 | D28: Clupea harengus | E28: Baltic Sea | F28: ICES | G28: SD25-29, 32 | H28: Length | I28: Market | J28: 6170 | M28: 5122 | N28: 83.01458671 | O28: 77 | P28: max 100 ind/box : 4 box/SD/quarter | Q28: Not all areas fully covered in sampling due to restricted access to landings in some places. Unsorted samples with mix of herring and sprat, results in only sprat for some samples.
A29: SWE | B29: SWE | C29: 2017 | D29: Clupea harengus | E29: Baltic Sea | F29: ICES | G29: SD25-29, 32 | H29: Sex | I29: Market | J29: 5910 | M29: 5122 | N29: 86.66666667 | O29: 77 | P29: max 100 ind/box : 4 box/SD/quarter | Q29: Not all areas fully covered in sampling due to restricted access to landings in some places. Unsorted samples with mix of herring and sprat, results in only sprat for some samples.
A30: SWE | B30: SWE | C30: 2017 | D30: Clupea harengus | E30: Baltic Sea | F30: ICES | G30: SD25-29, 32 | H30: Maturity | I30: Market | J30: 6170 | M30: 5122 | N30: 83.01458671 | O30: 77 | P30: max 100 ind/box : 4 box/SD/quarter | Q30: Not all areas fully covered in sampling due to restricted access to landings in some places. Unsorted samples with mix of herring and sprat, results in only sprat for some samples.
A31: SWE | B31: SWE | C31: 2017 | D31: Clupea harengus | E31: Baltic Sea | F31: ICES | G31: SD25-29, 32 | H31: Age | I31: Survey | J31: 2430 | M31: 2041 | N31: 83.99176955 | O31: 46 | P31: 5 ind/half cm/haul | Q31: Slightly undersampled, see general explanation textbox 1C.
A32: SWE | B32: SWE | C32: 2017 | D32: Clupea harengus | E32: Baltic Sea | F32: ICES | G32: SD25-29, 32 | H32: Weight | I32: Survey | J32: 2430 | M32: 2044 | N32: 84.11522634 | O32: 46 | P32: 5 ind/half cm/haul | Q32: Slightly undersampled, see general explanation textbox 1C.
A33: SWE | B33: SWE | C33: 2017 | D33: Clupea harengus | E33: Baltic Sea | F33: ICES | G33: SD25-29, 32 | H33: Length | I33: Survey | J33: 10570 | M33: 9292 | N33: 87.90917692 | O33: 46 | P33: subsample or total catch/haul | Q33: Slightly undersampled, see general explanation textbox 1C.
A34: SWE | B34: SWE | C34: 2017 | D34: Clupea harengus | E34: Baltic Sea | F34: ICES | G34: SD25-29, 32 | H34: Sex | I34: Survey | J34: 2120 | M34: 2044 | N34: 96.41509434 | O34: 46 | P34: 5 ind/halfcm/haul
A35: SWE | B35: SWE | C35: 2017 | D35: Clupea harengus | E35: Baltic Sea | F35: ICES | G35: SD25-29, 32 | H35: Maturity | I35: Survey | J35: 2435 | M35: 2044 | N35: 83.94250513 | O35: 46 | P35: 5 ind/halfcm/haul | Q35: Slightly undersampled, see general explanation textbox 1C.
A36: SWE | B36: SWE | C36: 2017 | D36: Clupea harengus | E36: Baltic Sea | F36: ICES | G36: SD30-31 | H36: Age | I36: Commercial | J36: 890 | M36: 834 | N36: 93.70786517 | O36: 10 | P36: 20 ind/halfcm/quarter, 2 and 3rd quarter
A37: SWE | B37: SWE | C37: 2017 | D37: Clupea harengus | E37: Baltic Sea | F37: ICES | G37: SD30-31 | H37: Weight | I37: Commercial | J37: 890 | M37: 834 | N37: 93.70786517 | O37: 10 | P37: 20 ind/halfcm/quarter, 2 and 3rd quarter
A38: SWE | B38: SWE | C38: 2017 | D38: Clupea harengus | E38: Baltic Sea | F38: ICES | G38: SD30-31 | H38: Length | I38: Commercial | J38: 890 | M38: 834 | N38: 93.70786517 | O38: 10 | P38: 20 ind/halfcm/quarter, 2 and 3rd quarter
A39: SWE | B39: SWE | C39: 2017 | D39: Clupea harengus | E39: Baltic Sea | F39: ICES | G39: SD30-31 | H39: Sex | I39: Commercial | J39: 850 | M39: 834 | N39: 98.11764706 | O39: 10 | P39: 20 ind/halfcm/quarter, 2 and 3rd quarter
A40: SWE | B40: SWE | C40: 2017 | D40: Clupea harengus | E40: Baltic Sea | F40: ICES | G40: SD30-31 | H40: Maturity | I40: Commercial | J40: 890 | M40: 834 | N40: 93.70786517 | O40: 10 | P40: 20 ind/halfcm/quarter, 2 and 3rd quarter
A41: SWE | B41: SWE | C41: 2017 | D41: Clupea harengus | E41: Baltic Sea | F41: ICES | G41: SD30 | H41: Age | I41: Survey | J41: 0 | K41: 1110 | L41: "Planned No ...at regional level" presented here includes the part of the biological sampling that Sweden will be age reading according to the bilateral agreement | M41: 1306 | N41: =M41/K41*100 -> 117.6576577 | O41: 24 | P41: 10 ind/halfcm/statistical rectangle
A42: SWE | B42: SWE | C42: 2017 | D42: Clupea harengus | E42: Baltic Sea | F42: ICES | G42: SD30 | H42: Weight | I42: Survey | J42: 0 | K42: 1110 | L42: "Planned No ...at regional level" presented here includes the part of the biological sampling that Sweden will be age reading according to the bilateral agreement | M42: 1318 | N42: =M42/K42*100 -> 118.7387387 | O42: 24 | P42: 10 ind/halfcm/statistical rectangle
A43: SWE | B43: SWE | C43: 2017 | D43: Clupea harengus | E43: Baltic Sea | F43: ICES | G43: SD30 | H43: Length | I43: Survey | J43: 0 | K43: 6200 | L43: "Planned No ...at regional level" presented here includes the part of the biological sampling that Sweden will be age reading according to the bilateral agreement | M43: 7725 | N43: 124.5967742 | O43: 24 | P43: subsample or total catch/haul
A44: SWE | B44: SWE | C44: 2017 | D44: Clupea harengus | E44: Baltic Sea | F44: ICES | G44: SD30 | H44: Sex | I44: Survey | J44: 0 | K44: 1110 | L44: "Planned No ...at regional level" presented here includes the part of the biological sampling that Sweden will be age reading according to the bilateral agreement | M44: 1286 | N44: 115.8558559 | O44: 24 | P44: 10 ind/halfcm/statistical rectangle
A45: SWE | B45: SWE | C45: 2017 | D45: Clupea harengus | E45: Baltic Sea | F45: ICES | G45: SD30 | H45: Maturity | I45: Survey | J45: 0 | K45: 1110 | L45: "Planned No ...at regional level" presented here includes the part of the biological sampling that Sweden will be age reading according to the bilateral agreement | M45: 1318 | N45: 118.7387387 | O45: 24 | P45: 10 ind/halfcm/statistical rectangle
A46: SWE | B46: SWE | C46: 2017 | D46: Gadus morhua | E46: Baltic Sea | F46: ICES | G46: SD22-24 | H46: Age | I46: Market | J46: 2050 | M46: 1904 | N46: =(100*M46/J46) -> 92.87804878 | O46: 50 | P46: 20 ind/size cat/sampling event | Q46: Sampling design was changed between 2016 and 2017. The planned number of sampled fish reflects the old samlingdesign, while the achieved number reflect the outcome of the new sampling design (as described in textbox 4A).
A47: SWE | B47: SWE | C47: 2017 | D47: Gadus morhua | E47: Baltic Sea | F47: ICES | G47: SD22-24 | H47: Weight | I47: Market | J47: 2050 | M47: 2776 | N47: =(100*M47/J47) -> 135.4146341 | O47: 50 | P47: 20 ind/size cat/sampling event | Q47: Sampling design was changed between 2016 and 2017. The planned number of sampled fish reflects the old samlingdesign, while the achieved number reflect the outcome of the new sampling design (as described in textbox 4A).
A48: SWE | B48: SWE | C48: 2017 | D48: Gadus morhua | E48: Baltic Sea | F48: ICES | G48: SD22-24 | H48: Length | I48: Market | J48: 2050 | M48: 3304 | N48: 161.1707317 | O48: 50 | P48: all individuals in sampled box/sampling event | Q48: Sampling design was changed between 2016 and 2017. The planned number of sampled fish reflects the old samlingdesign, while the achieved number reflect the outcome of the new sampling design (as described in textbox 4A).
A49: SWE | B49: SWE | C49: 2017 | D49: Gadus morhua | E49: Baltic Sea | F49: ICES | G49: SD22-24 | H49: Age | I49: Sea sampling | J49: 620 | M49: 1904 | N49: 307.0967742 | O49: 39 | P49: 5 ind /cm and trip on the discard part | Q49: The planned number of fish is based on the achievements from reference years 2014-2015. During 2015 Swedish seasampling in the Baltic was heavily undersampled as a consequence of the implementation of landing obligation. In 2017, more seasampling trips was conducted resulting in more fish sampled for biological parameters.
A50: SWE | B50: SWE | C50: 2017 | D50: Gadus morhua | E50: Baltic Sea | F50: ICES | G50: SD22-24 | H50: Weight | I50: Sea sampling | J50: 620 | M50: 2514 | N50: =(100*M50/J50) -> 405.483871 | O50: 39 | P50: 5 ind /cm and trip on the discard part | Q50: The planned number of fish is based on the achievements from reference years 2014-2015. During 2015 Swedish seasampling in the Baltic was heavily undersampled as a consequence of the implementation of landing obligation. In 2017, more seasampling trips was conducted resulting in more fish sampled for biological parameters.
A51: SWE | B51: SWE | C51: 2017 | D51: Gadus morhua | E51: Baltic Sea | F51: ICES | G51: SD22-24 | H51: Length | I51: Sea sampling | J51: 620 | M51: 3304 | N51: =(100*M51/J51) -> 532.9032258 | O51: 39 | P51: total amount in subsample | Q51: The planned number of fish is based on the achievements from reference years 2014-2015. During 2015 Swedish seasampling in the Baltic was heavily undersampled as a consequence of the implementation of landing obligation. In 2017, more seasampling trips was conducted resulting in more fish sampled for biological parameters.
A52: SWE | B52: SWE | C52: 2017 | D52: Gadus morhua | E52: Baltic Sea | F52: ICES | G52: SD22-24 | H52: Age | I52: Survey | J52: 300 | L52: info on sampling 1 ind / haul | M52: 275 | N52: =M52/J52*100 -> 91.66666667 | O52: 7 | P52: 8 ind/cm/SD 23
A53: SWE | B53: SWE | C53: 2017 | D53: Gadus morhua | E53: Baltic Sea | F53: ICES | G53: SD22-24 | H53: Weight | I53: Survey | J53: 300 | M53: 274 | N53: 91.33333333 | O53: 7 | P53: 8 st/cm/SD 23
A54: SWE | B54: SWE | C54: 2017 | D54: Gadus morhua | E54: Baltic Sea | F54: ICES | G54: SD22-24 | H54: Length | I54: Survey | J54: 715 | M54: 484 | N54: 67.69230769 | O54: 7 | P54: total catch | Q54: Undersampled, see general explanation textbox 1C.
A55: SWE | B55: SWE | C55: 2017 | D55: Gadus morhua | E55: Baltic Sea | F55: ICES | G55: SD22-24 | H55: Sex | I55: Survey | J55: 300 | M55: 273 | N55: 91 | O55: 7 | P55: 8 ind/cm/SD 23
A56: SWE | B56: SWE | C56: 2017 | D56: Gadus morhua | E56: Baltic Sea | F56: ICES | G56: SD22-24 | H56: Maturity | I56: Survey | J56: 300 | M56: 274 | N56: 91.33333333 | O56: 7 | P56: 8 ind/cm/SD 23
A57: SWE | B57: SWE | C57: 2017 | D57: Gadus morhua | E57: Baltic Sea | F57: ICES | G57: SD25-32 | H57: Age | I57: Market | J57: 1945 | M57: 4436 | N57: =(100*M57/J57) -> 228.0719794 | O57: 98 | P57: 10-20 ind/size cat/sampling event (depending on size cat.) | Q57: OSampling design was changed between 2016 and 2017. The planned number of sampled fish reflects the old samlingdesign, while the achieved number reflect the outcome of the new sampling design (as described in textbox 4A) Otholites in SD 25-32 are collected but not aged.
A58: SWE | B58: SWE | C58: 2017 | D58: Gadus morhua | E58: Baltic Sea | F58: ICES | G58: SD25-32 | H58: Weight | I58: Market | J58: 2250 | M58: 7548 | N58: =(100*M58/J58) -> 335.4666667 | O58: 98 | P58: 10-20 ind/size cat/sampling event (depending on size cat.) | Q58: OSampling design was changed between 2016 and 2017. The planned number of sampled fish reflects the old samlingdesign, while the achieved number reflect the outcome of the new sampling design (as described in textbox 4A) Otholites in SD 25-32 are collected but not aged.
A59: SWE | B59: SWE | C59: 2017 | D59: Gadus morhua | E59: Baltic Sea | F59: ICES | G59: SD25-32 | H59: Length | I59: Market | J59: 2250 | M59: 18741 | N59: 832.9333333 | O59: 98 | P59: all individuals in sampled box/sampling event | Q59: OSampling design was changed between 2016 and 2017. The planned number of sampled fish reflects the old samlingdesign, while the achieved number reflect the outcome of the new sampling design (as described in textbox 4A) Otholites in SD 25-32 are collected but not aged.
A60: SWE | B60: SWE | C60: 2017 | D60: Gadus morhua | E60: Baltic Sea | F60: ICES | G60: SD25-32 | H60: Age | I60: Sea sampling | J60: 890 | M60: 1469 | N60: 165.0561798 | O60: 32 | P60: 5 ind /cm and trip on the discard part | Q60: Otholits in SD 25-32 are collected but not aged.
A61: SWE | B61: SWE | C61: 2017 | D61: Gadus morhua | E61: Baltic Sea | F61: ICES | G61: SD25-32 | H61: Weight | I61: Sea sampling | J61: 1010 | M61: 2138 | N61: 211.6831683 | O61: 32 | P61: 5 ind /cm and trip on the discard part | Q61: Oversampling due to changes in sampling design, see textbox 1C.
A62: SWE | B62: SWE | C62: 2017 | D62: Gadus morhua | E62: Baltic Sea | F62: ICES | G62: SD25-32 | H62: Length | I62: Sea sampling | J62: 1010 | M62: 17587 | N62: 1741.287129 | O62: 32 | P62: total amount in subsample | Q62: Planned number is incorrect. Total amount in subsample is measured for length.
A63: SWE | B63: SWE | C63: 2017 | D63: Gadus morhua | E63: Baltic Sea | F63: ICES | G63: SD25-32 | H63: Age | I63: Survey | J63: 1860 | M63: 1320 | N63: 70.96774194 | O63: 126 | P63: 1ind/cm/haul (on BITS adjustments are made depending on nr of hauls per SD) | Q63: Undersampled, see general explanation textbox 1C.
A64: SWE | B64: SWE | C64: 2017 | D64: Gadus morhua | E64: Baltic Sea | F64: ICES | G64: SD25-32 | H64: Weight | I64: Survey | J64: 1860 | M64: 1322 | N64: 71.07526882 | O64: 126 | P64: 1ind/cm/haul (on BITS adjustments are made depending on nr of hauls per SD) | Q64: Undersampled, see general explanation textbox 1C.
A65: SWE | B65: SWE | C65: 2017 | D65: Gadus morhua | E65: Baltic Sea | F65: ICES | G65: SD25-32 | H65: Length | I65: Survey | J65: 13680 | M65: 8531 | N65: 62.36111111 | O65: 126 | P65: subsample or total catch/haul | Q65: Undersampled, see general explanation textbox 1C.
A66: SWE | B66: SWE | C66: 2017 | D66: Gadus morhua | E66: Baltic Sea | F66: ICES | G66: SD25-32 | H66: Sex | I66: Survey | J66: 1790 | M66: 1227 | N66: 68.54748603 | O66: 126 | P66: 1ind/cm/haul (on BITS adjustments are made depending on nr of hauls per SD) | Q66: Undersampled, see general explanation textbox 1C.
A67: SWE | B67: SWE | C67: 2017 | D67: Gadus morhua | E67: Baltic Sea | F67: ICES | G67: SD25-32 | H67: Maturity | I67: Survey | J67: 1790 | M67: 1227 | N67: 68.54748603 | O67: 126 | P67: 1ind/cm/haul (on BITS adjustments are made depending on nr of hauls per SD) | Q67: Undersampled, see general explanation textbox 1C.
A68: SWE | B68: SWE | C68: 2017 | D68: Platichthys flesus | E68: Baltic Sea | F68: ICES | G68: SD22-32 | H68: Age | I68: Sea sampling | J68: 330 | M68: 194 | N68: 58.78787879 | O68: 32 | P68: 5 ind /cm and trip on the discard part | Q68: Undersampled due to lo low effort in the fishery.
A69: SWE | B69: SWE | C69: 2017 | D69: Platichthys flesus | E69: Baltic Sea | F69: ICES | G69: SD22-32 | H69: Weight | I69: Sea sampling | J69: 495 | M69: 201 | N69: 40.60606061 | O69: 32 | P69: 5 ind /cm and trip on the discard part | Q69: Undersampled due to lo low effort in the fishery.
A70: SWE | B70: SWE | C70: 2017 | D70: Platichthys flesus | E70: Baltic Sea | F70: ICES | G70: SD22-32 | H70: Length | I70: Sea sampling | J70: 495 | M70: 481 | N70: 97.17171717 | O70: 32 | P70: 5 ind /cm and trip on the discard part + 50 ind / haul for landed part
A71: SWE | B71: SWE | C71: 2017 | D71: Platichthys flesus | E71: Baltic Sea | F71: ICES | G71: SD22-32 | H71: Sex | I71: Sea sampling | J71: 150 | M71: 145 | N71: 96.66666667 | O71: 32 | P71: 5 ind /cm and trip on the discard part
A72: SWE | B72: SWE | C72: 2017 | D72: Platichthys flesus | E72: Baltic Sea | F72: ICES | G72: SD22-32 | H72: Maturity | I72: Sea sampling | J72: 200 | M72: 0 | N72: 0 | O72: 32 | P72: 0 | Q72: No maturity is sampled and recorded. Not used for assessment.
A73: SWE | B73: SWE | C73: 2017 | D73: Platichthys flesus | E73: Baltic Sea | F73: ICES | G73: SD22-32 | H73: Age | I73: survey | J73: 1860 | M73: 1632 | N73: 87.74193548 | O73: 80 | P73: 20 ind/cm/SD | Q73: Undersampled, see general explanation textbox 1C.
A74: SWE | B74: SWE | C74: 2017 | D74: Platichthys flesus | E74: Baltic Sea | F74: ICES | G74: SD22-32 | H74: Weight | I74: survey | J74: 1860 | M74: 1643 | N74: 88.33333333 | O74: 80 | P74: 20 ind/cm/SD | Q74: Undersampled, see general explanation textbox 1C.
A75: SWE | B75: SWE | C75: 2017 | D75: Platichthys flesus | E75: Baltic Sea | F75: ICES | G75: SD22-32 | H75: Length | I75: survey | J75: 6650 | M75: 7986 | N75: 120.0902256 | O75: 80 | P75: 20 ind/cm/SD
A76: SWE | B76: SWE | C76: 2017 | D76: Platichthys flesus | E76: Baltic Sea | F76: ICES | G76: SD22-32 | H76: Sex | I76: survey | J76: 1860 | M76: 1643 | N76: 88.33333333 | O76: 80 | P76: 20 ind/cm/SD | Q76: Undersampled, see general explanation textbox 1C.
A77: SWE | B77: SWE | C77: 2017 | D77: Platichthys flesus | E77: Baltic Sea | F77: ICES | G77: SD22-32 | H77: Maturity | I77: survey | J77: 1860 | M77: 1643 | N77: 88.33333333 | O77: 80 | P77: 20 ind/cm/SD | Q77: Undersampled, see general explanation textbox 1C.
A78: SWE | B78: SWE | C78: 2017 | D78: Sprattus sprattus | E78: Baltic Sea | F78: ICES | G78: SD22-32 | H78: Age | I78: Market | J78: 4840 | M78: 4918 | N78: 101.6115702 | O78: 63 | P78: max 150 ind/box : 4 box/SD/quarter
A79: SWE | B79: SWE | C79: 2017 | D79: Sprattus sprattus | E79: Baltic Sea | F79: ICES | G79: SD22-32 | H79: Weight | I79: Market | J79: 4870 | M79: 4934 | N79: 101.3141684 | O79: 63 | P79: max 150 ind/box : 4 box/SD/quarter
A80: SWE | B80: SWE | C80: 2017 | D80: Sprattus sprattus | E80: Baltic Sea | F80: ICES | G80: SD22-32 | H80: Length | I80: Market | J80: 4870 | M80: 4934 | N80: 101.3141684 | O80: 63 | P80: max 150 ind/box : 4 box/SD/quarter
A81: SWE | B81: SWE | C81: 2017 | D81: Sprattus sprattus | E81: Baltic Sea | F81: ICES | G81: SD22-32 | H81: Sex | I81: Market | J81: 4820 | M81: 4934 | N81: 102.3651452 | O81: 63 | P81: max 150 ind/box : 4 box/SD/quarter
A82: SWE | B82: SWE | C82: 2017 | D82: Sprattus sprattus | E82: Baltic Sea | F82: ICES | G82: SD22-32 | H82: Maturity | I82: Market | J82: 4870 | M82: 4934 | N82: 101.3141684 | O82: 63 | P82: max 150 ind/box : 4 box/SD/quarter
A83: SWE | B83: SWE | C83: 2017 | D83: Sprattus sprattus | E83: Baltic Sea | F83: ICES | G83: SD22-32 | H83: Age | I83: Survey | J83: 1320 | M83: 1292 | N83: 97.87878788 | O83: 46 | P83: 5 ind/halfcm/haul
A84: SWE | B84: SWE | C84: 2017 | D84: Sprattus sprattus | E84: Baltic Sea | F84: ICES | G84: SD22-32 | H84: Weight | I84: Survey | J84: 1320 | M84: 1294 | N84: 98.03030303 | O84: 46 | P84: 5 ind/halfcm/haul
A85: SWE | B85: SWE | C85: 2017 | D85: Sprattus sprattus | E85: Baltic Sea | F85: ICES | G85: SD22-32 | H85: Length | I85: Survey | J85: 9360 | M85: 9401 | N85: 100.4380342 | O85: 46 | P85: subsample or total catch/haul
A86: SWE | B86: SWE | C86: 2017 | D86: Sprattus sprattus | E86: Baltic Sea | F86: ICES | G86: SD22-32 | H86: Sex | I86: Survey | J86: 1120 | M86: 1289 | N86: 115.0892857 | O86: 46 | P86: 5 ind/halfcm/haul
A87: SWE | B87: SWE | C87: 2017 | D87: Sprattus sprattus | E87: Baltic Sea | F87: ICES | G87: SD22-32 | H87: Maturity | I87: Survey | J87: 0 | M87: 0 | N87: NA | O87: 46 | P87: 0 | Q87: Not sampled for maturity.
A88: SWE | B88: SWE | C88: 2017 | D88: Anguilla anguilla | E88: North sea and Eastern Arctic | F88: EIFAAC/ICES/GFCM | G88: IIIa | H88: Age | I88: Survey | J88: 600 | M88: 645 | N88: =M88/J88 -> 1.075 | O88: 8 | P88: Set survey goal to sample 600 yellow eel in three different areas (200 per area) selected by length stratification (5-7 ind/cm). One area in SD 21 and two in SD 20.
A89: SWE | B89: SWE | C89: 2017 | D89: Anguilla anguilla | E89: North sea and Eastern Arctic | F89: EIFAAC/ICES/GFCM | G89: IIIa | H89: Weight | I89: Survey | J89: 600 | M89: 647 | N89: 1.078333333 | O89: 8 | P89: Set survey goal to sample 600 yellow eel in three different areas (200 per area) selected by length stratification (5-7 ind/cm). One area in SD 21 and two in SD 20.
A90: SWE | B90: SWE | C90: 2017 | D90: Anguilla anguilla | E90: North sea and Eastern Arctic | F90: EIFAAC/ICES/GFCM | G90: IIIa | H90: Length | I90: Survey | J90: 2270 | M90: 1904 | N90: 0.8387665198 | O90: 8 | P90: All individuals collected are measured for length. | Q90: In two out of the three areas sampled the catches of eel were lower than expected, thus the low % of achievement eventhough planned maximum effort was carried out.
A91: SWE | B91: SWE | C91: 2017 | D91: Anguilla anguilla | E91: North sea and Eastern Arctic | F91: EIFAAC/ICES/GFCM | G91: IIIa | H91: Sex | I91: Survey | J91: 600 | M91: 647 | N91: 1.078333333 | O91: 8 | P91: Set survey goal to sample 600 yellow eel in three different areas (200 per area) selected by length stratification (5-7 ind/cm). One area in SD 21 and two in SD 20.
A92: SWE | B92: SWE | C92: 2017 | D92: Anguilla anguilla | E92: North sea and Eastern Arctic | F92: EIFAAC/ICES/GFCM | G92: IIIa | H92: Maturity | I92: Survey | J92: Not applicable | L92: Sexual maturity: Yellow eels and silver eels are handled separately, hence sampling stratified on maturity. | M92: NA | N92: NA | O92: NA | P92: NA
A93: SWE | B93: SWE | C93: 2017 | D93: Clupea harengus | E93: North Sea and Eastern Arctic | F93: ICES | G93: SD22-24, IIIa | H93: Age | I93: Market | J93: 4515 | M93: 4627 | N93: 102.4806202 | O93: 73 | P93: max 150 ind/box : 4 box/SD/quarter
A94: SWE | B94: SWE | C94: 2017 | D94: Clupea harengus | E94: North Sea and Eastern Arctic | F94: ICES | G94: SD22-24, IIIa | H94: Weight | I94: Market | J94: 4520 | M94: 5239 | N94: 115.9070796 | O94: 73 | P94: max 150 ind/box : 4 box/SD/quarter
A95: SWE | B95: SWE | C95: 2017 | D95: Clupea harengus | E95: North Sea and Eastern Arctic | F95: ICES | G95: SD22-24, IIIa | H95: Length | I95: Market | J95: 4520 | M95: 5239 | N95: 115.9070796 | O95: 73 | P95: max 150 ind/box : 4 box/SD/quarter
A96: SWE | B96: SWE | C96: 2017 | D96: Clupea harengus | E96: North Sea and Eastern Arctic | F96: ICES | G96: SD22-24, IIIa | H96: Sex | I96: Market | J96: 4345 | M96: 4066 | N96: 93.57882624 | O96: 73 | P96: max 150 ind/box : 4 box/SD/quarter
A97: SWE | B97: SWE | C97: 2017 | D97: Clupea harengus | E97: North Sea and Eastern Arctic | F97: ICES | G97: SD22-24, IIIa | H97: Maturity | I97: Market | J97: 4400 | M97: 4137 | N97: 94.02272727 | O97: 73 | P97: max 150 ind/box : 4 box/SD/quarter
A98: SWE | B98: SWE | C98: 2017 | D98: Clupea harengus | E98: North Sea and Eastern Arctic | F98: ICES | G98: SD22-24, IIIa | H98: Age | I98: Survey | J98: 3090 | M98: 3036 | N98: 98.25242718 | O98: 100 | P98: 2 ind/halfcm/haul
A99: SWE | B99: SWE | C99: 2017 | D99: Clupea harengus | E99: North Sea and Eastern Arctic | F99: ICES | G99: SD22-24, IIIa | H99: Weight | I99: Survey | J99: 3090 | M99: 3043 | N99: 98.4789644 | O99: 100 | P99: 2 ind/halfcm/haul
A100: SWE | B100: SWE | C100: 2017 | D100: Clupea harengus | E100: North Sea and Eastern Arctic | F100: ICES | G100: SD22-24, IIIa | H100: Length | I100: Survey | J100: 14240 | M100: 16938 | N100: 118.9466292 | O100: 100 | P100: subsample or total catch/haul
A101: SWE | B101: SWE | C101: 2017 | D101: Clupea harengus | E101: North Sea and Eastern Arctic | F101: ICES | G101: SD22-24, IIIa | H101: Sex | I101: Survey | J101: 2595 | M101: 2721 | N101: 104.8554913 | O101: 100 | P101: 2 ind/halfcm/haul
A102: SWE | B102: SWE | C102: 2017 | D102: Clupea harengus | E102: North Sea and Eastern Arctic | F102: ICES | G102: SD22-24, IIIa | H102: Maturity | I102: Survey | J102: 3090 | M102: 3042 | N102: 98.44660194 | O102: 100 | P102: 2 ind/halfcm/haul
A103: SWE | B103: SWE | C103: 2017 | D103: Gadus morhua | E103: North Sea and Eastern Arctic | F103: ICES | G103: IIIaN | H103: Age | I103: Market | J103: 1985 | M103: 1979 | N103: 99.697733 | O103: 73 | P103: max 100 ind/EU scale size/quarter
A104: SWE | B104: SWE | C104: 2017 | D104: Gadus morhua | E104: North Sea and Eastern Arctic | F104: ICES | G104: IIIaN | H104: Weight | I104: Market | J104: 1985 | M104: 1982 | N104: 99.8488665 | O104: 73 | P104: max 100 ind/EU scale size/quarter
A105: SWE | B105: SWE | C105: 2017 | D105: Gadus morhua | E105: North Sea and Eastern Arctic | F105: ICES | G105: IIIaN | H105: Length | I105: Market | J105: 1985 | M105: 1982 | N105: 99.8488665 | O105: 73 | P105: generated from specimen
A106: SWE | B106: SWE | C106: 2017 | D106: Gadus morhua | E106: North Sea and Eastern Arctic | F106: ICES | G106: IIIaN | H106: Age | I106: Sea sampling | J106: 730 | M106: 694 | N106: 95.06849315 | O106: 102 | P106: 3ind/cm/trip
A107: SWE | B107: SWE | C107: 2017 | D107: Gadus morhua | E107: North Sea and Eastern Arctic | F107: ICES | G107: IIIaN | H107: Weight | I107: Sea sampling | J107: 730 | M107: 694 | N107: 95.06849315 | O107: 102 | P107: 3ind/cm/trip
A108: SWE | B108: SWE | C108: 2017 | D108: Gadus morhua | E108: North Sea and Eastern Arctic | F108: ICES | G108: IIIaN | H108: Length | I108: Sea sampling | J108: 730 | M108: 2811 | N108: 385.0684932 | O108: 102 | P108: total amount in subsample | Q108: Planned number is incorrect. Total amount in subsample is measured for length.
A109: SWE | B109: SWE | C109: 2017 | D109: Gadus morhua | E109: North Sea and Eastern Arctic | F109: ICES | G109: IIIaN | H109: Age | I109: Survey | J109: 870 | M109: 901 | N109: 103.5632184 | O109: 61 | P109: 1 ind/cm/haul
A110: SWE | B110: SWE | C110: 2017 | D110: Gadus morhua | E110: North Sea and Eastern Arctic | F110: ICES | G110: IIIaN | H110: Weight | I110: Survey | J110: 870 | M110: 901 | N110: 103.5632184 | O110: 61 | P110: 1 ind/cm/haul
A111: SWE | B111: SWE | C111: 2017 | D111: Gadus morhua | E111: North Sea and Eastern Arctic | F111: ICES | G111: IIIaN | H111: Length | I111: Survey | J111: 2520 | M111: 2524 | N111: 100.1587302 | O111: 61 | P111: subsample or total catch/haul
A112: SWE | B112: SWE | C112: 2017 | D112: Gadus morhua | E112: North Sea and Eastern Arctic | F112: ICES | G112: IIIaN | H112: Sex | I112: Survey | J112: 840 | M112: 840 | N112: 100 | O112: 61 | P112: 1 ind/cm/haul
A113: SWE | B113: SWE | C113: 2017 | D113: Gadus morhua | E113: North Sea and Eastern Arctic | F113: ICES | G113: IIIaN | H113: Maturity | I113: Survey | J113: 840 | M113: 840 | N113: 100 | O113: 61 | P113: 1 ind/cm/haul
A114: SWE | B114: SWE | C114: 2017 | D114: Gadus morhua | E114: North Sea and Eastern Arctic | F114: ICES | G114: IIIaS | H114: Age | I114: Market | J114: 1140 | M114: 1288 | N114: 112.9824561 | O114: 63 | P114: max 100 ind/EU scale size/quarter
A115: SWE | B115: SWE | C115: 2017 | D115: Gadus morhua | E115: North Sea and Eastern Arctic | F115: ICES | G115: IIIaS | H115: Weight | I115: Market | J115: 1140 | M115: 1288 | N115: 112.9824561 | O115: 63 | P115: max 100 ind/EU scale size/quarter
A116: SWE | B116: SWE | C116: 2017 | D116: Gadus morhua | E116: North Sea and Eastern Arctic | F116: ICES | G116: IIIaS | H116: Length | I116: Market | J116: 1140 | M116: 1288 | N116: =M116/J116*100 -> 112.9824561 | O116: 63 | P116: generated from specimen
A117: SWE | B117: SWE | C117: 2017 | D117: Gadus morhua | E117: North Sea and Eastern Arctic | F117: ICES | G117: IIIaS | H117: Age | I117: Sea sampling | J117: 550 | M117: 479 | N117: 87.09090909 | O117: 25 | P117: 3ind/cm/trip | Q117: Slightly under sampled due to low catches of cod and decreased number of lengthclasses.
A118: SWE | B118: SWE | C118: 2017 | D118: Gadus morhua | E118: North Sea and Eastern Arctic | F118: ICES | G118: IIIaS | H118: Weight | I118: Sea sampling | J118: 550 | M118: 479 | N118: 87.09090909 | O118: 25 | P118: 3ind/cm/trip | Q118: Slightly under sampled due to low catches of cod and decreased number of lengthclasses.
A119: SWE | B119: SWE | C119: 2017 | D119: Gadus morhua | E119: North Sea and Eastern Arctic | F119: ICES | G119: IIIaS | H119: Length | I119: Sea sampling | J119: 550 | M119: 1012 | N119: 184 | O119: 25 | P119: total amount in subsample | Q119: Planned number is incorrect. Total amount in subsample is measured for length.
A120: SWE | B120: SWE | C120: 2017 | D120: Gadus morhua | E120: North Sea and Eastern Arctic | F120: ICES | G120: IIIaS | H120: Age | I120: Survey | J120: 570 | M120: 286 | N120: 50.1754386 | O120: 39 | P120: 1 ind/cm/haul | Q120: Undersampled, see general explanation textbox 1C.
A121: SWE | B121: SWE | C121: 2017 | D121: Gadus morhua | E121: North Sea and Eastern Arctic | F121: ICES | G121: IIIaS | H121: Weight | I121: Survey | J121: 570 | M121: 286 | N121: 50.1754386 | O121: 39 | P121: 1 ind/cm/haul | Q121: Undersampled, see general explanation textbox 1C.
A122: SWE | B122: SWE | C122: 2017 | D122: Gadus morhua | E122: North Sea and Eastern Arctic | F122: ICES | G122: IIIaS | H122: Length | I122: Survey | J122: 955 | M122: 649 | N122: 67.95811518 | O122: 39 | P122: subsample or total catch/haul | Q122: Undersampled, see general explanation textbox 1C.
A123: SWE | B123: SWE | C123: 2017 | D123: Gadus morhua | E123: North Sea and Eastern Arctic | F123: ICES | G123: IIIaS | H123: Sex | I123: Survey | J123: 570 | M123: 269 | N123: 47.19298246 | O123: 39 | P123: 1 ind/cm/haul | Q123: Undersampled, see general explanation textbox 1C.
A124: SWE | B124: SWE | C124: 2017 | D124: Gadus morhua | E124: North Sea and Eastern Arctic | F124: ICES | G124: IIIaS | H124: Maturity | I124: Survey | J124: 570 | M124: 269 | N124: 47.19298246 | O124: 39 | P124: 1 ind/cm/haul | Q124: Undersampled, see general explanation textbox 1C.
A125: SWE | B125: SWE | C125: 2017 | D125: Glyptocephalus cynoglossus | E125: North Sea and Eastern Arctic | F125: ICES | G125: IIIa | H125: Age | I125: Market + Seasampling | J125: 1090 | M125: 564 | N125: 51.74311927 | O125: 52 | P125: Market: first 100 from landing fraction or total catch Sea: Length stratified, 3 per cm | Q125: Undersampled, Market samples are collected on observer trips, few fish in catches and misunderstanding in sampling effort. Costly to compensate by sampling from harbour.
A126: SWE | B126: SWE | C126: 2017 | D126: Glyptocephalus cynoglossus | E126: North Sea and Eastern Arctic | F126: ICES | G126: IIIa | H126: Weight | I126: Market + Seasampling | J126: 1090 | M126: 564 | N126: 51.74311927 | O126: 52 | P126: Market: first 100 from landing fraction or total catch Sea: Length stratified, 3 per cm | Q126: Undersampled, Market samples are collected on observer trips, few fish in catches and misunderstanding in sampling effort. Costly to compensate by sampling from harbour.
A127: SWE | B127: SWE | C127: 2017 | D127: Glyptocephalus cynoglossus | E127: North Sea and Eastern Arctic | F127: ICES | G127: IIIa | H127: Length | I127: Market + Seasampling | J127: 1090 | M127: 941 | N127: 86.33027523 | O127: 52 | P127: Market: first 100 from landing fraction or total catch Sea: Length stratified, 3 per cm | Q127: Slightly Undersampled, Market samples are collected on observer trips, few fish in catches and misunderstanding in sampling effort. Costly to compensate by sampling from harbour.
A128: SWE | B128: SWE | C128: 2017 | D128: Glyptocephalus cynoglossus | E128: North Sea and Eastern Arctic | F128: ICES | G128: IIIa | H128: Sex | I128: Market + Seasampling | J128: 645 | M128: 379 | N128: 58.75968992 | O128: 52 | P128: Market: first 100 from landing fraction or total catch Sea: Length stratified, 3 per cm | Q128: Undersampled, Market samples are collected on observer trips, few fish in catches and misunderstanding in sampling effort. Costly to compensate by sampling from harbour.
A129: SWE | B129: SWE | C129: 2017 | D129: Glyptocephalus cynoglossus | E129: North Sea and Eastern Arctic | F129: ICES | G129: IIIa | H129: Maturity | I129: Market + Seasampling | J129: 645 | M129: 379 | N129: 58.75968992 | O129: 52 | P129: Market: first 100 from landing fraction or total catch Sea: Length stratified, 3 per cm | Q129: Undersampled, Market samples are collected on observer trips, few fish in catches and misunderstanding in sampling effort. Costly to compensate by sampling from harbour.
A130: SWE | B130: SWE | C130: 2017 | D130: Glyptocephalus cynoglossus | E130: North Sea and Eastern Arctic | F130: ICES | G130: IIIa | H130: Age | I130: Survey | J130: 305 | M130: 87 | N130: 28.52459016 | O130: 100 | P130: Sea: Length stratified, 3 ind per cm per trip | Q130: Undersampled, see general explanation textbox 1C.
A131: SWE | B131: SWE | C131: 2017 | D131: Glyptocephalus cynoglossus | E131: North Sea and Eastern Arctic | F131: ICES | G131: IIIa | H131: Weight | I131: Survey | J131: 305 | M131: 87 | N131: 28.52459016 | O131: 100 | P131: total catch | Q131: Undersampled, see general explanation textbox 1C.
A132: SWE | B132: SWE | C132: 2017 | D132: Glyptocephalus cynoglossus | E132: North Sea and Eastern Arctic | F132: ICES | G132: IIIa | H132: Length | I132: Survey | J132: 305 | M132: 87 | N132: 28.52459016 | O132: 100 | P132: total catch | Q132: Undersampled, see general explanation textbox 1C.
A133: SWE | B133: SWE | C133: 2017 | D133: Glyptocephalus cynoglossus | E133: North Sea and Eastern Arctic | F133: ICES | G133: IIIa | H133: Sex | I133: Survey | J133: 290 | M133: 87 | N133: 30 | O133: 100 | P133: total catch | Q133: Undersampled, see general explanation textbox 1C.
A134: SWE | B134: SWE | C134: 2017 | D134: Glyptocephalus cynoglossus | E134: North Sea and Eastern Arctic | F134: ICES | G134: IIIa | H134: Maturity | I134: Survey | J134: 290 | M134: 87 | N134: 30 | O134: 100 | P134: total catch | Q134: Undersampled, see general explanation textbox 1C.
A135: SWE | B135: SWE | C135: 2017 | D135: Melanogrammus aeglefinus | E135: North Sea and Eastern Arctic | F135: ICES | G135: IV, IIIa | H135: Age | I135: Survey | J135: 485 | M135: 405 | N135: 83.50515464 | O135: 100 | P135: 1 ind/cm/haul | Q135: Undersampled, see general explanation textbox 1C.
A136: SWE | B136: SWE | C136: 2017 | D136: Melanogrammus aeglefinus | E136: North Sea and Eastern Arctic | F136: ICES | G136: IV, IIIa | H136: Weight | I136: Survey | J136: 485 | M136: 405 | N136: 83.50515464 | O136: 100 | P136: 1 ind/cm/haul | Q136: Undersampled, see general explanation textbox 1C.
A137: SWE | B137: SWE | C137: 2017 | D137: Melanogrammus aeglefinus | E137: North Sea and Eastern Arctic | F137: ICES | G137: IV, IIIa | H137: Length | I137: Survey | J137: 1965 | M137: 1924 | N137: 97.91348601 | O137: 100 | P137: subsample or total catch/haul
A138: SWE | B138: SWE | C138: 2017 | D138: Melanogrammus aeglefinus | E138: North Sea and Eastern Arctic | F138: ICES | G138: IV, IIIa | H138: Sex | I138: Survey | J138: 415 | M138: 327 | N138: 78.79518072 | O138: 100 | P138: 1 ind/cm/haul | Q138: Undersampled, see general explanation textbox 1C.
A139: SWE | B139: SWE | C139: 2017 | D139: Melanogrammus aeglefinus | E139: North Sea and Eastern Arctic | F139: ICES | G139: IV, IIIa | H139: Maturity | I139: Survey | J139: 415 | M139: 327 | N139: 78.79518072 | O139: 100 | P139: 1 ind/cm/haul | Q139: Undersampled, see general explanation textbox 1C.
A140: SWE | B140: SWE | C140: 2017 | D140: Nephrops norvegicus | E140: North Sea and Eastern Arctic | F140: ICES | G140: IIIa, FU3 | H140: Weight | I140: Sea sampling | J140: NA | L140: standard weight-length key is used in both Sweden Denmark and Norway. Weights are not taken during sea sampling. | M140: NA | O140: NA | P140: NA
A141: SWE | B141: SWE | C141: 2017 | D141: Nephrops norvegicus | E141: North Sea and Eastern Arctic | F141: ICES | G141: IIIa, FU3 | H141: Length | I141: Sea sampling | J141: 8855 | M141: 10311 | N141: =100*M141/J141 -> 116.4426877 | O141: 31 | P141: Pots; 3 trips/quarter sampled. Trawl with grid; 3 trips/quarter sampled. Trawls without grid;catch-dependent, if there is a landing of Nephrops, then there is a sample.
A142: SWE | B142: SWE | C142: 2017 | D142: Nephrops norvegicus | E142: North Sea and Eastern Arctic | F142: ICES | G142: IIIa, FU3 | H142: Sex | I142: Sea sampling | J142: 8855 | M142: 10311 | N142: =100*M142/J142 -> 116.4426877 | O142: 31 | P142: Pots; 3 trips/quarter sampled. Trawl with grid; 3 trips/quarter sampled. Trawls without grid;catch-dependent, if there is a landing of Nephrops, then there is a sample.
A143: SWE | B143: SWE | C143: 2017 | D143: Nephrops norvegicus | E143: North Sea and Eastern Arctic | F143: ICES | G143: IIIa, FU3 | H143: Maturity | I143: Sea sampling | J143: 8855 | M143: 10311 | N143: 116.4426877 | O143: 31 | P143: Pots; 3 trips/quarter sampled. Trawl with grid; 3 trips/quarter sampled. Trawls without grid;catch-dependent, if there is a landing of Nephrops, then there is a sample.
A144: SWE | B144: SWE | C144: 2017 | D144: Nephrops norvegicus | E144: North Sea and Eastern Arctic | F144: ICES | G144: IIIa, FU4 | H144: Weight | I144: Sea sampling | J144: NA | L144: standard weight-length key is used in both Sweden Denmark and Norway. Weights are not taken during sea sampling. | M144: NA | O144: NA | P144: NA
A145: SWE | B145: SWE | C145: 2017 | D145: Nephrops norvegicus | E145: North Sea and Eastern Arctic | F145: ICES | G145: IIIa, FU4 | H145: Length | I145: Sea sampling | J145: 4925 | M145: 7497 | N145: 152.2233503 | O145: 22 | P145: Trawl with grid; 3 trips/quarter sampled. Trawls without grid;catch-dependent, if there is a landing of Nephrops, then there is a sample.
A146: SWE | B146: SWE | C146: 2017 | D146: Nephrops norvegicus | E146: North Sea and Eastern Arctic | F146: ICES | G146: IIIa, FU4 | H146: Sex | I146: Sea sampling | J146: 4925 | M146: 7497 | N146: 152.2233503 | O146: 22 | P146: Trawl with grid; 3 trips/quarter sampled. Trawls without grid;catch-dependent, if there is a landing of Nephrops, then there is a sample.
A147: SWE | B147: SWE | C147: 2017 | D147: Nephrops norvegicus | E147: North Sea and Eastern Arctic | F147: ICES | G147: IIIa, FU4 | H147: Maturity | I147: Sea sampling | J147: 4925 | M147: 7497 | N147: 152.2233503 | O147: 22 | P147: Trawl with grid; 3 trips/quarter sampled. Trawls without grid;catch-dependent, if there is a landing of Nephrops, then there is a sample.
A148: SWE | B148: SWE | C148: 2017 | D148: Pandalus borealis | E148: North Sea and Eastern Arctic | F148: ICES | G148: IIIa, IVa east | H148: Weight | I148: Sea sampling | J148: 3840 | M148: 6079 | N148: =M148/J148*100 -> 158.3072917 | O148: 45 | P148: 1 samp/trip á 6 trips per quarter | Q148: Slightly oversampled but according to sampling protocol.
A149: SWE | B149: SWE | C149: 2017 | D149: Pandalus borealis | E149: North Sea and Eastern Arctic | F149: ICES | G149: IIIa, IVa east | H149: Length | I149: Sea sampling | J149: 13150 | M149: 15791 | N149: 120.0836502 | O149: 45 | P149: 1 samp/trip á 6 trips per quarter
A150: SWE | B150: SWE | C150: 2017 | D150: Pandalus borealis | E150: North Sea and Eastern Arctic | F150: ICES | G150: IIIa, IVa east | H150: Sex | I150: Sea sampling | J150: 13150 | M150: 15791 | N150: 120.0836502 | O150: 45 | P150: 1 samp/trip á 6 trips per quarter
A151: SWE | B151: SWE | C151: 2017 | D151: Pandalus borealis | E151: North Sea and Eastern Arctic | F151: ICES | G151: IIIa, IVa east | H151: Maturity | I151: Sea sampling | J151: 13150 | M151: 15791 | N151: 120.0836502 | O151: 45 | P151: 1 samp/trip á 6 trips per quarter
A152: SWE | B152: SWE | C152: 2017 | D152: Pleuronectes platessa | E152: North Sea and Eastern Arctic | F152: ICES | G152: IIIa | H152: Age | I152: Survey | J152: 1525 | M152: 882 | N152: 57.83606557 | O152: 100 | P152: 1 ind/cm/haul | Q152: Undersampled, see general explanation textbox 1C.
A153: SWE | B153: SWE | C153: 2017 | D153: Pleuronectes platessa | E153: North Sea and Eastern Arctic | F153: ICES | G153: IIIa | H153: Weight | I153: Survey | J153: 1525 | M153: 890 | N153: 58.36065574 | O153: 100 | P153: 1 ind/cm/haul | Q153: Undersampled, see general explanation textbox 1C.
A154: SWE | B154: SWE | C154: 2017 | D154: Pleuronectes platessa | E154: North Sea and Eastern Arctic | F154: ICES | G154: IIIa | H154: Length | I154: Survey | J154: 5230 | M154: 3111 | N154: 59.48374761 | O154: 100 | P154: subsample or total catch/haul | Q154: Undersampled, see general explanation textbox 1C.
A155: SWE | B155: SWE | C155: 2017 | D155: Pleuronectes platessa | E155: North Sea and Eastern Arctic | F155: ICES | G155: IIIa | H155: Sex | I155: Survey | J155: 1525 | M155: 878 | N155: 57.57377049 | O155: 100 | P155: 1 ind/cm/haul | Q155: Undersampled, see general explanation textbox 1C.
A156: SWE | B156: SWE | C156: 2017 | D156: Pleuronectes platessa | E156: North Sea and Eastern Arctic | F156: ICES | G156: IIIa | H156: Maturity | I156: Survey | J156: 1525 | M156: 878 | N156: 57.57377049 | O156: 100 | P156: 1 ind/cm/haul | Q156: Undersampled, see general explanation textbox 1C.
A157: SWE | B157: SWE | C157: 2017 | D157: Pleuronectes platessa | E157: North Sea and Eastern Arctic | F157: ICES | G157: IIIa | H157: Age | I157: Sea sampling | J157: 1120 | M157: 1577 | N157: 140.8035714 | O157: 153 | P157: 3ind/cm/trip
A158: SWE | B158: SWE | C158: 2017 | D158: Pleuronectes platessa | E158: North Sea and Eastern Arctic | F158: ICES | G158: IIIa | H158: Weight | I158: Sea sampling | J158: 1120 | M158: 1590 | N158: 141.9642857 | O158: 153 | P158: 3ind/cm/trip
A159: SWE | B159: SWE | C159: 2017 | D159: Pleuronectes platessa | E159: North Sea and Eastern Arctic | F159: ICES | G159: IIIa | H159: Length | I159: Sea sampling | J159: 1120 | M159: 5704 | N159: 509.2857143 | O159: 153 | P159: total amount in subsample | Q159: Planned number is incorrect. Total amount in subsample is measured for length.
A160: SWE | B160: SWE | C160: 2017 | D160: Sprattus sprattus | E160: North Sea and Eastern Arctic | F160: ICES | G160: IIIa | H160: Age | I160: Survey | J160: 1680 | M160: 1262 | N160: 75.11904762 | O160: 100 | P160: 5 ind/halfcm/haul | Q160: Undersampled, see general explanation textbox 1C.
A161: SWE | B161: SWE | C161: 2017 | D161: Sprattus sprattus | E161: North Sea and Eastern Arctic | F161: ICES | G161: IIIa | H161: Weight | I161: Survey | J161: 1680 | M161: 1265 | N161: 75.29761905 | O161: 100 | P161: 5 ind/halfcm/haul | Q161: Undersampled, see general explanation textbox 1C.
A162: SWE | B162: SWE | C162: 2017 | D162: Sprattus sprattus | E162: North Sea and Eastern Arctic | F162: ICES | G162: IIIa | H162: Length | I162: Survey | J162: 5370 | M162: 3686 | N162: 68.6405959 | O162: 100 | P162: subsample or total catch/haul | Q162: Undersampled, see general explanation textbox 1C.
A163: SWE | B163: SWE | C163: 2017 | D163: Sprattus sprattus | E163: North Sea and Eastern Arctic | F163: ICES | G163: IIIa | H163: Sex | I163: Survey | J163: 1600 | M163: 1258 | N163: 78.625 | O163: 100 | P163: 5 ind/halfcm/haul | Q163: Undersampled, see general explanation textbox 1C.
A164: SWE | B164: SWE | C164: 2017 | D164: Sprattus sprattus | E164: North Sea and Eastern Arctic | F164: ICES | G164: IIIa | H164: Maturity | I164: Survey | J164: 1680 | M164: 1265 | N164: 75.29761905 | O164: 100 | P164: 5 ind/halfcm/haul | Q164: Undersampled, see general explanation textbox 1C.
A165: SWE | B165: SWE | C165: 2017 | D165: Sprattus sprattus | E165: North Sea and Eastern Arctic | F165: ICES | G165: IIIa | H165: Age | I165: Market | J165: 1140 | M165: 410 | N165: 35.96491228 | O165: 4 | P165: max 150 ind/box : 4 box/SD/quarter | Q165: Undersampled due to to low fishing effort /landings.
A166: SWE | B166: SWE | C166: 2017 | D166: Sprattus sprattus | E166: North Sea and Eastern Arctic | F166: ICES | G166: IIIa | H166: Weight | I166: Market | J166: 1140 | M166: 410 | N166: 35.96491228 | O166: 4 | P166: max 150 ind/box : 4 box/SD/quarter | Q166: Undersampled due to to low fishing effort /landings.
A167: SWE | B167: SWE | C167: 2017 | D167: Sprattus sprattus | E167: North Sea and Eastern Arctic | F167: ICES | G167: IIIa | H167: Length | I167: Market | J167: 1140 | M167: 410 | N167: 35.96491228 | O167: 4 | P167: max 150 ind/box : 4 box/SD/quarter | Q167: Undersampled due to to low fishing effort /landings.
A168: SWE | B168: SWE | C168: 2017 | D168: Sprattus sprattus | E168: North Sea and Eastern Arctic | F168: ICES | G168: IIIa | H168: Sex | I168: Market | J168: 1140 | M168: 410 | N168: 35.96491228 | O168: 4 | P168: max 150 ind/box : 4 box/SD/quarter | Q168: Undersampled due to to low fishing effort /landings.
A169: SWE | B169: SWE | C169: 2017 | D169: Sprattus sprattus | E169: North Sea and Eastern Arctic | F169: ICES | G169: IIIa | H169: Maturity | I169: Market | J169: 1140 | M169: 410 | N169: 35.96491228 | O169: 4 | P169: max 150 ind/box : 4 box/SD/quarter | Q169: Undersampled due to to low fishing effort /landings.
A170: SWE | B170: SWE | C170: 2017 | D170: Trisopterus esmarki | E170: North Sea and Eastern Arctic | F170: ICES | G170: IIIa | H170: Age | I170: Survey | J170: 245 | M170: 430 | N170: 175.5102041 | O170: 100 | P170: 1 ind/cm/haul | Q170: Oversampled, see general explanation in textbox 1C.
A171: SWE | B171: SWE | C171: 2017 | D171: Trisopterus esmarki | E171: North Sea and Eastern Arctic | F171: ICES | G171: IIIa | H171: Weight | I171: Survey | J171: 245 | M171: 432 | N171: 176.3265306 | O171: 100 | P171: 1 ind/cm/haul | Q171: Oversampled, see general explanation in textbox 1C.
A172: SWE | B172: SWE | C172: 2017 | D172: Trisopterus esmarki | E172: North Sea and Eastern Arctic | F172: ICES | G172: IIIa | H172: Length | I172: Survey | J172: 2370 | M172: 4502 | N172: 189.9578059 | O172: 100 | P172: subsample or total catch/haul | Q172: Oversampled, see general explanation in textbox 1C.
A173: SWE | B173: SWE | C173: 2017 | D173: Trisopterus esmarki | E173: North Sea and Eastern Arctic | F173: ICES | G173: IIIa | H173: Sex | I173: Survey | J173: 170 | M173: 324 | N173: 190.5882353 | O173: 100 | P173: 1 ind/cm/haul | Q173: Oversampled, see general explanation in textbox 1C.
A174: SWE | B174: SWE | C174: 2017 | D174: Trisopterus esmarki | E174: North Sea and Eastern Arctic | F174: ICES | G174: IIIa | H174: Maturity | I174: Survey | J174: 170 | M174: 325 | N174: 191.1764706 | O174: 100 | P174: 1 ind/cm/haul | Q174: Oversampled, see general explanation in textbox 1C.
A175: SWE | B175: SWE | C175: 2017 | D175: Pollachius virens | E175: North Sea and Eastern Arctic | F175: ICES | G175: IIIa | H175: Age | I175: Survey | J175: 190 | M175: 261 | N175: 137.3684211 | O175: 100 | P175: 1 ind/cm/haul
A176: SWE | B176: SWE | C176: 2017 | D176: Pollachius virens | E176: North Sea and Eastern Arctic | F176: ICES | G176: IIIa | H176: Weight | I176: Survey | J176: 190 | M176: 261 | N176: 137.3684211 | O176: 100 | P176: 1 ind/cm/haul
A177: SWE | B177: SWE | C177: 2017 | D177: Pollachius virens | E177: North Sea and Eastern Arctic | F177: ICES | G177: IIIa | H177: Length | I177: Survey | J177: 360 | M177: 744 | N177: 206.6666667 | O177: 100 | P177: subsample or total catch/haul | Q177: Oversampled, see general explanation in textbox 1C.
A178: SWE | B178: SWE | C178: 2017 | D178: Pollachius virens | E178: North Sea and Eastern Arctic | F178: ICES | G178: IIIa | H178: Sex | I178: Survey | J178: 190 | M178: 241 | N178: 126.8421053 | O178: 100 | P178: 1 ind/cm/haul
A179: SWE | B179: SWE | C179: 2017 | D179: Pollachius virens | E179: North Sea and Eastern Arctic | F179: ICES | G179: IIIa | H179: Maturity | I179: Survey | J179: 190 | M179: 241 | N179: 126.8421053 | O179: 100 | P179: 1 ind/cm/haul
A180: SWE | B180: SWE | C180: 2017 | D180: Merlangius merlangus | E180: North Sea and Eastern Arctic | F180: ICES | G180: IIIa | H180: Age | I180: Survey | J180: 840 | M180: 1507 | N180: 179.4047619 | O180: 100 | P180: 1 ind/cm/haul | Q180: Oversampled, see general explanation in textbox 1C.
A181: SWE | B181: SWE | C181: 2017 | D181: Merlangius merlangus | E181: North Sea and Eastern Arctic | F181: ICES | G181: IIIa | H181: Weight | I181: Survey | J181: 850 | M181: 1510 | N181: 177.6470588 | O181: 100 | P181: 1 ind/cm/haul | Q181: Oversampled, see general explanation in textbox 1C.
A182: SWE | B182: SWE | C182: 2017 | D182: Merlangius merlangus | E182: North Sea and Eastern Arctic | F182: ICES | G182: IIIa | H182: Length | I182: Survey | J182: 850 | M182: 11237 | N182: 1322 | O182: 100 | P182: subsample or total catch/haul | Q182: Planned number is incorrect. A subsample or tatal catch/ haul is measured for length.
A183: SWE | B183: SWE | C183: 2017 | D183: Merlangius merlangus | E183: North Sea and Eastern Arctic | F183: ICES | G183: IIIa | H183: Sex | I183: Survey | J183: 690 | M183: 1295 | N183: 187.6811594 | O183: 100 | P183: 1 ind/cm/haul | Q183: Oversampled, see general explanation in textbox 1C.
A184: SWE | B184: SWE | C184: 2017 | D184: Merlangius merlangus | E184: North Sea and Eastern Arctic | F184: ICES | G184: IIIa | H184: Maturity | I184: Survey | J184: 690 | M184: 1297 | N184: 187.9710145 | O184: 100 | P184: 1 ind/cm/haul | Q184: Oversampled, see general explanation in textbox 1C.

Sheet Table1D Recreational Fisheries
A1: Table 1D: Recreational fisheries
X2: WP years | Y2: 2017-2019
X3: AR year | Y3: 2017
A4: MS | B4: Sampling year | C4: Area/EMU | D4: RFMO/RFO/IO | E4: Species | F4: Applicable (Species present in the MS?) | G4: Reasons for not sampling | H4: Threshold (Y/N) | I4: Annual estimate of catch? (Y/N) | J4: Annual percentage of released catch? (Y/N) | K4: Collection of catch composition data? (Y/N) | L4: Type of Survey | M4: Comments | N4: Unique Survey ID or Name of sampling scheme (Linked to Table 5A) | O4: Is the survey part of a pilot study or part of an established programme? | P4: Frequency | Q4: Is the sampling design documented? (Linked to Table 5A) | R4: Are non-response and refusal recorded? (Linked to Table 5A) | S4: Are the editing and imputation methods documented? (Linked to Table 5A) | T4: Estimation of the yearly weight and numbers of catch (Y/N) | U4: Estimation of the yearly percentage release (Y/N) | V4: Collection of catch composition data (Y/N) | W4: Evaluated by external experts/bodies (Y/N) | X4: Conform with accepted standards Y/N | Y4: AR Comments
A5: SWE | B5: 2017 | C5: Baltic Sea | D5: ICES | E5: Salmo salar | F5: Y | H5: N | I5: Y | J5: Y | K5: Y | L5: Cencus river catches and a yearly postal questionnaire sent to approximately 10,000 randomly selected permanent residents in Sweden, age 16-80 year. The questionnaire will be compared with previous years questionnaires and on site studies regarding trolling an recreational fisheries with trap nets | M5: Recreational fisheries is defined as all fishing activities carried out by those without a commercial fishing license. | N5: Recreational river catches survey & recreational fisheries- postal questionnaire | O5: Routine | P5: annual | Q5: Y | R5: N for River catches, Y for postal questionair | S5: Y | T5: Y (for River catch survey numbers and weight, for postal questionaire weight) | U5: N for postal questionaire, Y for river catches survey | V5: Y | W5: Y | X5: Y | Y5: WGBAST
A6: SWE | B6: 2017 | C6: Baltic Sea | D6: ICES | E6: Salmo trutta | F6: Y | H6: Y | I6: Y | J6: N | K6: N | L6: A national yearly postal questionnaire sent to 11,000 randomly selected permanent residents in Sweden, age 16-80 year. The questionnaire will be compared with previous years questionnaires and on site studies regarding trolling an recreational fisheries with trap nets. | M6: Recreational fisheries is defined as all fishing activities carried out by those without a commercial fishing license. | N6: recreational fisheries- postal questionnaire | O6: Routine | P6: annual | Q6: Y | R6: Y | S6: Y | T6: Y (weight) | U6: N | V6: N | W6: Y | X6: Y | Y6: WGTRUTTA
A7: SWE | B7: 2017 | C7: Baltic Sea | D7: ICES, Helcom | E7: Anguilla anguilla | F7: Y | G7: Recreational catches is not allowed due to Swedish legislation (FIFS 2004:36) | H7: Y | I7: N | J7: N | K7: N | L7: NA | N7: NA | O7: NA | P7: NA | Q7: NA | R7: NA | S7: NA | T7: NA | U7: NA | V7: NA | W7: NA | X7: NA
A8: SWE | B8: 2017 | C8: Baltic Sea | D8: ICES | E8: Gadus morhua | F8: Y | H8: N | I8: Y | J8: N | K8: Y | L8: A yerly postal questionnaire sent to 11,0000 randomly selected permanent residents in Sweden, age 16-80 year. The questionnaire will be combined with a pilotstudy as an on site study for 2017 -2018 in ICES area 24 and 23 to get more detailed information on catches and catch composition data | M8: See details about Pilot Study1 in text box | N8: SLU-MRFS | O8: Pilot study | P8: Quarterly | Q8: Y, on internal server | R8: Y | S8: Y, on internal server | T8: Y | U8: Y | V8: Y | W8: Y (WGRFS/WGBFAS) | X8: Y | Y8: Intercepting methods concerning a rare occurance as RecFish need substantial sampling or supporting information.
A9: SWE | B9: 2017 | C9: North Sea and Eastern Arctic | D9: NASCO, ICES, Ospar, Helcom | E9: Salmo salar | F9: Y | H9: Y | I9: Y | J9: N | K9: N | L9: A postal questionnaire sent to 11,000 randomly selected permanent residents in Sweden, age 16-80 year | M9: Recreational fisheries is defined as all fishing activities carried out by those without a commercial fishing license. | N9: recreational fisheries- postal questionnaire | O9: Routine | P9: annual | Q9: Y | R9: Y | S9: Y | T9: Y (weight) | U9: N | V9: N | W9: Y | X9: Y | Y9: WGNAS
A10: SWE | B10: 2017 | C10: North Sea and Eastern Arctic | D10: EIFAAC/ICES | E10: Anguilla anguilla | F10: Y | G10: Recreational catches is not allowed due to Swedish legislation (FIFS 2004:36) | H10: Y | I10: N | J10: N | K10: N | L10: NA | N10: NA | O10: NA | P10: NA | Q10: NA | R10: NA | S10: NA | T10: NA | U10: NA | V10: NA | W10: NA | X10: NA
A11: SWE | B11: 2017 | C11: Freshwater Sweden (one single EMU only) | D11: EIFAAC/ICES | E11: Anguilla anguilla | F11: Y | G11: NA | H11: N | I11: Y | J11: Y | K11: Y | L11: To be decided | M11: See details about Pilot Study 1 in text box | N11: NA | O11: NA | P11: NA | Q11: NA | R11: NA | S11: NA | T11: NA | U11: NA | V11: NA | W11: NA | X11: NA | Y11: No pilot study was implemented as recreational catches is not allowed due to Swedish legislation (FIFS 2004:36).
A12: SWE | B12: 2017 | C12: North Sea and Eastern Arctic | D12: ICES | E12: Gadus morhua | F12: Y | H12: N | I12: Y | J12: N | K12: N | L12: A postal questionnaire sent to 11,000 randomly selected permanent residents in Sweden, age 16-80 year | M12: Recreational fisheries is defined as all fishing activities carried out by those without a commercial fishing license. | N12: recreational fisheries- postal questionnaire | O12: Routine | P12: annual | Q12: Y | R12: Y | S12: Y | T12: N (only weight) | U12: N | V12: N | W12: N | X12: Y | Y12: For Skagerrak and Kattegat
A13: SWE | B13: 2017 | C13: North Sea and Eastern Arctic | D13: ICES, Ospar, Helcom | E13: Pollachius pollachius | F13: Y | H13: Y | I13: Y | J13: N | K13: N | L13: A postal questionnaire sent to 11,000 randomly selected permanent residents in Sweden, age 16-80 year | M13: Recreational fisheries is defined as all fishing activities carried out by those without a commercial fishing license. | N13: recreational fisheries- postal questionnaire | O13: Routine | P13: annual | Q13: Y | R13: Y | S13: Y | T13: N (only weight) | U13: N | V13: N | W13: N | X13: Y | Y13: For Skagerrak and Kattegat
A14: SWE | B14: 2017 | C14: North Sea and Eastern Arctic | D14: ICES, Ospar, Helcom | E14: Dicentrarchus labrax | F14: Y | G14: Recreational catches is not consider to be a limiting factor for populations of labrax in Swedish waters, their occurence is mainly regulated by warm water outflows. | H14: Y | I14: N | J14: N | K14: N | L14: NA | N14: NA | O14: NA | P14: NA | Q14: NA | R14: NA | S14: NA | T14: NA | U14: NA | V14: NA | W14: NA | X14: NA | Y14: NA
A15: SWE | B15: 2017 | C15: North Sea and Eastern Arctic | D15: ICES, Ospar, Helcom | E15: Elasmobranchii, Rajiformes | F15: Y | G15: Recreational catches is nearly none due to Swedish legislation (FIFS 2004:36). | H15: Y | I15: N | J15: N | K15: N | L15: NA | N15: NA | O15: NA | P15: NA | Q15: NA | R15: NA | S15: NA | T15: NA | U15: NA | V15: NA | W15: NA | X15: NA | Y15: NA

Sheet Table1E Anadromous catadromous
A1: Table 1E: Anadromous and catadromous species data collection in fresh water
T2: WP years | U2: 2017-2019
T3: AR year | U3: 2017
A4: MS | B4: Sampling period | C4: Area | D4: RFMO/RFO/IO | E4: Species | F4: Applicable (Y/N) | G4: Reasons for not sampling | H4: Water Body | I4: Life stage | J4: Fishery / Independent data collection | K4: Method | L4: Unit | M4: Planned nos | N4: Frequency | O4: Comments | P4: Achieved numbers | Q4: % of achievement (100*P/M) | R4: Reasons for non-conformity | S4: Survey ID | T4: Agreed at RCG level? | U4: AR Comments
A6: SWE | B6: 2017 | C6: Baltic Sea | D6: ICES | E6: Salmo salar | F6: Y | H6: River Torneälv | I6: parr | J6: I | K6: electrofishing | L6: n. sites | M6: 19 | N6: annually | P6: 22 | Q6: =P6*100/M6 -> 115.7894737 | R6: See textbox 1E | S6: SWE-SAL-FRW-MEL-fishery-independant | T6: Y
A7: SWE | B7: 2017 | C7: Baltic Sea | D7: ICES | E7: Salmo salar | F7: Y | H7: River Ume/Vindelälven | I7: parr | J7: I | K7: electrofishing | L7: n. sites | M7: 19 | N7: annually | P7: 9 | Q7: =P7*100/M7 -> 47.36842105 | R7: See textbox 1E | S7: SWE-SAL-FRW-MEL-fishery-independant | T7: Y
A8: SWE | B8: 2017 | C8: Baltic Sea | D8: ICES | E8: Salmo salar | F8: Y | H8: River Ume/Vindelälven | I8: smolt | J8: I | K8: trap | L8: n. smolt traps | M8: 1 | N8: annually | P8: 1 | Q8: 100 | S8: SWE-SAL-FRW-FIX-fishery-independant | T8: Y
A9: SWE | B9: 2017 | C9: Baltic Sea | D9: ICES | E9: Salmo salar | F9: Y | H9: River Ume/Vindelälven | I9: adult | J9: I | K9: counter | L9: n. counter | M9: 1 | N9: annually | P9: 1 | Q9: 100 | S9: SWE-SAL-FRW-NK-fishery-independant | T9: Y
A10: SWE | B10: 2017 | C10: Baltic Sea | D10: ICES | E10: Salmo salar | F10: Y | H10: River Ume/Vindelälven | I10: smolt | J10: I | K10: sampling | L10: n. samples | M10: 150 | N10: annually | O10: Age of 150 smolt caught in smolt traps. Weight and leght taken for all trapped smolt. | P10: 99 | Q10: 66 | R10: See textbox 1E | S10: SWE-SAL-FRW-FIX-fishery-independant | T10: Y | U10: In river Ume/Vindelälven high water flow at times made the smolt trap difficult to manage and smolt had be bypassed the trap for a short period, in addition the migration rate varied considerably which made planning of sampling difficult; at migration peaks the number of smolt that were age sampled were reduced to reduce retention time and maintain ethical handling of the fish.
A11: SWE | B11: 2017 | C11: Baltic Sea | D11: ICES | E11: Salmo salar | F11: Y | H11: River Testeboån | I11: parr | J11: I | K11: electrofishing | L11: n. sites | M11: 11 | N11: annually | P11: 11 | Q11: 100 | S11: SWE-SAL-FRW-MEL-fishery-independant | T11: Y
A12: SWE | B12: 2017 | C12: Baltic Sea | D12: ICES | E12: Salmo salar | F12: Y | H12: River Testeboån | I12: adult | J12: I | K12: counter | L12: n. counter | M12: 1 | N12: annually | P12: 1 | Q12: 100 | S12: SWE-SAL-FRW-NK-fishery-independant | T12: Y
A13: SWE | B13: 2017 | C13: Baltic Sea | D13: ICES | E13: Salmo salar | F13: Y | H13: River Testeboån | I13: smolt | J13: I | K13: trap | L13: n. smolt traps | M13: 1 | N13: annually | P13: 1 | Q13: 100 | S13: SWE-SAL-FRW-FIX-fishery-independant | T13: Y
A14: SWE | B14: 2017 | C14: Baltic Sea | D14: ICES | E14: Salmo salar | F14: Y | H14: River Testboån | I14: smolt | J14: I | K14: sampling | L14: n. samples | M14: 150 | N14: annually | O14: Age of 150 smolt caught in smolt traps. Weight and leght taken for all trapped smolt. | P14: 150 | Q14: 100 | S14: SWE-SAL-FRW-FIX-fishery-independant | T14: Y
A15: SWE | B15: 2017 | C15: Baltic Sea | D15: ICES | E15: Salmo salar | F15: Y | H15: River Mörrumsån | I15: parr | J15: I | K15: electrofishing | L15: n. sites | M15: 19 | N15: annually | P15: 9 | Q15: 47.36842105 | R15: See textbox 1E | S15: SWE-SAL-FRW-MEL-fishery-independant | T15: Y
A16: SWE | B16: 2017 | C16: Baltic Sea | D16: ICES | E16: Salmo salar | F16: Y | H16: River Mörrumsån | I16: smolt | J16: I | K16: trap | L16: n. smolt traps | M16: 1 | N16: annually | P16: 1 | Q16: 100 | S16: SWE-SAL-FRW-FIX-fishery-independant | T16: Y
A17: SWE | B17: 2017 | C17: Baltic Sea | D17: ICES | E17: Salmo salar | F17: Y | H17: River Mörrumsån | I17: adult | J17: I | K17: counter | L17: n. counter | M17: 1 | N17: annually | P17: 0 | Q17: 0 | R17: See textbox 1E | S17: SWE-SAL-FRW-NK-fishery-independant | T17: Y
A18: SWE | B18: 2017 | C18: Baltic Sea | D18: ICES | E18: Salmo salar | F18: Y | H18: River Mörrumsån | I18: smolt | J18: I | K18: sampling | L18: n. samples | M18: 150 | N18: annually | O18: Age of 150 smolt caught in smolt traps. Weight and leght taken for all trapped smolt. | P18: 126 | Q18: 84 | R18: See textbox 1E | S18: SWE-SAL-FRW-FIX-fishery-independant | T18: Y | U18: In river Mörrum low smolt numbers in combination with high water temperatures prevented reaching the desired 150 individuals for age readings. At high water temperature fish were not sampled to maintain ethical handling of the fish (the recovery success of the fish after sampling is related to temperature) .
A19: SWE | B19: 2017 | C19: Baltic Sea | D19: ICES | E19: Salmo salar | F19: Y | H19: River Kalixälven | I19: parr | J19: I | K19: electrofishing | L19: n. sites | M19: 30 | N19: annually | P19: 30 | Q19: 100 | S19: SWE-SAL-FRW-MEL-fishery-independant | T19: Y
A20: SWE | B20: 2017 | C20: Baltic Sea | D20: ICES | E20: Salmo salar | F20: Y | H20: River Kalixälven | I20: adult | J20: I | K20: counter | L20: n. counter | M20: 1 | N20: annually | P20: 1 | Q20: 100 | S20: SWE-SAL-FRW-NK-fishery-independant | T20: Y
A21: SWE | B21: 2017 | C21: Baltic Sea | D21: ICES | E21: Salmo salar | F21: Y | H21: River Råneälven | I21: parr | J21: I | K21: electrofishing | L21: n. sites | M21: 14 | N21: annually | P21: 5 | Q21: 35.71428571 | R21: See textbox 1E | S21: SWE-SAL-FRW-MEL-fishery-independant | T21: Y
A22: SWE | B22: 2017 | C22: Baltic Sea | D22: ICES | E22: Salmo salar | F22: Y | H22: River Åbyälven | I22: parr | J22: I | K22: electrofishing | L22: n. sites | M22: 16 | N22: annually | P22: 14 | Q22: 87.5 | R22: See textbox 1E | S22: SWE-SAL-FRW-MEL-fishery-independant | T22: Y
A23: SWE | B23: 2017 | C23: Baltic Sea | D23: ICES | E23: Salmo salar | F23: Y | H23: River Åbyälven | I23: adult | J23: I | K23: counter | L23: n. counter | M23: 1 | N23: annually | P23: 1 | Q23: 100 | S23: SWE-SAL-FRW-NK-fishery-independant | T23: Y
A24: SWE | B24: 2017 | C24: Baltic Sea | D24: ICES | E24: Salmo salar | F24: Y | H24: River Byskeälven | I24: parr | J24: I | K24: electrofishing | L24: n. sites | M24: 15 | N24: annually | P24: 15 | Q24: 100 | S24: SWE-SAL-FRW-MEL-fishery-independant | T24: Y
A25: SWE | B25: 2017 | C25: Baltic Sea | D25: ICES | E25: Salmo salar | F25: Y | H25: River Byskeälven | I25: adult | J25: I | K25: counter | L25: n. counter | M25: 1 | N25: annually | P25: 1 | Q25: 100 | S25: SWE-SAL-FRW-NK-fishery-independant | T25: Y
A26: SWE | B26: 2017 | C26: Baltic Sea | D26: ICES | E26: Salmo salar | F26: Y | H26: River Kågeälven | I26: parr | J26: I | K26: electrofishing | L26: n. sites | M26: 13 | N26: annually | P26: 7 | Q26: 53.84615385 | R26: See textbox 1E | S26: SWE-SAL-FRW-MEL-fishery-independant | T26: Y
A27: SWE | B27: 2017 | C27: Baltic Sea | D27: ICES | E27: Salmo salar | F27: Y | H27: River Rickleån | I27: parr | J27: I | K27: electrofishing | L27: n. sites | M27: 7 | N27: annually | P27: 7 | Q27: 100 | S27: SWE-SAL-FRW-MEL-fishery-independant | T27: Y
A28: SWE | B28: 2017 | C28: Baltic Sea | D28: ICES | E28: Salmo salar | F28: Y | H28: River Rickleån | I28: adult | J28: I | K28: counter | L28: n. counter | M28: 1 | N28: annually | P28: 1 | Q28: 100 | S28: SWE-SAL-FRW-NK-fishery-independant | T28: Y
A29: SWE | B29: 2017 | C29: Baltic Sea | D29: ICES | E29: Salmo salar | F29: Y | H29: River Rickleån | I29: smolt | J29: I | K29: trap | L29: n. smolt traps | M29: 1 | N29: annually | P29: 1 | Q29: 100 | S29: SWE-SAL-FRW-FIX-fishery-independant | T29: Y
A30: SWE | B30: 2017 | C30: Baltic Sea | D30: ICES | E30: Salmo salar | F30: Y | H30: River Ricklån | I30: smolt | J30: I | K30: sampling | L30: n. samples | M30: 150 | N30: annually | O30: Age of 150 smolt caught in smolt traps. Weight and leght taken for all trapped smolt. | P30: 169 | Q30: 112.6666667 | R30: See textbox 1E | S30: SWE-SAL-FRW-FIX-fishery-independant | T30: Y
A31: SWE | B31: 2017 | C31: Baltic Sea | D31: ICES | E31: Salmo salar | F31: Y | H31: River Sävarån | I31: parr | J31: I | K31: electrofishing | L31: n. sites | M31: 9 | N31: annually | P31: 9 | Q31: 100 | S31: SWE-SAL-FRW-MEL-fishery-independant | T31: Y
A32: SWE | B32: 2017 | C32: Baltic Sea | D32: ICES | E32: Salmo salar | F32: Y | H32: River Öreälven | I32: parr | J32: I | K32: electrofishing | L32: n. sites | M32: 10 | N32: annually | P32: 10 | Q32: 100 | S32: SWE-SAL-FRW-MEL-fishery-independant | T32: Y
A33: SWE | B33: 2017 | C33: Baltic Sea | D33: ICES | E33: Salmo salar | F33: Y | H33: River Lögdeälven | I33: parr | J33: I | K33: electrofishing | L33: n. sites | M33: 8 | N33: annually | P33: 8 | Q33: 100 | S33: SWE-SAL-FRW-MEL-fishery-independant | T33: Y
A34: SWE | B34: 2017 | C34: Baltic Sea | D34: ICES | E34: Salmo salar | F34: Y | H34: River Ljungan | I34: parr | J34: I | K34: electrofishing | L34: n. sites | M34: 10 | N34: annually | P34: 18 | Q34: 180 | R34: See textbox 1E | S34: SWE-SAL-FRW-MEL-fishery-independant | T34: Y
A35: SWE | B35: 2017 | C35: Baltic Sea | D35: ICES | E35: Salmo salar | F35: Y | H35: River Emån | I35: parr | J35: I | K35: electrofishing | L35: n. sites | M35: 10 | N35: annually | P35: 7 | Q35: 70 | R35: See textbox 1E | S35: SWE-SAL-FRW-MEL-fishery-independant | T35: Y
A36: SWE | B36: 2017 | C36: Baltic Sea | D36: ICES | E36: Salmo salar | F36: Y | H36: River Piteälven | I36: adult | J36: I | K36: counter | L36: n. counter | M36: 1 | N36: annually | P36: 1 | Q36: 100 | S36: SWE-SAL-FRW-NK-fishery-independant | T36: Y
A37: SWE | B37: 2017 | C37: Baltic Sea | D37: ICES | E37: Salmo salar | F37: Y | H37: River Luleälven | I37: adult | J37: F | K37: fishery statistics | L37: n. trips | M37: NA | N37: annually | O37: As described in Table 4A and 4B. | P37: NA | Q37: NA | S37: SWE-SAL-FRW-NK-commercial fishing | T37: N | U37: Only number of individuals are used in stock assessment (ICES WGBAST). This data is collected from fishermen journals/logbooks, See Table 2A.
A38: SWE | B38: 2017 | C38: Baltic Sea | D38: ICES | E38: Salmo salar | F38: Y | H38: River Ljusnan | I38: adult | J38: F | K38: fishery statistics | L38: n. trips | M38: NA | N38: annually | O38: As described in Table 4A and 4B. | P38: NA | Q38: NA | S38: SWE-SAL-FRW-NK-commercial fishing | T38: N | U38: Only number of individuals are used in stock assessment (ICES WGBAST). This data is collected from fishermen journals/logbooks, See Table 2A.
A39: SWE | B39: 2017 | C39: Baltic Sea | D39: ICES | E39: Salmo salar | F39: Y | H39: River Indalsälven | I39: adult | J39: F | K39: fishery statistics | L39: n. trips | M39: NA | N39: annually | O39: As described in Table 4A and 4B. | P39: NA | Q39: Na | S39: SWE-SAL-FRW-NK-commercial fishing | T39: N | U39: Only number of individuals are used in stock assessment (ICES WGBAST). This data is collected from fishermen journals/logbooks, See Table 2A.
A40: SWE | B40: 2017 | C40: Baltic Sea | D40: ICES | E40: Salmo salar | F40: Y | H40: River Dalälven | I40: adult | J40: I | K40: counter | L40: n. counter | M40: 1 | N40: annually | P40: 1 | Q40: 100 | S40: SWE-SAL-FRW-NK-fishery-independant | T40: Y | U40: Spawner run is estimated from catches in broodstock fishery.
A41: SWE | B41: 2017 | C41: North sea and Eastern Arctic | D41: EIFAAC/ICES/GFCM | E41: Anguilla anguilla | F41: Y | H41: 20 rivers in Skagerrak and Kattegatt River Basin District | I41: yellow | J41: I | K41: electofishing | L41: n. sites | M41: 20 | N41: annually | O41: To estimate recruitment from a number of sites in several rivers. | P41: 16 | Q41: 80 | R41: Lack of resonable sites due to low recruitment | S41: SWE-ELE-FRW-MEL-fishery-independent | T41: Y | U41: An Y is given as data collected are in agreement with the data requirements discussed and required for the assessment work in ICES WGEEL.
A42: SWE | B42: 2017 | C42: North sea and Eastern Arctic | D42: EIFAAC/ICES/GFCM | E42: Anguilla anguilla | F42: Y | H42: River Göta älv | I42: yellow | J42: I | K42: traps | L42: n. traps | M42: 1 | N42: annually | O42: To estimate recruitment to 7 rivers | P42: 1 | Q42: 100 | S42: SWE-ELE-FRW-FWR-fishery-independent | T42: Y | U42: An Y is given as data collected are in agreement with the data requirements discussed and required for the assessment work in ICES WGEEL.
A43: SWE | B43: 2017 | C43: North sea and Eastern Arctic | D43: EIFAAC/ICES/GFCM | E43: Anguilla anguilla | F43: Y | H43: River Viskan | I43: yellow | J43: I | K43: traps | L43: n. traps | M43: 1 | N43: annually | O43: To estimate recruitment to 7 rivers | P43: 1 | Q43: 100 | S43: SWE-ELE-FRW-FWR-fishery-independent | T43: Y | U43: An Y is given as data collected are in agreement with the data requirements discussed and required for the assessment work in ICES WGEEL.
A44: SWE | B44: 2017 | C44: North sea and Eastern Arctic | D44: EIFAAC/ICES/GFCM | E44: Anguilla anguilla | F44: Y | H44: River Lagan | I44: yellow | J44: I | K44: traps | L44: n. traps | M44: 1 | N44: annually | O44: To estimate recruitment to 7 rivers | P44: 1 | Q44: 100 | S44: SWE-ELE-FRW-FWR-fishery-independent | T44: Y | U44: An Y is given as data collected are in agreement with the data requirements discussed and required for the assessment work in ICES WGEEL.
A45: SWE | B45: 2017 | C45: North sea and Eastern Arctic | D45: EIFAAC/ICES/GFCM | E45: Anguilla anguilla | F45: Y | H45: River Rönneå | I45: yellow | J45: I | K45: traps | L45: n. traps | M45: 1 | N45: annually | O45: To estimate recruitment to 7 rivers | P45: 1 | Q45: 100 | S45: SWE-ELE-FRW-FWR-fishery-independent | T45: Y | U45: An Y is given as data collected are in agreement with the data requirements discussed and required for the assessment work in ICES WGEEL
A46: SWE | B46: 2017 | C46: Baltic Sea | D46: EIFAAC/ICES/GFCM | E46: Anguilla anguilla | F46: Y | H46: River Helgeån | I46: yellow | J46: I | K46: traps | L46: n. traps | M46: 1 | N46: annually | O46: To estimate recruitment to 4 rivers | P46: 1 | Q46: 100 | S46: SWE-ELE-FRW-FWR-fishery-independent | T46: Y | U46: An Y is given as data collected are in agreement with the data requirements discussed and required for the assessment work in ICES WGEEL.
A47: SWE | B47: 2017 | C47: Baltic Sea | D47: EIFAAC/ICES/GFCM | E47: Anguilla anguilla | F47: Y | H47: River Mörrumsån | I47: yellow | J47: I | K47: traps | L47: n. traps | M47: 1 | N47: annually | O47: To estimate recruitment to 4 rivers | P47: 1 | Q47: 100 | S47: SWE-ELE-FRW-FWR-fishery-independent | T47: Y | U47: An Y is given as data collected are in agreement with the data requirements discussed and required for the assessment work in ICES WGEEL.
A48: SWE | B48: 2017 | C48: Baltic Sea | D48: EIFAAC/ICES/GFCM | E48: Anguilla anguilla | F48: Y | H48: River Motala Ström | I48: yellow | J48: I | K48: traps | L48: n. traps | M48: 1 | N48: annually | O48: To estimate recruitment to 4 rivers | P48: 1 | Q48: 100 | S48: SWE-ELE-FRW-FWR-fishery-independent | T48: Y | U48: An Y is given as data collected are in agreement with the data requirements discussed and required for the assessment work in ICES WGEEL.
A49: SWE | B49: 2017 | C49: Baltic Sea | D49: EIFAAC/ICES/GFCM | E49: Anguilla anguilla | F49: Y | H49: River Emån | I49: yellow | J49: I | K49: traps | L49: n. traps | M49: 1 | N49: annually | O49: To estimate recruitment to 4 rivers | P49: 1 | Q49: 100 | S49: SWE-ELE-FRW-FWR-fishery-independent | T49: Y | U49: An Y is given as data collected are in agreement with the data requirements discussed and required for the assessment work in ICES WGEEL.
A50: SWE | B50: 2017 | C50: Baltic Sea | D50: EIFAAC/ICES/GFCM | E50: Anguilla anguilla | F50: Y | H50: River Nyköpingsån | I50: yellow | J50: I | K50: traps | L50: n. traps | M50: 1 | N50: annually | O50: To estimate recruitment to 4 rivers | P50: 1 | Q50: 100 | S50: SWE-ELE-FRW-FWR-fishery-independent | T50: Y | U50: An Y is given as data collected are in agreement with the data requirements discussed and required for the assessment work in ICES WGEEL.
A51: SWE | B51: 2017 | C51: Baltic Sea | D51: EIFAAC/ICES/GFCM | E51: Anguilla anguilla | F51: Y | H51: River Dalälven | I51: yellow | J51: I | K51: traps | L51: n. traps | M51: 1 | N51: annually | O51: To estimate recruitment to 4 rivers | P51: 1 | Q51: 100 | S51: SWE-ELE-FRW-FWR-fishery-independent | T51: Y | U51: An Y is given as data collected are in agreement with the data requirements discussed and required for the assessment work in ICES WGEEL.
A52: SWE | B52: 2017 | C52: Baltic Sea | D52: EIFAAC/ICES/GFCM | E52: Anguilla anguilla | F52: Y | H52: River Ljusnan | I52: yellow | J52: I | K52: traps | L52: n. traps | M52: 1 | N52: annually | O52: To estimate recruitment to 4 rivers | P52: 1 | Q52: 100 | S52: SWE-ELE-FRW-FWR-fishery-independent | T52: Y | U52: An Y is given as data collected are in agreement with the data requirements discussed and required for the assessment work in ICES WGEEL.
A53: SWE | B53: 2017 | C53: Baltic Sea | D53: EIFAAC/ICES/GFCM | E53: Anguilla anguilla | F53: Y | H53: Lake Mälaren | I53: yellow + silver | J53: I | K53: fyke netting | L53: n. sites | M53: 1 | N53: annually | O53: Monitoring of introduced populations | P53: 1 | Q53: 100 | S53: SWE-ELE-FRW-FYK-fishery-independant | T53: Y | U53: An Y is given as data collected are in agreement with the data requirements discussed and required for the assessment work in ICES WGEEL.
A54: SWE | B54: 2017 | C54: Baltic Sea | D54: EIFAAC/ICES/GFCM | E54: Anguilla anguilla | F54: Y | H54: Lake Fardume träsk | I54: silver | J54: I | K54: fixed trap | L54: n. sites | M54: 1 | N54: annually | O54: Monitoring of introduced populations | P54: 1 | Q54: 100 | S54: SWE-ELE-FRW-FWR-fishery-independent | T54: Y | U54: An Y is given as data collected are in agreement with the data requirements discussed and required for the assessment work in ICES WGEEL.
A55: SWE | B55: 2017 | C55: Baltic Sea | D55: EIFAAC/ICES/GFCM | E55: Anguilla anguilla | F55: Y | H55: River to the Baltic | I55: all | J55: F/I | K55: planning | L55: n. rivers | M55: 1 | N55: annually | O55: Planning of full life history study will be conducted in 2017 to be able to assess the methodologises needed for data collection on recruites, standing stock and migrating individuals. | P55: 1 | Q55: 100 | S55: SWE-ELE-FRW-MEL-fishery-independent, SWE-ELE-FRW-FWR-fishery-independent, SWE-ELE-FRW-FYK-fishery-independent, SWE-ELE-MAR-FPN-commercial fishing, SWE-ELE-FRW-FPN-commercial fishing | T55: Y | U55: Planning work in progress.
A56: SWE | B56: 2017 | C56: North sea and Eastern Arctic | D56: EIFAAC/ICES/GFCM | E56: Anguilla anguilla | F56: Y | H56: River to Skagerrak | I56: all | J56: F/I | K56: planning | L56: n. rivers | M56: 1 | N56: annually | O56: Planning of full life history study will be conducted in 2017 to be able to assess the methodologises needed for data collection on recruites, standing stock and migrating individuals. | P56: 1 | Q56: 100 | S56: SWE-ELE-FRW-MEL-fishery-independent, SWE-ELE-FRW-FWR-fishery-independent, SWE-ELE-FRW-FYK-fishery-independent, SWE-ELE-MAR-FPN-commercial fishing, SWE-ELE-FRW-FPN-commercial fishing | T56: Y | U56: Planning work in progress.
A57: SWE | B57: 2017 | C57: Baltic Sea | D57: EIFAAC/ICES/GFCM | E57: Anguilla anguilla | F57: Y | H57: Baltic | I57: silver | J57: F/I | K57: Mark-recapure | L57: n. marked eels | M57: 400 | N57: annually | O57: data collection of stocked amounts and sites. Sites may be changed due to unforessen reasons | P57: 400 | Q57: 100 | S57: SWE-ELE-MAR-FPN-commercial fishing | T57: Y
A58: SWE | B58: 2017 | C58: Baltic Sea | D58: EIFAAC/ICES/GFCM | E58: Anguilla anguilla | F58: Y | H58: Lake Mälaren | I58: silver | J58: F/I | K58: Mark-recapure | L58: n. marked eels | M58: 200 | N58: annually | O58: Sites may be changed due to unforessen reasons | P58: 202 | Q58: 101 | S58: SWE-ELE-MAR-FPN-commercial fishing | T58: Y
A59: SWE | B59: 2017 | C59: Baltic Sea | D59: EIFAAC/ICES/GFCM | E59: Anguilla anguilla | F59: Y | H59: 3 lakes | I59: silver | J59: F | K59: sampling | L59: n. eels | M59: 375 | N59: annually | O59: sampling from the commercial fishery. Also listed in 1b and 1c | P59: 358 | Q59: 95.46666667 | S59: SWE-ELE-FRW-FWR-commercial fishing | T59: Y | U59: Some fishermen delivered fewer eels than planned due to unexpectedly low catches or simply due to miscounting.
A60: SWE | B60: 2017 | C60: North sea and Eastern Arctic | D60: EIFAAC/ICES/GFCM | E60: Anguilla anguilla | F60: Y | H60: Coastal sites | I60: yellow | J60: I | K60: statistics | L60: n. eels | M60: 2500000 | N60: annually | O60: Updating the database of stocked recruits i.e. data collection of stocked amounts and sites | P60: 553281 | Q60: 22.13124 | R60: Outbreak of disease | S60: SWE-ELE | T60: Y | U60: This year the amount of stocked recruits were low due to an outbreak of disease.
A61: SWE | B61: 2017 | C61: Baltic Sea | D61: EIFAAC/ICES/GFCM | E61: Anguilla anguilla | F61: Y | H61: Freshwater sites | I61: yellow | J61: I | K61: statistics | L61: n. eels | M61: 2500000 | N61: annually | O61: Updating the database of stocked recruits i.e. data collection of stocked amounts and sites | P61: 394074 | Q61: 15.76296 | R61: Outbreak of disease | S61: SWE-ELE | T61: Y | U61: This year the amount of stocked recruits were low due to an outbreak of disease.
A62: SWE | B62: 2017 | C62: Baltic Sea | D62: EIFAAC/ICES/GFCM | E62: Anguilla anguilla | F62: Y | H62: Coastal sites | I62: yellow | J62: I | K62: annual | L62: n. sites | M62: 1 | N62: annually | O62: A survey is run yearly in August in order to continue following the eel stock in this area. The commercial fishery was indirectly closed due to that the minimum landing size was increased, hence it is no longer possible to continue the commercial sampling. The survey set-up include catching a predefined number of yellow eels, all of which are length measured. Using length-stratification, a sub-sample from the total catch of yellow eel is then collected for biological (age) sampling. Silver eels caught are also measured for length, but not sampled for age. In the survey manual, the maximum effort (gear-days) to be aiming for is defined. No other species than eel are sampled. | P62: 1 | Q62: =P62*100/M62 -> 100 | S62: No ID exist | T62: Y
A63: SWE | B63: 2017 | C63: North sea and Eastern Arctic | D63: EIFAAC/ICES/GFCM | E63: Anguilla anguilla | F63: Y | H63: Coastal sites | I63: yellow | J63: I | K63: annual | L63: n.sites | M63: 3 | N63: annually | O63: A survey is run yearly in August in order in order to continue following the eel stock in this area . The commercial fishery was indirectly closed due to that the minimum landing size was increased, hence it is no longer possible to continue the commercial sampling. The survey set-up include catching a predefined number of yellow eels, all of which are length measured. Using length-stratification, a sub-sample from the total catch of yellow eel is then collected for biological (age) sampling. Silver eels caught are also measured for length, but not sampled for age. In the survey manual, the maximum effort (gear-days) to be aiming for is defined. No other species than eel are sampled. | P63: 3 | Q63: 100 | S63: No ID exist | T63: Y

Sheet Table1F Incidental by catch
A1: Table 1F: Incidental by-catch of birds, mammals, reptiles and fish
V2: WP years | W2: 2017-2019
V3: AR year | W3: 2017
P4: Has there be occurrence of bycatch?
A5: MS | B5: Sampling period/year(s) | C5: Region | D5: RFMO/RFO/IO | E5: Sub-area / Fishing ground | F5: Scheme | G5: Stratum ID code / Name of the survey | H5: Group of vulnerable species | I5: Expected occurence of recordings | J5: Comments | K5: Total number of PSU in the sampling year | L5: Achieved number of PSU in the sampling year | M5: Number of PSU sampled in which observers have been instructed to look for bycatch | N5: Does your sampling protocol allow for the calculation of observation effort “at haul level” (Y/N) | O5: Is there any mitigation device? (Y/N) | P5: Fish (Y/N/NA) | Q5: Mammals (Y/N/NA) | R5: Birds (Y/N/NA) | S5: Reptiles (Y/N/NA) | T5: Other (Y/N/NA) | U5: Are data stored in a national database? | V5: Are data stored in international database(s)? | W5: AR Comments
A7: SWE | B7: 2017 | C7: North Sea and Eastern Arctic | D7: ICES | E7: IIIa | F7: Skagerrak/Kattegat at-sea | G7: SWE - SkaKat (at-sea) - Act - 20/21 - PanTrawlTun | H7: all encountered species except some invertebrates | I7: X | J7: birds and mammals very limited occurence, fish and crustaceans dependent on species. Data on all species in 1D will be recorded | K7: 24 | L7: 6 | M7: 6 | N7: N | O7: N | P7: Y | Q7: Y | R7: Y | S7: NA | T7: NA | U7: Y | V7: Y | W7: In the WP were info on bycatch sampling grouped over several "Stratum ID code" as the protocols are the same within those stratas. This grouped "Stratum ID code" in WP has been split over 6 rows as it otherwise was impossible to give information on PSUs. Name of the stratum IDs are identical to Table IF in WP and table 4A. Data provided to ICES WGBYC.
A8: SWE | B8: 2017 | C8: North Sea and Eastern Arctic | D8: ICES | E8: IIIa | F8: Skagerrak/Kattegat at-sea | G8: SWE - SkaKat (at-sea) - Act - 20/21 - PanTrawlNoTun | H8: all encountered species except some invertebrates | I8: X | J8: birds and mammals very limited occurence, fish and crustaceans dependent on species. Data on all species in 1D will be recorded | K8: 49 | L8: 12 | M8: 12 | N8: N | O8: N | P8: Y | Q8: Y | R8: Y | S8: NA | T8: NA | U8: Y | V8: Y | W8: Information in WP has been split over 6 rows as it otherwise was impossible to give information on PSUs. Data provided to ICES WGBYC.
A9: SWE | B9: 2017 | C9: North Sea and Eastern Arctic | D9: ICES | E9: IIIa | F9: Skagerrak/Kattegat at-sea | G9: SWE - SkaKat (at-sea) - Act - 20 - NepTrawlGrid | H9: all encountered species except some invertebrates | I9: X | J9: birds and mammals very limited occurence, fish and crustaceans dependent on species. Data on all species in 1D will be recorded | K9: 78 | L9: 10 | M9: 10 | N9: N | O9: N | P9: Y | Q9: Y | R9: Y | S9: NA | T9: NA | U9: Y | V9: Y | W9: Information in WP has been split over 6 rows as it otherwise was impossible to give information on PSUs. Data provided to ICES WGBYC.
A10: SWE | B10: 2017 | C10: North Sea and Eastern Arctic | D10: ICES | E10: IIIa | F10: Skagerrak/Kattegat at-sea | G10: SWE - SkaKat (at-sea) - Act - 21 - NepTrawlGrid | H10: all encountered species except some invertebrates | I10: X | J10: birds and mammals very limited occurence, fish and crustaceans dependent on species. Data on all species in 1D will be recorded | K10: 36 | L10: 10 | M10: 10 | N10: N | O10: N | P10: Y | Q10: Y | R10: Y | S10: NA | T10: NA | U10: Y | V10: Y | W10: Information in WP has been split over 6 rows as it otherwise was impossible to give information on PSUs. Data provided to ICES WGBYC.
A11: SWE | B11: 2017 | C11: North Sea and Eastern Arctic | D11: ICES | E11: IIIa | F11: Skagerrak/Kattegat at-sea | G11: SWE - SkaKat (at-sea) - Act - 20 - MixTrawl, | H11: all encountered species except some invertebrates | I11: X | J11: birds and mammals very limited occurence, fish and crustaceans dependent on species. Data on all species in 1D will be recorded | K11: 68 | L11: 10 | M11: 10 | N11: N | O11: N | P11: Y | Q11: Y | R11: Y | S11: NA | T11: NA | U11: Y | V11: Y | W11: Information in WP has been split over 6 rows as it otherwise was impossible to give information on PSUs. Data provided to ICES WGBYC.
A12: SWE | B12: 2017 | C12: North Sea and Eastern Arctic | D12: ICES | E12: IIIa | F12: Skagerrak/Kattegat at-sea | G12: SWE - SkaKat (at-sea) - Act - 21 - MixTrawl | H12: all encountered species except some invertebrates | I12: X | J12: birds and mammals very limited occurence, fish and crustaceans dependent on species. Data on all species in 1D will be recorded | K12: 48 | L12: 11 | M12: 11 | N12: N | O12: N | P12: Y | Q12: Y | R12: Y | S12: NA | T12: NA | U12: Y | V12: Y | W12: Information in WP has been split over 6 rows as it otherwise was impossible to give information on PSUs. Data provided to ICES WGBYC.
A13: SWE | B13: 2017 | C13: Baltic Sea | D13: ICES | E13: SD 24-26 | F13: Baltic at-sea | G13: SWE - Balt (at-sea) - Act - 24/25 - DemTrawl | H13: all encountered species except some invertebrates | I13: X | J13: birds and mammals very limited occurence, fish and crustaceans dependent on species. Data on all species in 1D will be recorded | K13: 36 | L13: 6 | M13: 6 | N13: N | O13: N | P13: Y | Q13: Y | R13: Y | S13: NA | T13: NA | U13: Y | V13: Y | W13: Data provided to ICES WGBYC.
A14: SWE | B14: 2017 | C14: Baltic Sea | D14: ICES | E14: SD 23-29 | F14: Baltic at-sea or self-sampling | G14: SWE - Balt (at-sea/self) - Pass - 23 - DemNets | H14: all encountered species | I14: X | J14: Pilot study see pilot study 2 Data on all species in 1D will be recorded | K14: 51 | L14: 10 | M14: 7 | N14: N | O14: N | P14: Y | Q14: Y | R14: Y | S14: NA | T14: NA | U14: Y | V14: Y | W14: Information in WP has been split over 6 rows as it otherwise was impossible to give information on PSUs. PSU is vessel, no of trips sampled for bycatches are 12. Data provided to ICES WGBYC.
A15: SWE | B15: 2017 | C15: Baltic Sea | D15: ICES | E15: SD 23-29 | F15: Baltic at-sea or self-sampling | G15: SWE - Balt (at-sea/self) - Pass - 24 - DemNets | H15: all encountered species | I15: X | J15: Pilot study see pilot study 2 Data on all species in 1D will be recorded | K15: 36 | L15: 10 | M15: 6 | N15: N | O15: N | P15: Y | Q15: Y | R15: Y | S15: NA | T15: NA | U15: Y | V15: Y | W15: Information in WP has been split over 6 rows as it otherwise was impossible to give information on PSUs. PSU is vessel, no of trips sampled for bycatches are 11. Data provided to ICES WGBYC.
A16: SWE | B16: 2017 | C16: Baltic Sea | D16: ICES | E16: SD 23-29 | F16: Baltic at-sea or self-sampling | G16: SWE - Balt (at-sea/self) - Pass - 25 - DemNets | H16: all encountered species | I16: X | J16: Pilot study see pilot study 2 Data on all species in 1D will be recorded | K16: 79 | L16: 9 | M16: 5 | N16: N | O16: N | P16: Y | Q16: Y | R16: Y | S16: NA | T16: NA | U16: Y | V16: Y | W16: Information in WP has been split over 6 rows as it otherwise was impossible to give information on PSUs. PSU is vessel, no of trips sampled for bycatches are 7. Data provided to ICES WGBYC.
A17: SWE | B17: 2017 | C17: Baltic Sea | D17: ICES | E17: SD 23-29 | F17: Baltic at-sea or self-sampling | G17: SWE - Balt (at-sea/self) - Pass - 27/29 - DemNets | H17: all encountered species | I17: X | J17: Pilot study see pilot study 2 Data on all species in 1D will be recorded | K17: 66 | L17: 0 | M17: 0 | N17: N | O17: N | P17: NA | Q17: NA | R17: NA | S17: NA | T17: NA | U17: NA | V17: NA | W17: Information in WP has been split over 6 rows as it otherwise was impossible to give information on PSUs.
A18: SWE | B18: 2017 | C18: Baltic Sea | D18: ICES | E18: SD 23-29 | F18: Baltic at-sea or self-sampling | G18: SWE - Balt (at-sea/self) - Pass - 24 - DemLonglines | H18: all encountered species | I18: X | J18: Pilot study see pilot study 2 Data on all species in 1D will be recorded | K18: 6 | L18: 0 | M18: 0 | N18: N | O18: N | P18: NA | Q18: NA | R18: NA | S18: NA | T18: NA | U18: NA | V18: NA | W18: Information in WP has been split over 6 rows as it otherwise was impossible to give information on PSUs.
A19: SWE | B19: 2017 | C19: Baltic Sea | D19: ICES | E19: SD 23-29 | F19: Baltic at-sea or self-sampling | G19: SWE - Balt (at-sea/self) - Pass - 25 - DemLonglines | H19: all encountered species | I19: X | J19: Pilot study see pilot study 2 Data on all species in 1D will be recorded | K19: 25 | L19: 3 | M19: 2 | N19: N | O19: N | P19: Y | Q19: Y | R19: Y | S19: NA | T19: NA | U19: Y | V19: Y | W19: Information in WP has been split over 6 rows as it otherwise was impossible to give information on PSUs. PSU is vessel, no of trips sampled for bycatches are 3. Data provided to ICES WGBYC.

Sheet Table1G List of research survey
A1: Table 1G: List of research surveys at sea
Z2: WP years | AA2: 2017-2019
Z3: AR year | AA3: 2017
A4: MS | B4: Name of survey | C4: Acronym | D4: Mandatory (Y/N) | E4: Threshold (Y/N) | F4: Agreed at RCG level | G4: MS participation | H4: Area(s) covered | I4: Period (Month) | J4: Frequency | K4: Days at sea planned | L4: Type of sampling activities | M4: Planned target | N4: Map | O4: Relevant international planning group - RFMO/RFO/IO | P4: International database | Q4: Comments | R4: Type of MS participation | S4: In case of financial participation, is payment done? (Y/N) | T4: Days at sea achieved | U4: Achieved target | V4: Other data assimilations (Y/N) | W4: Was the survey carried out within the official time period? (Y/N) | X4: Was the survey carried out within the official survey area? (Y/N) | Y4: Indication if AR comments by MS are required concerning effort achieved | Z4: Indication if AR comments by MS are required concerning temporal and spatial coverage | AA4: AR Comments
A5: SWE | B5: Baltic International Trawl Survey | C5: BITS Q1 | D5: Y | E5: N | F5: Y | G5: C | H5: IIIb-d | I5: 1st quarter | J5: Annual | K5: 14 | L5: Fish Hauls | M5: 50 | N5: Map 1 | O5: ICES WGBIFS | P5: DATRAS | R5: P | S5: N | T5: 12 | U5: 49 | V5: N | W5: Y | X5: Y
A6: SWE | B6: Baltic International Trawl Survey | C6: BITS Q1 | D6: Y | E6: N | F6: Y | G6: C | H6: IIIb-d | I6: 1st quarter | J6: Annual | K6: 3 | L6: Fish Hauls | M6: 2-4 | N6: Map 1 | O6: ICES WGBIFS | P6: DATRAS | Q6: Hauls undertaken by the vessel Hålabben | R6: P | S6: N | T6: 3 | U6: 3 | V6: N | W6: Y | X6: Y
A7: SWE | B7: Baltic International Trawl Survey | C7: BITS Q4 | D7: Y | E7: N | F7: Y | G7: C | H7: IIIb-d | I7: 4th quarter | J7: Annual | K7: 11 | L7: Fish Hauls | M7: 30 | N7: Map 2 | O7: ICES WGBIFS | P7: DATRAS | R7: P | S7: N | T7: 11 | U7: 27 | V7: N | W7: Y | X7: Y
A8: SWE | B8: Baltic International Trawl Survey | C8: BITS Q4 | D8: Y | E8: N | F8: Y | G8: C | H8: IIIb-d | I8: 3rd quarter | J8: Annual | K8: 3 | L8: Fish Hauls | M8: 2-4 | N8: Map 2 | O8: ICES WGBIFS | P8: DATRAS | Q8: Hauls undertaken by the vessel Hålabben | R8: P | S8: N | T8: 3 | U8: 3 | V8: N | W8: Y | X8: Y
A9: SWE | B9: Baltic International Acoustic Survey | C9: BIAS | D9: Y | E9: N | F9: Y | G9: C | H9: IIIb-d | I9: Sep-Oct | J9: Annual | K9: 13 | L9: Echo Nm | M9: 1341 | N9: Map 3 | O9: ICES WGBIFS | P9: IBAS | R9: P | S9: Y | T9: 14.5 | U9: 1367 | V9: N | W9: Y | X9: Y
A10: SWE | B10: Baltic International Acoustic Survey | C10: BIAS | D10: Y | E10: N | F10: Y | G10: C | H10: IIIb-d | I10: Sep-Oct | J10: Annual | K10: 13 | L10: Fish Hauls | M10: 48 | N10: Map 3 | O10: ICES WGBIFS | P10: IBAS | R10: P | S10: Y | T10: 14.5 | U10: 46 | V10: N | W10: Y | X10: Y
A11: SWE | B11: International Bottom Trawl Survey | C11: IBTS Q1 | D11: Y | E11: N | F11: Y | G11: C | H11: IIIa | I11: 1st quarter | J11: Annual | K11: 14 | L11: Fish Hauls | M11: 46 | N11: Map 4 | O11: ICES IBTSWG | P11: DATRAS | R11: P | S11: N | T11: 14 | U11: 47 | V11: N | W11: Y | X11: Y
A12: SWE | B12: International Bottom Trawl Survey | C12: IBTS Q1 | D12: Y | E12: N | F12: Y | G12: C | H12: IIIa | I12: 1st quarter | J12: Annual | K12: 14 | L12: Plankton Hauls | M12: 60 | N12: Map 5 | O12: ICES IBTSWG | P12: no existing database | Q12: Data on clupeid larvae are sent to a database in Germany. | R12: P | S12: N | T12: 14 | U12: 66 | V12: N | W12: Y | X12: Y
A13: SWE | B13: International Bottom Trawl Survey | C13: IBTS Q3 | D13: Y | E13: N | F13: Y | G13: C | H13: IIIa | I13: 3rd quarter | J13: Annual | K13: 11 | L13: Fish Hauls | M13: 45 | N13: Map 6 | O13: ICES IBTSWG | P13: DATRAS | R13: P | S13: N | T13: 11 | U13: 45 | V13: N | W13: Y | X13: Y
A14: SWE | B14: Nephrops TV survey (FU 3&4) | C14: NTV3&4 | D14: Y | E14: N | F14: Y | G14: C | H14: IIIa | I14: 2nd quarter | J14: Annual | K14: 15 | L14: TV-tracks | M14: 95 | N14: Map 7 | O14: ICES WGNEPS | P14: no existing database | R14: P | S14: N | T14: 13 | U14: 74 | V14: N | W14: Y | X14: Y | AA14: Not all stations could be visit due to bad weather, too low visibility, rocky bottoms or too many creels.
A15: SWE | B15: International Ecosystem Survey in the Nordic Seas | C15: ASH | D15: Y | E15: N | F15: Y | G15: C | H15: IIa | I15: May | J15: Annual | L15: Fish Hauls | M15: See Denmark | O15: ICES WGIPS | P15: See Denmark | R15: C | S15: Y | T15: 29 | U15: see DEN | V15: see DEN | W15: see DEN | X15: see DEN | AA15: To be reported by Denmark.

Sheet Table1H Research survey data
A1: Table 1H: Research survey data collection and dissemination
L2: WP years | M2: 2017-2019
L3: AR year | M3: 2017
A4: MS | B4: Name of survey | C4: Acronym | D4: Type of data collected | E4: Core/ Additional variable | F4: Used as basis for advice (Y/N) | G4: Comments | H4: Was the sampling carried out? (Y/N/P) | I4: Relevant International database | J4: Was the data uploaded to the relevant database? (Y/N) | K4: Other data assimilations? (Y/N) | L4: Indication if AR comments are required by MS | M4: AR comments
A5: SWE | B5: Baltic International Trawl Survey | C5: BITS Q1 | D5: Biological data for Eastern Baltic Cod | E5: C | F5: Y | H5: Y | I5: DATRAS | J5: Y | K5: N | L5: =IF(OR(H5="Y",H5=""),"","x") -> 
A6: SWE | B6: Baltic International Trawl Survey | C6: BITS Q1 | D6: Biological data for Flounder | E6: C | F6: Y | H6: Y | I6: DATRAS | J6: Y | K6: N
A7: SWE | B7: Baltic International Trawl Survey | C7: BITS Q1 | D7: Biological data for Plaice | E7: C | F7: Y | G7: Only collected in SD 23 | H7: Y | I7: DATRAS | J7: N | K7: N
A8: SWE | B8: Baltic International Trawl Survey | C8: BITS Q1 | D8: Biological data for Herring | E8: A | F8: N | H8: N | I8: DATRAS | J8: N | K8: N | L8: x | M8: Additional variable, no full biological sampling is done, length measurement and total weight only.
A9: SWE | B9: Baltic International Trawl Survey | C9: BITS Q1 | D9: Biological data for Sprat | E9: A | F9: N | H9: N | I9: DATRAS | J9: N | K9: N | L9: =IF(OR(H9="Y",H9=""),"","x") -> x | M9: Additional variable, no full biological sampling is done, length measurement and total weight only.
A10: SWE | B10: Baltic International Trawl Survey | C10: BITS Q1 | D10: CTD by Haul | E10: C | F10: Y | H10: Y | I10: DATRAS | J10: Y | K10: N | L10: =IF(OR(H10="Y",H10=""),"","x") -> 
A11: SWE | B11: Baltic International Trawl Survey | C11: BITS Q1 | D11: Litter items in the trawl | E11: A | F11: Y | G11: Descriptor in MSFD | H11: Y | I11: DATRAS | J11: Y | K11: N
A12: SWE | B12: Baltic International Trawl Survey | C12: BITS Q1 | D12: Benthos in the trawl | E12: A | F12: N | H12: Y | I12: DATRAS | J12: Y | K12: N
A13: SWE | B13: Baltic International Trawl Survey | C13: BITS Q1 | D13: Hydroacoustic data | E13: A | F13: N | H13: Y | I13: DATRAS | J13: Y | K13: N
A14: SWE | B14: Baltic International Trawl Survey | C14: BITS Q4 | D14: Biological data for Eastern Baltic Cod | E14: C | F14: Y | H14: Y | I14: DATRAS | J14: Y | K14: N
A15: SWE | B15: Baltic International Trawl Survey | C15: BITS Q4 | D15: Biological data for Flounder | E15: C | F15: Y | H15: Y | I15: DATRAS | J15: Y | K15: N
A16: SWE | B16: Baltic International Trawl Survey | C16: BITS Q1 | D16: Biological data for Plaice | E16: C | F16: Y | G16: Only collected in SD 23 | H16: Y | I16: DATRAS | J16: N | K16: N
A17: SWE | B17: Baltic International Trawl Survey | C17: BITS Q4 | D17: Biological data for Herring | E17: A | F17: N | H17: N | I17: DATRAS | J17: N | K17: N | L17: x | M17: Additional variable, no full biological sampling is done, length measurement and total weight only.
A18: SWE | B18: Baltic International Trawl Survey | C18: BITS Q4 | D18: Biological data for Sprat | E18: A | F18: N | H18: N | I18: DATRAS | J18: N | K18: N | L18: x | M18: Additional variable, no full biological sampling is done, length measurement and total weight only.
A19: SWE | B19: Baltic International Trawl Survey | C19: BITS Q4 | D19: CTD by Haul | E19: C | F19: Y | H19: Y | I19: DATRAS | J19: Y | K19: N
A20: SWE | B20: Baltic International Trawl Survey | C20: BITS Q4 | D20: Litter items in the trawl | E20: A | F20: Y | G20: Descriptor in MSFD | H20: Y | I20: DATRAS | J20: Y | K20: N
A21: SWE | B21: Baltic International Trawl Survey | C21: BITS Q4 | D21: Benthos in the trawl | E21: A | F21: N | H21: Y | I21: DATRAS | J21: Y | K21: N
A22: SWE | B22: Baltic International Trawl Survey | C22: BITS Q4 | D22: Hydroacoustic data | E22: A | F22: N | H22: Y | I22: DATRAS | J22: Y | K22: N
A23: SWE | B23: Baltic International Acoustic Survey | C23: BIAS | D23: Biological data for Herring | E23: C | F23: Y | H23: Y | I23: IBAS | J23: Y | K23: N
A24: SWE | B24: Baltic International Acoustic Survey | C24: BIAS | D24: Biological data for Sprat | E24: C | F24: Y | H24: Y | I24: IBAS | J24: Y | K24: N
A25: SWE | B25: Baltic International Acoustic Survey | C25: BIAS | D25: Hydroacoustic data | E25: C | F25: Y | H25: Y | I25: IBAS | J25: Y | K25: N
A26: SWE | B26: Baltic International Acoustic Survey | C26: BIAS | D26: CTD by Haul | E26: C | F26: Y | G26: Reported but not a driver for the design or assessment | M26: Reported but not a driver for the design or assessment.
A27: SWE | B27: International Bottom Trawl Survey | C27: IBTS Q1 | D27: Biological data for Cod | E27: C | F27: Y | H27: Y | I27: DATRAS | J27: Y | K27: N
A28: SWE | B28: International Bottom Trawl Survey | C28: IBTS Q1 | D28: Biological data for Haddock | E28: C | F28: Y | H28: Y | I28: DATRAS | J28: Y | K28: N
A29: SWE | B29: International Bottom Trawl Survey | C29: IBTS Q1 | D29: Biological data for Whiting | E29: C | F29: Y | H29: Y | I29: DATRAS | J29: Y | K29: N
A30: SWE | B30: International Bottom Trawl Survey | C30: IBTS Q1 | D30: Biological data for Norway Pout | E30: C | F30: Y | H30: Y | I30: DATRAS | J30: Y | K30: N
A31: SWE | B31: International Bottom Trawl Survey | C31: IBTS Q1 | D31: Biological data for Saithe | E31: C | F31: Y | H31: Y | I31: DATRAS | J31: Y | K31: N
A32: SWE | B32: International Bottom Trawl Survey | C32: IBTS Q1 | D32: Biological data for Plaice | E32: C | F32: Y | H32: Y | I32: DATRAS | J32: Y | K32: N
A33: SWE | B33: International Bottom Trawl Survey | C33: IBTS Q1 | D33: Biological data for Herring | E33: C | F33: Y | H33: Y | I33: DATRAS | J33: Y | K33: N
A34: SWE | B34: International Bottom Trawl Survey | C34: IBTS Q1 | D34: Biological data for Sprat | E34: C | F34: Y | H34: Y | I34: DATRAS | J34: Y | K34: N
A35: SWE | B35: International Bottom Trawl Survey | C35: IBTS Q1 | D35: Biological data for Sole | E35: A | F35: N | H35: Y | I35: DATRAS | J35: Y | K35: N
A36: SWE | B36: International Bottom Trawl Survey | C36: IBTS Q1 | D36: Biological data for Hake | E36: A | F36: N | H36: Y | I36: DATRAS | J36: Y | K36: N
A37: SWE | B37: International Bottom Trawl Survey | C37: IBTS Q1 | D37: Biological data for Witch flounder | E37: A | F37: Y | H37: Y | I37: DATRAS | J37: Y | K37: N
A38: SWE | B38: International Bottom Trawl Survey | C38: IBTS Q1 | D38: Biological data for Cephalopoda | E38: C | F38: Y | H38: Y | I38: DATRAS | J38: Y | K38: N | M38: Length measured only.
A39: SWE | B39: International Bottom Trawl Survey | C39: IBTS Q1 | D39: Biological data for Nephrops and crabs | E39: C | F39: Y | H39: Y | I39: DATRAS | J39: Y | K39: N
A40: SWE | B40: International Bottom Trawl Survey | C40: IBTS Q1 | D40: CTD by Haul | E40: C | F40: Y | H40: Y | I40: DATRAS | J40: N | K40: Y
A41: SWE | B41: International Bottom Trawl Survey | C41: IBTS Q1 | D41: Litter items in the trawl | E41: C | F41: Y | G41: Descriptor in MSFD | H41: Y | I41: DATRAS | J41: Y | K41: Y | M41: Data used for MSFD.
A42: SWE | B42: International Bottom Trawl Survey | C42: IBTS Q1 | D42: Fish larvae | E42: C | F42: Y | H42: Y | I42: DATRAS | J42: Y | K42: N
A43: SWE | B43: International Bottom Trawl Survey | C43: IBTS Q3 | D43: Biological data for Cod | E43: C | F43: Y | H43: Y | I43: DATRAS | J43: Y | K43: N
A44: SWE | B44: International Bottom Trawl Survey | C44: IBTS Q3 | D44: Biological data for Haddock | E44: C | F44: Y | H44: Y | I44: DATRAS | J44: Y | K44: N
A45: SWE | B45: International Bottom Trawl Survey | C45: IBTS Q3 | D45: Biological data for Whiting | E45: C | F45: Y | H45: Y | I45: DATRAS | J45: Y | K45: N
A46: SWE | B46: International Bottom Trawl Survey | C46: IBTS Q3 | D46: Biological data for Norway Pout | E46: C | F46: Y | H46: Y | I46: DATRAS | J46: Y | K46: N
A47: SWE | B47: International Bottom Trawl Survey | C47: IBTS Q3 | D47: Biological data for Saithe | E47: C | F47: Y | H47: Y | I47: DATRAS | J47: Y | K47: N
A48: SWE | B48: International Bottom Trawl Survey | C48: IBTS Q3 | D48: Biological data for Plaice | E48: C | F48: Y | H48: Y | I48: DATRAS | J48: Y | K48: N
A49: SWE | B49: International Bottom Trawl Survey | C49: IBTS Q3 | D49: Biological data for Herring | E49: C | F49: Y | H49: Y | I49: DATRAS | J49: Y | K49: N
A50: SWE | B50: International Bottom Trawl Survey | C50: IBTS Q3 | D50: Biological data for Sprat | E50: C | F50: Y | H50: Y | I50: DATRAS | J50: Y | K50: N
A51: SWE | B51: International Bottom Trawl Survey | C51: IBTS Q3 | D51: Biological data for Sole | E51: A | F51: N | H51: Y | I51: DATRAS | J51: Y | K51: N
A52: SWE | B52: International Bottom Trawl Survey | C52: IBTS Q3 | D52: Biological data for Hake | E52: A | F52: N | H52: Y | I52: DATRAS | J52: Y | K52: N
A53: SWE | B53: International Bottom Trawl Survey | C53: IBTS Q3 | D53: Biological data for Witch flounder | E53: A | F53: Y | H53: Y | I53: DATRAS | J53: Y | K53: N
A54: SWE | B54: International Bottom Trawl Survey | C54: IBTS Q3 | D54: Biological data for Cephalopoda | E54: C | F54: Y | H54: Y | I54: DATRAS | J54: Y | K54: N | M54: Length measured only.
A55: SWE | B55: International Bottom Trawl Survey | C55: IBTS Q3 | D55: Biological data for Nephrops and crabs | E55: C | F55: Y | H55: Y | I55: DATRAS | J55: Y | K55: N
A56: SWE | B56: International Bottom Trawl Survey | C56: IBTS Q3 | D56: CTD by Haul | E56: C | F56: Y | H56: Y | I56: DATRAS | J56: N | K56: Y
A57: SWE | B57: International Bottom Trawl Survey | C57: IBTS Q3 | D57: Litter items in the trawl | E57: C | F57: Y | G57: Descriptor in MSFD | H57: Y | I57: DATRAS | J57: Y | K57: Y | M57: Data used for MSFD.
A58: SWE | B58: Nephrops TV survey (FU 3&4) | C58: NTV3&4 | D58: TV track for abundance of Nephrops | E58: C | F58: Y | H58: Y | I58: No database | J58: N | K58: N | M58: Data stored on Disc and DVD.
A59: SWE | B59: International Ecosystem Survey in the Nordic Seas | C59: ASH | D59: Blue whiting acoustic/biological data | E59: C | F59: Y | G59: reported by Denmark | M59: Reported by DTU Aqua.
A60: SWE | B60: International Ecosystem Survey in the Nordic Seas | C60: ASH | D60: Zooplankton | E60: C | F60: Y | G60: reported by Denmark | M60: Reported by DTU Aqua.
A61: SWE | B61: International Ecosystem Survey in the Nordic Seas | C61: ASH | D61: CTD by Haul | E61: C | F61: Y | G61: reported by Denmark | M61: Reported by DTU Aqua.
A62: SWE | B62: Baltic International Trawl Survey | C62: BITS Q1 | D62: Stomach content cod | E62: A | F62: N | H62: Y | I62: No database | J62: N | K62: N | M62: Data used for MSFD, WGIAB; WGCOMEDA.
A63: SWE | B63: Baltic International Trawl Survey | C63: BITS Q1 | D63: Stomach content flounder | E63: A | F63: N | H63: Y | I63: No database | J63: N | K63: N | M63: Data used for MSFD, WGIAB; WGCOMEDA.
A64: SWE | B64: Baltic International Trawl Survey | C64: BITS Q4 | D64: Stomach content cod | E64: A | F64: N | H64: Y | I64: No database | J64: N | K64: N | M64: Data used for MSFD, WGIAB; WGCOMEDA.
A65: SWE | B65: Baltic International Trawl Survey | C65: BITS Q4 | D65: Stomach content flounder | E65: A | F65: N | H65: Y | I65: No database | J65: N | K65: N | M65: Data used for MSFD, WGIAB; WGCOMEDA.
A66: SWE | B66: Baltic International Acoustic Survey | C66: BIAS | D66: Stomach content cod | E66: A | F66: N | H66: Y | I66: No database | J66: N | K66: N | M66: Data used for MSFD, WGIAB; WGCOMEDA.

Sheet Table2A Fishing activity variab
A1: Table 2A: Fishing activity variables data collection strategy
S2: WP years | T2: 2017-2019
S3: AR year | T3: 2017
A4: MS | B4: Supra region | C4: Region | D4: Variable Group | E4: Variable | F4: Fishing technique | G4: Length class | H4: Metiers (level 6) | I4: Data collected under control regulation appropriate for scientific use (Y/N/I) | J4: Type of data collected under control regulation used to calculate the estimates | K4: Expected coverage of data collected under control regulation (% of fishing trips) | L4: Additional data collection (Y/N) | M4: Data collection scheme | N4: Planned coverage of data collected under complementary data collection (% of fishing trips) | O4: Comments | P4: Data collected under control regulation accessible for scientific use (Y/N/I) | Q4: Data source for complementary data collection | R4: Achieved coverage of data collected under complementary data collection | S4: Response Rate (%) | T4: AR comments
A5: SWE | B5: North Atlantic | C5: all regions | D5: Capacity | E5: Number of vessels, GT, kW, Vessel Age | F5: all fleets | G5: 0-< 10 m | H5: all metiers | I5: I | J5: Logbooks, Community fishing fleet register | K5: 0.11 | L5: Y | M5: Census | N5: 1 | O5: Census based on monthly journals | P5: I | Q5: NA | R5: 100% | S5: 100% | T5: In WP 2017 in table 2A it was stated that there were a complementary data collection. Although, the answer to question 4 in text box 2A was "No complementary data needed", which is contradictory information. The census collection scheme filled in in WP 2017 should be considered as a complementary data collection, as its not regulated on EU level.
A6: SWE | B6: North Atlantic | C6: all regions | D6: Capacity | E6: Number of vessels, GT, kW, Vessel Age | F6: inactive | G6: 0-< 10 m | H6: all metiers | I6: I | J6: Logbooks, Community fishing fleet register | K6: NA | L6: Y | M6: Census | N6: NA | O6: Census based on monthly journals. For inactive fleet segments, it is not clear what to report under expected and planned coverage with regards to % of fishing trips | P6: I | Q6: NA | R6: NA | S6: NA | T6: In WP 2017 in table 2A it was stated that there were a complementary data collection. Although, the answer to question 4 in text box 2A was "No complementary data needed", which is contradictory information. The census collection scheme filled in in WP 2017 should be considered as a complementary data collection, as its not regulated on EU level.
A7: SWE | B7: North Atlantic | C7: all regions | D7: Capacity | E7: Number of vessels, GT, kW, Vessel Age | F7: all fleets | G7: 10 m or larger | H7: all metiers | I7: Y | J7: Logbooks, Community fishing fleet register | K7: 1 | L7: N | M7: None | N7: NA | P7: Y | Q7: NA | R7: NA | S7: NA
A8: SWE | B8: North Atlantic | C8: all regions | D8: Capacity | E8: Number of vessels, GT, kW, Vessel Age | F8: inactive | G8: 10 m or larger | H8: all metiers | I8: Y | J8: Logbooks, Community fishing fleet register | K8: NA | L8: N | M8: None | N8: NA | O8: For inactive fleet segments, it is not clear what to report under expected and planned coverage with regards to % of fishing trips | P8: Y | Q8: NA | R8: NA | S8: NA
A9: SWE | B9: North Atlantic | C9: all regions | D9: Effort | E9: Days at sea, fishing days, kW*fishing days, GT*fishing days, number of trips, number of fishing operations, number of nets/length, number of hooks, number of lines, number of pots, traps | F9: all fleets | G9: 0-< 10 m | H9: all metiers | I9: I | J9: Logbooks | K9: 0.11 | L9: Y | M9: Census | N9: 1 | O9: Census based on monthly journals. Approximate values for number of trips and number of fishing operations | P9: I | Q9: NA | R9: 100% | S9: 100% | T9: In WP 2017 in table 2A it was stated that there were a complementary data collection. Although, the answer to question 4 in text box 2A was "No complementary data needed", which is contradictory information. The census collection scheme filled in in WP 2017 should be considered as a complementary data collection, as its not regulated on EU level.
A10: SWE | B10: North Atlantic | C10: all regions | D10: Effort | E10: Days at sea, fishing days, kW*fishing days, GT*fishing days, number of trips, number of fishing operations, number of nets/length, number of hooks, number of lines, number of pots, traps | F10: all fleets | G10: 10 m or larger | H10: all metiers | I10: Y | J10: Logbooks | K10: 1 | L10: N | M10: None | N10: NA | P10: Y | Q10: NA | R10: NA | S10: NA
A11: SWE | B11: North Atlantic | C11: all regions | D11: Landings | E11: Value of landings total and per commercial species, Live Weight of landings total and per species, Prices by commercial species | F11: all fleets | G11: 0-< 10 m | H11: all metiers | I11: I | J11: Sales notes, Logbooks | K11: 0.11 | L11: Y | M11: Census | N11: 1 | O11: Census based on monthly journals | P11: I | Q11: NA | R11: 100% | S11: 100% | T11: In WP 2017 in table 2A it was stated that there were a complementary data collection. Although, the answer to question 4 in text box 2A was "No complementary data needed", which is contradictory information. The census collection scheme filled in in WP 2017 should be considered as a complementary data collection, as its not regulated on EU level.
A12: SWE | B12: North Atlantic | C12: all regions | D12: Landings | E12: Value of landings total and per commercial species, Live Weight of landings total and per species, Prices by commercial species | F12: all fleets | G12: 10 m or larger | H12: all metiers | I12: Y | J12: Sales Notes, Logbooks | K12: 1 | L12: N | M12: None | N12: NA | P12: Y | Q12: NA | R12: NA | S12: NA

Sheet Table3A Pop segment fisheries
A1: Table 3A: Population segments for collection of economic and social data for fisheries
Q2: WP years | R2: 2017-2019
Q3: AR year | R3: 2017
A4: MS | B4: Supra region | C4: Fishing technique | D4: Length class | E4: Cluster Name | F4: Type of variables (E/S) | G4: Variable | H4: Data Source | I4: Type of data collection scheme | J4: Frequency | K4: Planned sample rate % | L4: Comments | M4: Frame population | N4: Achieved sample number | O4: Achieved Sample Rate % | P4: Response Rate % | Q4: Achieved Sample no/Planned sample no. | R4: AR Comments
A5: SWE | B5: Baltic Sea, North Sea and Eastern Arctic, and North Atlantic | C5: All active segments | D5: All classes | F5: E | G5: Gross value of landings | H5: Logbooks/Monthly Journals/Landing declarations | I5: A - Census | J5: A | K5: 100 | M5: 975 | N5: 975 | O5: =N5/M5 -> 1 | P5: =O5 -> 1 | Q5: =N5/(M5*K5/100) -> 1
A6: SWE | B6: Baltic Sea, North Sea and Eastern Arctic, and North Atlantic | C6: All active segments | D6: All classes | F6: E | G6: Income from leasing out quota or other fishing rights | H6: Questionnaires/Tax declarations/Logbooks/Monthly Journals | I6: A - Census | J6: A | K6: 100 | M6: 975 | N6: 688 | O6: =N6/M6 -> 0.7056410256 | P6: =O6 -> 0.7056410256 | Q6: =N6/(M6*K6/100) -> 0.7056410256 | R6: Not applicable. This variable is not presented seperately. Its included in other income.
A7: SWE | B7: Baltic Sea, North Sea and Eastern Arctic, and North Atlantic | C7: All active segments | D7: All classes | F7: E | G7: Other income | H7: Questionnaires/Tax declarations/Logbooks/Monthly Journals | I7: A - Census | J7: A | K7: 100 | M7: 975 | N7: 688 | O7: 0.7056410256 | P7: 0.7056410256 | Q7: 0.7056410256
A8: SWE | B8: Baltic Sea, North Sea and Eastern Arctic, and North Atlantic | C8: All active segments | D8: All classes | F8: E | G8: Personnel costs | H8: Questionnaires/Tax declarations/Logbooks/Monthly Journals | I8: A - Census | J8: A | K8: 100 | M8: 975 | N8: 688 | O8: 0.7056410256 | P8: 0.7056410256 | Q8: 0.7056410256
A9: SWE | B9: Baltic Sea, North Sea and Eastern Arctic, and North Atlantic | C9: All active segments | D9: All classes | F9: E | G9: Value of unpaid labour | H9: Questionnaires/Tax declarations/Logbooks/Monthly Journals | I9: A - Census | J9: A | K9: 100 | M9: 975 | N9: 688 | O9: 0.7056410256 | P9: 0.7056410256 | Q9: 0.7056410256
A10: SWE | B10: Baltic Sea, North Sea and Eastern Arctic, and North Atlantic | C10: All active segments | D10: All classes | F10: E | G10: Energy costs | H10: Questionnaires/Tax declarations/Logbooks/Monthly Journals | I10: A - Census | J10: A | K10: 100 | M10: 975 | N10: 741 | O10: 0.76 | P10: 0.76 | Q10: 0.76
A11: SWE | B11: Baltic Sea, North Sea and Eastern Arctic, and North Atlantic | C11: All active segments | D11: All classes | F11: E | G11: Repair and maintenance costs | H11: Questionnaires/Tax declarations/Logbooks/Monthly Journals | I11: A - Census | J11: A | K11: 100 | M11: 975 | N11: 740 | O11: 0.758974359 | P11: 0.758974359 | Q11: 0.758974359
A12: SWE | B12: Baltic Sea, North Sea and Eastern Arctic, and North Atlantic | C12: All active segments | D12: All classes | F12: E | G12: Variable costs | H12: Questionnaires/Tax declarations/Logbooks/Monthly Journals | I12: A - Census | J12: A | K12: 100 | M12: 975 | N12: 738 | O12: 0.7569230769 | P12: 0.7569230769 | Q12: 0.7569230769
A13: SWE | B13: Baltic Sea, North Sea and Eastern Arctic, and North Atlantic | C13: All active segments | D13: All classes | F13: E | G13: Non-variable costs | H13: Questionnaires/Tax declarations/Logbooks/Monthly Journals | I13: A - Census | J13: A | K13: 100 | M13: 975 | N13: 736 | O13: 0.7548717949 | P13: 0.7548717949 | Q13: 0.7548717949
A14: SWE | B14: Baltic Sea, North Sea and Eastern Arctic, and North Atlantic | C14: All active segments | D14: All classes | F14: E | G14: Lease/rental payments for quota or other fishing rights | H14: Questionnaires/Tax declarations/Logbooks/Monthly Journals | I14: A - Census | J14: A | K14: 100 | M14: 975 | N14: 738 | O14: 0.7569230769 | P14: 0.7569230769 | Q14: 0.7569230769 | R14: Not applicable. This variable is not presented seperately. Its included in variable costs.
A15: SWE | B15: Baltic Sea, North Sea and Eastern Arctic, and North Atlantic | C15: All active segments | D15: All classes | F15: E | G15: Operating subsidies | H15: Questionnaires/Tax declarations/Logbooks/Monthly Journals | I15: A - Census | J15: A | K15: 100 | M15: 975 | N15: 975 | O15: 1 | P15: 1 | Q15: 1 | R15: No subsidies.
A16: SWE | B16: Baltic Sea, North Sea and Eastern Arctic, and North Atlantic | C16: All active segments | D16: All classes | F16: E | G16: Subsidies on investments | H16: Questionnaires/Tax declarations/Logbooks/Monthly Journals | I16: A - Census | J16: A | K16: 100 | M16: 975 | N16: 975 | O16: 1 | P16: 1 | Q16: 1 | R16: No subsidies.
A17: SWE | B17: Baltic Sea, North Sea and Eastern Arctic, and North Atlantic | C17: All active segments | D17: All classes | F17: E | G17: Consumption of fixed capital | H17: Questionnaires/Tax declarations/Logbooks/Monthly Journals | I17: A - Census | J17: A | K17: 100 | M17: 975 | N17: 762 | O17: 0.7815384615 | P17: 0.7815384615 | Q17: 0.7815384615
A18: SWE | B18: Baltic Sea, North Sea and Eastern Arctic, and North Atlantic | C18: All active segments | D18: All classes | F18: E | G18: Value of physical capital | H18: Questionnaires/Tax declarations/Logbooks/Monthly Journals | I18: A - Census | J18: A | K18: 100 | M18: 975 | N18: 762 | O18: 0.7815384615 | P18: 0.7815384615 | Q18: 0.7815384615
A19: SWE | B19: Baltic Sea, North Sea and Eastern Arctic, and North Atlantic | C19: All active segments | D19: All classes | F19: E | G19: Value of quota and other fishing rights | H19: Questionnaires/Tax declarations/Logbooks/Monthly Journals | I19: A - Census | J19: A | K19: 100 | M19: 975 | O19: 0 | P19: 0 | Q19: 0 | R19: NA
A20: SWE | B20: Baltic Sea, North Sea and Eastern Arctic, and North Atlantic | C20: All active segments | D20: All classes | F20: E | G20: Investments in tangible assets, net | H20: Questionnaires/Tax declarations/Logbooks/Monthly Journals | I20: A - Census | J20: A | K20: 100 | M20: 975 | N20: 735 | O20: 0.7538461538 | P20: 0.7538461538 | Q20: 0.7538461538
A21: SWE | B21: Baltic Sea, North Sea and Eastern Arctic, and North Atlantic | C21: All active segments | D21: All classes | F21: E | G21: Long/short Debt | H21: Questionnaires/Tax declarations/Logbooks/Monthly Journals | I21: A - Census | J21: A | K21: 100 | M21: 975 | N21: 688 | O21: 0.7056410256 | P21: 0.7056410256 | Q21: 0.7056410256
A22: SWE | B22: Baltic Sea, North Sea and Eastern Arctic, and North Atlantic | C22: All active segments | D22: All classes | F22: E | G22: Total assets | H22: Questionnaires/Tax declarations/Logbooks/Monthly Journals | I22: A - Census | J22: A | K22: 100 | M22: 975 | N22: 688 | O22: 0.7056410256 | P22: 0.7056410256 | Q22: 0.7056410256
A23: SWE | B23: Baltic Sea, North Sea and Eastern Arctic, and North Atlantic | C23: All active segments | D23: All classes | F23: E | G23: Engaged crew | H23: Questionnaires/Tax declarations/Logbooks/Monthly Journals | I23: A - Census | J23: A | K23: 100 | M23: 975 | N23: 760 | O23: 0.7794871795 | P23: 0.7794871795 | Q23: 0.7794871795
A24: SWE | B24: Baltic Sea, North Sea and Eastern Arctic, and North Atlantic | C24: All active segments | D24: All classes | F24: E | G24: Unpaid labour | H24: Questionnaires/Tax declarations/Logbooks/Monthly Journals | I24: A - Census | J24: A | K24: 100 | M24: 975 | N24: 760 | O24: 0.7794871795 | P24: 0.7794871795 | Q24: 0.7794871795
A25: SWE | B25: Baltic Sea, North Sea and Eastern Arctic, and North Atlantic | C25: All active segments | D25: All classes | F25: E | G25: Total hours worked per year | H25: Questionnaires/Tax declarations/Logbooks/Monthly Journals | I25: A - Census | J25: A | K25: 100 | M25: 975 | N25: 760 | O25: 0.7794871795 | P25: 0.7794871795 | Q25: 0.7794871795
A26: SWE | B26: Baltic Sea, North Sea and Eastern Arctic, and North Atlantic | C26: All active segments | D26: All classes | F26: E | G26: Number of vessels | H26: EU Fleet register | I26: A - Census | J26: A | K26: 100 | M26: 975 | N26: 975 | O26: 1 | P26: 1 | Q26: 1
A27: SWE | B27: Baltic Sea, North Sea and Eastern Arctic, and North Atlantic | C27: All active segments | D27: All classes | F27: E | G27: Mean LOA of vessels | H27: EU Fleet register | I27: A - Census | J27: A | K27: 100 | M27: 975 | N27: 975 | O27: 1 | P27: 1 | Q27: 1
A28: SWE | B28: Baltic Sea, North Sea and Eastern Arctic, and North Atlantic | C28: All active segments | D28: All classes | F28: E | G28: Total vessel's tonnage | H28: EU Fleet register | I28: A - Census | J28: A | K28: 100 | M28: 975 | N28: 975 | O28: 1 | P28: 1 | Q28: 1
A29: SWE | B29: Baltic Sea, North Sea and Eastern Arctic, and North Atlantic | C29: All active segments | D29: All classes | F29: E | G29: Total vessel's power | H29: EU Fleet register | I29: A - Census | J29: A | K29: 100 | M29: 975 | N29: 975 | O29: 1 | P29: 1 | Q29: 1
A30: SWE | B30: Baltic Sea, North Sea and Eastern Arctic, and North Atlantic | C30: All active segments | D30: All classes | F30: E | G30: Mean age of vessels | H30: EU Fleet register | I30: A - Census | J30: A | K30: 100 | M30: 975 | N30: 975 | O30: 1 | P30: 1 | Q30: 1
A31: SWE | B31: Baltic Sea, North Sea and Eastern Arctic, and North Atlantic | C31: All active segments | D31: All classes | F31: E | G31: Days at sea | H31: Logbooks/Monthly Journals | I31: A - Census | J31: A | K31: 100 | M31: 975 | N31: 975 | O31: 1 | P31: 1 | Q31: 1
A32: SWE | B32: Baltic Sea, North Sea and Eastern Arctic, and North Atlantic | C32: All active segments | D32: All classes | F32: E | G32: Energy consumption | H32: Questionnaires/Tax declarations/Logbooks/Monthly Journals | I32: A - Census | J32: A | K32: 100 | M32: 975 | N32: 726 | O32: 0.7446153846 | P32: 0.7446153846 | Q32: 0.7446153846
A33: SWE | B33: Baltic Sea, North Sea and Eastern Arctic, and North Atlantic | C33: All active segments | D33: All classes | F33: E | G33: Number of fishing enterprises/units | H33: Questionnaires/Tax declarations/Logbooks/Monthly Journals | I33: A - Census | J33: A | K33: 100 | M33: 975 | N33: 975 | O33: 1 | P33: 1 | Q33: 1
A34: SWE | B34: Baltic Sea, North Sea and Eastern Arctic, and North Atlantic | C34: All active segments | D34: All classes | F34: E | G34: Value of landings per species | H34: Logbooks/Monthly Journals/Landing declarations | I34: A - Census | J34: A | K34: 100 | M34: 975 | N34: 975 | O34: 1 | P34: 1 | Q34: 1
A35: SWE | B35: Baltic Sea, North Sea and Eastern Arctic, and North Atlantic | C35: All active segments | D35: All classes | F35: E | G35: Average price per species | H35: Logbooks/Monthly Journals/Landing declarations | I35: A - Census | J35: A | K35: 100 | M35: 975 | N35: 975 | O35: 1 | P35: 1 | Q35: 1
A36: SWE | B36: Baltic Sea, North Sea and Eastern Arctic, and North Atlantic | C36: All inactive segments | D36: All classes | F36: E | G36: Value of quota and other fishing rights | H36: Questionnaires/Tax declarations/Logbooks/Monthly Journals | I36: A - Census | J36: A | K36: 100 | M36: 280 | O36: 0 | P36: 0 | Q36: 0 | R36: NA
A37: SWE | B37: Baltic Sea, North Sea and Eastern Arctic, and North Atlantic | C37: All inactive segments | D37: All classes | F37: E | G37: Consumption of fixed capital | H37: Questionnaires/Tax declarations/Logbooks/Monthly Journals | I37: A - Census | J37: A | K37: 100 | M37: 280 | N37: =M37*O37 -> 218.8307692 | O37: =O18 -> 0.7815384615 | P37: 0.7815384615 | Q37: =N37/(M37*K37/100) -> 0.7815384615 | R37: Consumption of fixed capital for inactive vessels are estimated via a proxy, which is active vessels within same length and gear segments. Achieved sample rate refers to achieved sample rate in the active segment.
A38: SWE | B38: Baltic Sea, North Sea and Eastern Arctic, and North Atlantic | C38: All inactive segments | D38: All classes | F38: E | G38: Value of physical capital | H38: Questionnaires/Tax declarations/Logbooks/Monthly Journals | I38: A - Census | J38: A | K38: 100 | M38: 280 | N38: =M38*O38 -> 218.8307692 | O38: =O37 -> 0.7815384615 | P38: 0.7815384615 | Q38: 0.7815384615 | R38: Value of physical capital for inactive vessels are estimated via a proxy, which is active vessels within same length and gear segments. Achieved sample rate refers to achieved sample rate in the active segment.
A39: SWE | B39: Baltic Sea, North Sea and Eastern Arctic, and North Atlantic | C39: All inactive segments | D39: All classes | F39: E | G39: Number of vessels | H39: EU Fleet register | I39: A - Census | J39: A | K39: 100 | M39: 280 | N39: 280 | O39: 1 | P39: 1 | Q39: 1
A40: SWE | B40: Baltic Sea, North Sea and Eastern Arctic, and North Atlantic | C40: All inactive segments | D40: All classes | F40: E | G40: Mean LOA of vessels | H40: EU Fleet register | I40: A - Census | J40: A | K40: 100 | M40: 280 | N40: 280 | O40: 1 | P40: 1 | Q40: 1
A41: SWE | B41: Baltic Sea, North Sea and Eastern Arctic, and North Atlantic | C41: All inactive segments | D41: All classes | F41: E | G41: Total vessel's tonnage | H41: EU Fleet register | I41: A - Census | J41: A | K41: 100 | M41: 280 | N41: 280 | O41: 1 | P41: 1 | Q41: 1
A42: SWE | B42: Baltic Sea, North Sea and Eastern Arctic, and North Atlantic | C42: All inactive segments | D42: All classes | F42: E | G42: Total vessel's power | H42: EU Fleet register | I42: A - Census | J42: A | K42: 100 | M42: 280 | N42: 280 | O42: 1 | P42: 1 | Q42: 1
A43: SWE | B43: Baltic Sea, North Sea and Eastern Arctic, and North Atlantic | C43: All inactive segments | D43: All classes | F43: E | G43: Mean age of vessels | H43: EU Fleet register | I43: A - Census | J43: A | K43: 100 | M43: 280 | N43: 280 | O43: 1 | P43: 1 | Q43: 1
A44: SWE | B44: Baltic Sea, North Sea and Eastern Arctic, and North Atlantic | C44: All inactive segments | D44: All classes | F44: S | G44: Employment by gender | H44: Questionnaire | I44: A - Census | J44: Every 3rd year from 2018 | K44: 100 | M44: 975 | O44: 0 | P44: 0 | Q44: 0 | R44: These variables are currently being collected for reference year 2017 and will be included in the 2018-report.
A45: SWE | B45: Baltic Sea, North Sea and Eastern Arctic, and North Atlantic | C45: All inactive segments | D45: All classes | F45: S | G45: Full time equivalent by gender | H45: Questionnaire | I45: A - Census | J45: Every 3rd year from 2018 | K45: 100 | M45: 975 | O45: 0 | P45: 0 | Q45: 0 | R45: These variables are currently being collected for reference year 2017 and will be included in the 2018-report.
A46: SWE | B46: Baltic Sea, North Sea and Eastern Arctic, and North Atlantic | C46: All inactive segments | D46: All classes | F46: S | G46: Unpaid labour by gender | H46: Questionnaire | I46: A - Census | J46: Every 3rd year from 2018 | K46: 100 | M46: 975 | O46: 0 | P46: 0 | Q46: 0 | R46: These variables are currently being collected for reference year 2017 and will be included in the 2018-report.
A47: SWE | B47: Baltic Sea, North Sea and Eastern Arctic, and North Atlantic | C47: All inactive segments | D47: All classes | F47: S | G47: Employment by age | H47: Questionnaire | I47: A - Census | J47: Every 3rd year from 2018 | K47: 100 | M47: 975 | O47: 0 | P47: 0 | Q47: 0 | R47: These variables are currently being collected for reference year 2017 and will be included in the 2018-report.
A48: SWE | B48: Baltic Sea, North Sea and Eastern Arctic, and North Atlantic | C48: All inactive segments | D48: All classes | F48: S | G48: Employment by education level | H48: Questionnaire | I48: A - Census | J48: Every 3rd year from 2018 | K48: 100 | M48: 975 | O48: 0 | P48: 0 | Q48: 0 | R48: These variables are currently being collected for reference year 2017 and will be included in the 2018-report.
A49: SWE | B49: Baltic Sea, North Sea and Eastern Arctic, and North Atlantic | C49: All inactive segments | D49: All classes | F49: S | G49: Full time equivalent by nationality | H49: Questionnaire | I49: A - Census | J49: Every 3rd year from 2018 | K49: 100 | M49: 975 | O49: 0 | P49: 0 | Q49: 0 | R49: These variables are currently being collected for reference year 2017 and will be included in the 2018-report.
A50: SWE | B50: Baltic Sea, North Sea and Eastern Arctic, and North Atlantic | C50: All inactive segments | D50: All classes | F50: S | G50: Employment by employment status | H50: Questionnaire | I50: A - Census | J50: Every 3rd year from 2018 | K50: 100 | M50: 975 | O50: 0 | P50: 0 | Q50: 0 | R50: These variables are currently being collected for reference year 2017 and will be included in the 2018-report.
A51: SWE | B51: Baltic Sea, North Sea and Eastern Arctic, and North Atlantic | C51: All inactive segments | D51: All classes | F51: S | G51: Full time equivalent by nationality | H51: Questionnaire | I51: A - Census | J51: Every 3rd year from 2018 | K51: 100 | M51: 975 | O51: 0 | P51: 0 | Q51: 0 | R51: These variables are currently being collected for reference year 2017 and will be included in the 2018-report.

Sheet Table3B Pop segments aquacultur
A1: Table 3B: Population segments for collection of economic and social data for aquaculture
Q2: WP years | R2: 2017-2019
Q3: AR year
A4: MS | B4: Techniques | C4: Species group | D4: Type of variables (E/S) | E4: Variable | F4: Data source | G4: Type of data collection scheme | H4: Threshold (Y/N) | I4: Threshold Type | J4: Frequency | K4: Planned sample rate % | L4: Comments | M4: Frame population | N4: Achieved sample number | O4: Achieved Sample Rate % | P4: Response Rate % | Q4: Achieved Sample no/Planned sample no. | R4: AR Comment
A5: SWE | B5: all techniques | C5: all segments | D5: E | E5: Gross sales per species | F5: Financial accounts | G5: A - Census | H5: y | I5: 3 | J5: every year | K5: 100 | M5: 126 | N5: 126 | O5: =N5/M5 -> 1 | P5: 100 | Q5: =N5/(M5*K5/100) -> 1
A6: SWE | B6: all techniques | C6: all segments | D6: E | E6: Other income | F6: Financial accounts | G6: A - Census | H6: y | I6: 3 | J6: every year | K6: 100 | M6: 126 | N6: 126 | O6: 1 | P6: 100 | Q6: 1
A7: SWE | B7: all techniques | C7: all segments | D7: E | E7: Personnel costs | F7: Financial accounts | G7: A - Census | H7: y | I7: 3 | J7: every year | K7: 100 | M7: 126 | N7: 126 | O7: 1 | P7: 100 | Q7: 1
A8: SWE | B8: all techniques | C8: all segments | D8: E | E8: Value of unpaid labour | F8: questionnaires | G8: A - Census | H8: y | I8: 3 | J8: every 3 year | K8: 100 | M8: 126 | N8: 76 | O8: 0.6031746032 | P8: 100 | Q8: 0.6031746032 | R8: Questionnaire was sent out to all enterprises but response rate was approximately 60%
A9: SWE | B9: all techniques | C9: all segments | D9: E | E9: Energy costs | F9: questionnaires | G9: A - Census | H9: y | I9: 3 | J9: every 3 year | K9: 100 | M9: 126 | N9: 76 | O9: 0.6031746032 | P9: 100 | Q9: 0.6031746032 | R9: Questionnaire was sent out to all enterprises but response rate was approximately 60%
A10: SWE | B10: all techniques | C10: all segments | D10: E | E10: Livestock costs | F10: questionnaires | G10: A - Census | H10: y | I10: 3 | J10: every 3 year | K10: 100 | M10: 126 | N10: 76 | O10: 0.6031746032 | P10: 100 | Q10: 0.6031746032 | R10: Questionnaire was sent out to all enterprises but response rate was approximately 60%
A11: SWE | B11: all techniques | C11: all segments | D11: E | E11: Feed costs | F11: questionnaires | G11: A - Census | H11: y | I11: 3 | J11: every 3 year | K11: 100 | M11: 126 | N11: 76 | O11: 0.6031746032 | P11: 100 | Q11: 0.6031746032 | R11: Questionnaire was sent out to all enterprises but response rate was approximately 60%
A12: SWE | B12: all techniques | C12: all segments | D12: E | E12: Repair and maintenance | F12: questionnaires | G12: A - Census | H12: y | I12: 3 | J12: every 3 year | K12: 100 | M12: 126 | N12: 76 | O12: 0.6031746032 | P12: 100 | Q12: 0.6031746032 | R12: Questionnaire was sent out to all enterprises but response rate was approximately 60%
A13: SWE | B13: all techniques | C13: all segments | D13: E | E13: Other operating costs | F13: questionnaires | G13: A - Census | H13: y | I13: 3 | J13: every 3 year | K13: 100 | M13: 126 | N13: 76 | O13: 0.6031746032 | P13: 100 | Q13: 0.6031746032 | R13: Questionnaire was sent out to all enterprises but response rate was approximately 60%
A14: SWE | B14: all techniques | C14: all segments | D14: E | E14: Operating subsidies | F14: Managing authority | G14: A - Census | H14: y | I14: 3 | J14: every year | K14: 100 | M14: 126 | N14: 126 | O14: 1 | P14: 100 | Q14: 1
A15: SWE | B15: all techniques | C15: all segments | D15: E | E15: Subsidies on investment | F15: Managing authority | G15: A - Census | H15: y | I15: 3 | J15: every year | K15: 100 | M15: 126 | N15: 126 | O15: 1 | P15: 100 | Q15: 1
A16: SWE | B16: all techniques | C16: all segments | D16: E | E16: Consumtion of fixed capital | F16: Financial accounts | G16: A - Census | H16: y | I16: 3 | J16: every year | K16: 100 | M16: 126 | N16: 126 | O16: 1 | P16: 100 | Q16: 1
A17: SWE | B17: all techniques | C17: all segments | D17: E | E17: Total value of assets | F17: Financial accounts | G17: A - Census | H17: y | I17: 3 | J17: every year | K17: 100 | M17: 126 | N17: 126 | O17: =N17/M17 -> 1 | P17: 100 | Q17: =N17/(M17*K17/100) -> 1
A18: SWE | B18: all techniques | C18: all segments | D18: E | E18: Financial income | F18: Financial accounts | G18: A - Census | H18: y | I18: 3 | J18: every year | K18: 100 | M18: 126 | N18: 126 | O18: 1 | P18: 100 | Q18: 1
A19: SWE | B19: all techniques | C19: all segments | D19: E | E19: Financial expenditures | F19: Financial accounts | G19: A - Census | H19: y | I19: 3 | J19: every year | K19: 100 | M19: 126 | N19: 126 | O19: 1 | P19: 100 | Q19: 1
A20: SWE | B20: all techniques | C20: all segments | D20: E | E20: Net Investments | F20: Financial accounts | G20: A - Census | H20: y | I20: 3 | J20: every year | K20: 100 | M20: 126 | N20: 126 | O20: 1 | P20: 100 | Q20: 1
A21: SWE | B21: all techniques | C21: all segments | D21: E | E21: Debt | F21: Financial accounts | G21: A - Census | H21: y | I21: 3 | J21: every year | K21: 100 | M21: 126 | N21: 126 | O21: 1 | P21: 100 | Q21: 1
A22: SWE | B22: all techniques | C22: all segments | D22: E | E22: Livestock used | F22: questionnaires | G22: A - Census | H22: y | I22: 3 | J22: every 3 year | K22: 100 | M22: 126 | N22: 76 | O22: 0.6031746032 | P22: 100 | Q22: 0.6031746032 | R22: Questionnaire was sent out to all enterprises but response rate was approximately 60%
A23: SWE | B23: all techniques | C23: all segments | D23: E | E23: Fish feed used | F23: questionnaires | G23: A - Census | H23: y | I23: 3 | J23: every 3 year | K23: 100 | M23: 126 | N23: 76 | O23: 0.6031746032 | P23: 100 | Q23: 0.6031746032 | R23: Questionnaire was sent out to all enterprises but response rate was approximately 60%
A24: SWE | B24: all techniques | C24: all segments | D24: E | E24: Weight of sales per species | F24: questionnaires | G24: A - Census | H24: y | I24: 3 | J24: every 3 year | K24: 100 | M24: 126 | N24: 76 | O24: 0.6031746032 | P24: 100 | Q24: 0.6031746032 | R24: Questionnaire was sent out to all enterprises but response rate was approximately 60%
A25: SWE | B25: all techniques | C25: all segments | D25: E | E25: Persons employed, number | F25: questionnaires | G25: A - Census | H25: y | I25: 3 | J25: every 3 year | K25: 100 | M25: 126 | N25: 76 | O25: 0.6031746032 | P25: 100 | Q25: 0.6031746032 | R25: Questionnaire was sent out to all enterprises but response rate was approximately 60%
A26: SWE | B26: all techniques | C26: all segments | D26: E | E26: Persons employed, FTE | F26: questionnaires | G26: A - Census | H26: y | I26: 3 | J26: every 3 year | K26: 100 | M26: 126 | N26: 76 | O26: =N26/M26 -> 0.6031746032 | P26: 100 | Q26: =N26/(M26*K26/100) -> 0.6031746032 | R26: Questionnaire was sent out to all enterprises but response rate was approximately 60%
A27: SWE | B27: all techniques | C27: all segments | D27: E | E27: Unpaid labour, number | F27: questionnaires | G27: A - Census | H27: y | I27: 3 | J27: every 3 year | K27: 100 | M27: 126 | N27: 76 | O27: 0.6031746032 | P27: 100 | Q27: 0.6031746032 | R27: Questionnaire was sent out to all enterprises but response rate was approximately 60%
A28: SWE | B28: all techniques | C28: all segments | D28: E | E28: Unpaid labour, FTE | F28: questionnaires | G28: A - Census | H28: y | I28: 3 | J28: every 3 year | K28: 100 | M28: 126 | N28: 76 | O28: 0.6031746032 | P28: 100 | Q28: 0.6031746032 | R28: Questionnaire was sent out to all enterprises but response rate was approximately 60%
A29: SWE | B29: all techniques | C29: all segments | D29: E | E29: Number of hours worked by employees and unpaid workers | F29: questionnaires | G29: A - Census | H29: y | I29: 3 | J29: every 3 year | K29: 100 | M29: 126 | N29: 76 | O29: =N29/M29 -> 0.6031746032 | P29: 100 | Q29: =N29/(M29*K29/100) -> 0.6031746032 | R29: Questionnaire was sent out to all enterprises but response rate was approximately 60%
A30: SWE | B30: all techniques | C30: all segments | D30: E | E30: Number of enterprises | F30: financial accounts, managing authority and questionnaires | G30: A - Census | H30: y | I30: 3 | J30: every year | K30: 100 | M30: 126 | N30: 126 | O30: =N30/M30 -> 1 | P30: 100 | Q30: =N30/(M30*K30/100) -> 1
A31: SWE | B31: all techniques | C31: all segments | D31: S | E31: Unpaid labour by gender | F31: questionnaires | G31: A - Census | H31: y | I31: 3 | J31: every 3 year | K31: 100 | M31: 0 | N31: 0 | P31: 100 | R31: These variables are currently being collected for production year 2016 and will be included in the 2018-report
A32: SWE | B32: all techniques | C32: all segments | D32: S | E32: Employment by gender | F32: questionnaires | G32: A - Census | H32: y | I32: 3 | J32: every 3 year | K32: 100 | M32: 0 | N32: 0 | P32: 100 | R32: These variables are currently being collected for production year 2016 and will be included in the 2018-report
A33: SWE | B33: all techniques | C33: all segments | D33: S | E33: FTE by gender | F33: questionnaires | G33: A - Census | H33: y | I33: 3 | J33: every 3 year | K33: 100 | M33: 0 | N33: 0 | P33: 100 | R33: These variables are currently being collected for production year 2016 and will be included in the 2018-report
A34: SWE | B34: all techniques | C34: all segments | D34: S | E34: Employment by age | F34: questionnaires | G34: A - Census | H34: y | I34: 3 | J34: every 3 year | K34: 100 | M34: 0 | N34: 0 | P34: 100 | R34: These variables are currently being collected for production year 2016 and will be included in the 2018-report
A35: SWE | B35: all techniques | C35: all segments | D35: S | E35: Employment by education level | F35: questionnaires | G35: A - Census | H35: y | I35: 3 | J35: every 3 year | K35: 100 | M35: 0 | N35: 0 | P35: 100 | R35: These variables are currently being collected for production year 2016 and will be included in the 2018-report
A36: SWE | B36: all techniques | C36: all segments | D36: S | E36: Employment by nationality | F36: questionnaires | G36: A - Census | H36: y | I36: 3 | J36: every 3 year | K36: 100 | M36: 0 | N36: 0 | P36: 100 | R36: These variables are currently being collected for production year 2016 and will be included in the 2018-report
A37: SWE | B37: all techniques | C37: all segments | D37: S | E37: Employment by employment status | F37: questionnaires | G37: A - Census | H37: y | I37: 3 | J37: every 3 year | K37: 100 | M37: 0 | N37: 0 | P37: 100 | R37: These variables are currently being collected for production year 2016 and will be included in the 2018-report
A38: SWE | B38: all techniques | C38: all segments | D38: S | E38: FTE National | F38: questionnaires | G38: A - Census | H38: y | I38: 3 | J38: every 3 year | K38: 100 | M38: 0 | N38: 0 | P38: 100 | R38: These variables are currently being collected for production year 2016 and will be included in the 2018-report

Sheet Table3C Pop segments processin
A1: Table 3C: Population segments for collection of economic and social data for the processing industry
N2: WP years | O2: 2017-2019
N3: AR year | O3: 2017
A4: MS | B4: Segment | C4: Type of variables (E/S) | D4: Variables | E4: Data sources | F4: Type of data collection scheme | G4: Frequency | H4: Planned sample rate % | I4: Comments | J4: Frame population | K4: Achieved sample number | L4: Achieved Sample Rate % | M4: Response Rate % | N4: Achieved Sample no/Planned sample no. | O4: AR Comments
A5: SWE | B5: all segments. Enterprises with ≥ 250 employees will be clustered with enterprises with 50-249 employees due to confidentiality reasons. | C5: E | D5: Turnover | E5: financial accounts | F5: A - Census | G5: Every year | H5: 1 | J5: 224 | K5: 224 | L5: =K5/J5 -> 1 | M5: 100 | N5: =K5/(J5*H5/100) -> 100
A6: SWE | B6: all segments. Enterprises with ≥ 250 employees will be clustered with enterprises with 50-249 employees due to confidentiality reasons. | C6: E | D6: Other income | E6: financial accounts | F6: A - Census | G6: Every year | H6: 1 | J6: 224 | K6: 224 | L6: =K6/J6 -> 1 | M6: 101 | N6: =K6/(J6*H6/100) -> 100
A7: SWE | B7: all segments. Enterprises with ≥ 250 employees will be clustered with enterprises with 50-249 employees due to confidentiality reasons. | C7: E | D7: Personnel costs | E7: financial accounts | F7: A - Census | G7: Every year | H7: 1 | J7: 224 | K7: 224 | L7: 1 | M7: 102 | N7: 100
A8: SWE | B8: all segments. Enterprises with ≥ 250 employees will be clustered with enterprises with 50-249 employees due to confidentiality reasons. | C8: E | D8: Value of unpaid labour | E8: own calculations, financial accounts | G8: Every year | H8: 1 | I8: Maybe its possible for SWE to calculate imputed value of unpaid labour. | J8: 224 | K8: 224 | L8: 1 | M8: 103 | N8: 100 | O8: We calculated imputed value of unpaid labour.
A9: SWE | B9: all segments. Enterprises with ≥ 250 employees will be clustered with enterprises with 50-249 employees due to confidentiality reasons. | C9: E | D9: Value for external agency workers (optional) | I9: It's optional and SWE will not collect the data. | O9: Didnt collect as stated in WP.
A10: SWE | B10: all segments. Enterprises with ≥ 250 employees will be clustered with enterprises with 50-249 employees due to confidentiality reasons. | C10: E | D10: energy costs | E10: questionnaires | F10: C - Non-Probability Sample Survey | G10: Every year | H10: 1 | J10: 17 | K10: 16 | L10: =K10/J10 -> 0.9411764706 | M10: 100 | N10: =K10/(J10*H10/100) -> 94.11764706
A11: SWE | B11: all segments. Enterprises with ≥ 250 employees will be clustered with enterprises with 50-249 employees due to confidentiality reasons. | C11: E | D11: Purchase of fish and other raw material for produkction | E11: financial accounts + questionnaires | F11: A - Census | G11: Every year | H11: 1 | J11: 224 | K11: 224 | L11: =K11/J11 -> 1 | M11: 103 | N11: =K11/(J11*H11/100) -> 100
A12: SWE | B12: all segments. Enterprises with ≥ 250 employees will be clustered with enterprises with 50-249 employees due to confidentiality reasons. | C12: E | D12: other operational costs | E12: financial accounts | F12: A - Census | G12: Every year | H12: 1 | J12: 224 | K12: 224 | L12: 1 | M12: 103 | N12: 100
A13: SWE | B13: all segments. Enterprises with ≥ 250 employees will be clustered with enterprises with 50-249 employees due to confidentiality reasons. | C13: E | D13: operating subsidies | E13: questionnaires | F13: C - Non-Probability Sample Survey | G13: Every year | H13: 1 | I13: It's not possible for SWE to seperate subsidies to a reasonable cost. We'll collect data for the variable group. | J13: 17 | K13: 16 | L13: =K13/J13 -> 0.9411764706 | M13: 100 | N13: =K13/(J13*H13/100) -> 94.11764706 | O13: We reported according to WP.
A14: SWE | B14: all segments. Enterprises with ≥ 250 employees will be clustered with enterprises with 50-249 employees due to confidentiality reasons. | C14: E | D14: subsidies on investments | E14: questionnaires | F14: C - Non-Probability Sample Survey | G14: Every year | H14: 1 | I14: It's not possible for SWE to seperate subsidies to a reasonable cost. We'll collect data for the variable group. | J14: 17 | K14: 16 | L14: =K14/J14 -> 0.9411764706 | M14: 100 | N14: =K14/(J14*H14/100) -> 94.11764706 | O14: We reported according to WP.
A15: SWE | B15: all segments. Enterprises with ≥ 250 employees will be clustered with enterprises with 50-249 employees due to confidentiality reasons. | C15: E | D15: consumption of fixed capital | E15: financial accounts | F15: A - Census | G15: Every year | H15: 1 | J15: 224 | K15: 224 | L15: =K15/J15 -> 1 | M15: 103 | N15: =K15/(J15*H15/100) -> 100
A16: SWE | B16: all segments. Enterprises with ≥ 250 employees will be clustered with enterprises with 50-249 employees due to confidentiality reasons. | C16: E | D16: total value of assets | E16: financial accounts | F16: A - Census | G16: Every year | H16: 1 | J16: 224 | K16: 224 | L16: 1 | M16: 103 | N16: 100
A17: SWE | B17: all segments. Enterprises with ≥ 250 employees will be clustered with enterprises with 50-249 employees due to confidentiality reasons. | C17: E | D17: Financial income | E17: financial accounts | F17: A - Census | G17: Every year | H17: 1 | J17: 224 | K17: 224 | L17: 1 | M17: 103 | N17: 100
A18: SWE | B18: all segments. Enterprises with ≥ 250 employees will be clustered with enterprises with 50-249 employees due to confidentiality reasons. | C18: E | D18: Financial expenditure | E18: financial accounts | F18: A - Census | G18: Every year | H18: 1 | J18: 224 | K18: 224 | L18: 1 | M18: 103 | N18: 100
A19: SWE | B19: all segments. Enterprises with ≥ 250 employees will be clustered with enterprises with 50-249 employees due to confidentiality reasons. | C19: E | D19: Net investments | E19: financial accounts | F19: A - Census | G19: Every year | H19: 1 | J19: 224 | K19: 224 | L19: 1 | M19: 103 | N19: 100
A20: SWE | B20: all segments. Enterprises with ≥ 250 employees will be clustered with enterprises with 50-249 employees due to confidentiality reasons. | C20: E | D20: debt | E20: financial accounts | F20: A - Census | G20: Every year | H20: 1 | J20: 224 | K20: 224 | L20: 1 | M20: 103 | N20: 100
A21: SWE | B21: all segments. Enterprises with ≥ 250 employees will be clustered with enterprises with 50-249 employees due to confidentiality reasons. | C21: E | D21: Number of persons employed | E21: Employment Register | F21: A - Census | G21: Every year | H21: 1 | J21: 224 | K21: 224 | L21: 1 | M21: 103 | N21: 100
A22: SWE | B22: all segments. Enterprises with ≥ 250 employees will be clustered with enterprises with 50-249 employees due to confidentiality reasons. | C22: E | D22: FTE National | E22: financial accounts | F22: A - Census | G22: Every year | H22: 1 | J22: 224 | K22: 224 | L22: 1 | M22: 103 | N22: 100
A23: SWE | B23: all segments. Enterprises with ≥ 250 employees will be clustered with enterprises with 50-249 employees due to confidentiality reasons. | C23: E | D23: Unpaid labour | I23: It's not possible for SWE to collect the data. | J23: 224 | O23: Not possible for SWE to collect as stated in WP.
A24: SWE | B24: all segments. Enterprises with ≥ 250 employees will be clustered with enterprises with 50-249 employees due to confidentiality reasons. | C24: E | D24: Number of hours worked by employees and unpaid workers | E24: C - Non-Probability Sample Survey | I24: The datacollection in SWE is on a aggregate level. It's not sure SWE can collect disagregated data. | J24: 224 | O24: Not possible for SWE to collect as stated in WP.
A25: SWE | B25: all segments. Enterprises with ≥ 250 employees will be clustered with enterprises with 50-249 employees due to confidentiality reasons. | C25: E | D25: Number of enterprises | E25: Business Register | F25: A - Census | G25: Every year | H25: 1 | J25: 224 | K25: 224 | L25: =K25/J25 -> 1 | M25: 103 | N25: =K25/(J25*H25/100) -> 100
A26: SWE | B26: all segments. Enterprises with ≥ 250 employees will be clustered with enterprises with 50-249 employees due to confidentiality reasons. | C26: E | D26: Weight of raw material per species and origin (optional) | I26: It's optional and SWE will not collect the data. | O26: Didnt collect as stated in WP.
A27: SWE | B27: all segments. Enterprises with ≥ 250 employees will be clustered with enterprises with 50-249 employees due to confidentiality reasons. | C27: S | D27: Employment by gender | E27: Employment Register | F27: A - Census | G27: Every 3rd year from 2018 | H27: 1 | J27: N/A | O27: Didnt collect 2017, according to WP. Will start to collect 2018.
A28: SWE | B28: all segments. Enterprises with ≥ 250 employees will be clustered with enterprises with 50-249 employees due to confidentiality reasons. | C28: S | D28: Employment by age | E28: Employment Register | F28: A - Census | G28: Every 3rd year from 2018 | H28: 1 | J28: N/A | O28: Didnt collect 2017, according to WP. Will start to collect 2018.
A29: SWE | B29: all segments. Enterprises with ≥ 250 employees will be clustered with enterprises with 50-249 employees due to confidentiality reasons. | C29: S | D29: Employment by education level | E29: Employment Register | F29: A - Census | G29: Every 3rd year from 2018 | H29: 1 | J29: N/A | O29: didnt collect 2017, according to WP. Will start to collect 2018.
A30: SWE | B30: all segments. Enterprises with ≥ 250 employees will be clustered with enterprises with 50-249 employees due to confidentiality reasons. | C30: S | D30: Employment by nationality | E30: Employment Register | F30: A - Census | G30: Every 3rd year from 2018 | H30: 1 | J30: N/A | O30: Didnt collect 2017, according to WP. Will start to collect 2018.
A31: SWE | B31: all segments. Enterprises with ≥ 250 employees will be clustered with enterprises with 50-249 employees due to confidentiality reasons. | C31: S | D31: FTE National | E31: financial accounts | F31: A - Census | G31: Every 3rd year from 2018 | H31: 1 | J31: 224 | K31: 224 | L31: =K31/J31 -> 1 | M31: 103 | N31: =K31/(J31*H31/100) -> 100 | O31: Calculated on aggregated level, both male and female.

Sheet Table4A Sampling plan descripti
A1: Table 4A: Sampling plan description for biological data
X2: WP years | Y2: 2017-2019
X3: AR year | Y3: 2017
P4: Conformity | S4: Informative Data
A5: MS | B5: MS participating in sampling | C5: Region | D5: RFMO/RFO/IO | E5: Sub-area / Fishing ground | F5: Scheme | G5: Stratum ID code | H5: PSU type | I5: Catch fractions covered | J5: Species/ Stocks covered for estimation of volume and length of catch fractions | K5: Seasonality (Temporal strata) | L5: Reference years | M5: Average Number of PSU during the reference years | N5: Planned number of PSUs | O5: Comments | P5: Total number of PSU in the sampling year | Q5: Achieved number of PSU in the sampling year | R5: % of achievement (100*Q/N) | S5: Number of unique vessels with activity in the stratum | T5: Number of unique vessels sampled | U5: Number of fishing trips in the stratum | V5: Number of fishing trips sampled | W5: Number of species with length measurements | X5: Total number of length measurements | Y5: AR Comments
A6: SWE | B6: SWE | C6: North sea and Eastern Arctic | D6: ICES | E6: 20,21 | F6: Skagerrak/Kattegat at-sea | G6: SWE - SkaKat (at-sea) - Act - 20/21 - PanTrawlTun | H6: Vessel | I6: landings+discards | J6: All species and stocks | K6: Quarterly | L6: 2013-2015 | M6: 32.3 | N6: 3 | O6: some invertebrates species are not measured | P6: 24 | Q6: 6 | R6: =Q6/N6 -> 2 | S6: 24 | T6: 6 | U6: 618 | V6: 9 | W6: 61 | X6: 29182 | Y6: There is an error in column N. Value in WP refers to quarter. Planned value by year was 12 (50% achivement) Number of trips exceeds no of PSUs as vessels are selected with replacement. Vessels were reselected more often than we anticipated. Some of the trips changed to trips without tunnel (row below) as the vessel was changing gear when the observers were deployed.
A7: SWE | B7: SWE | C7: North sea and Eastern Arctic | D7: ICES | E7: 20,21 | F7: Skagerrak/Kattegat at-sea | G7: SWE - SkaKat (at-sea) - Act - 20/21 - PanTrawlNoTun | H7: Vessel | I7: landings+discards | J7: All species and stocks | K7: Quarterly | L7: 2013-2015 | M7: 51 | N7: 3 | O7: some invertebrates species are not measured | P7: 49 | Q7: 12 | R7: =Q7/N7 -> 4 | S7: 49 | T7: 12 | U7: 2025 | V7: 14 | W7: 53 | X7: 27882 | Y7: There is an error in column N. Value in WP refers to quarter. Planned value by year was 12 (100% achivement).
A8: SWE | B8: SWE | C8: North sea and Eastern Arctic | D8: ICES | E8: 20 | F8: Skagerrak/Kattegat at-sea | G8: SWE - SkaKat (at-sea) - Act - 20 - NepTrawlGrid | H8: Vessel | I8: landings+discards | J8: All species and stocks | K8: Quarterly | L8: 2013-2015 | M8: 80 | N8: 3 | O8: some invertebrates species are not measured | P8: 78 | Q8: 10 | R8: 3.333333333 | S8: 78 | T8: 10 | U8: 3360 | V8: 13 | W8: 41 | X8: 8494 | Y8: There is an error in column N. Value in WP refers to quarter. Planned value by year was 12 (83% achivement). No of trips exceeds no of PSUs as vessels are selected with replacement. Vessels were reselected more often than we anticipated. Number of sampled trips are in accordance with plan.
A9: SWE | B9: SWE | C9: North sea and Eastern Arctic | D9: ICES | E9: 21 | F9: Skagerrak/Kattegat at-sea | G9: SWE - SkaKat (at-sea) - Act - 21 - NepTrawlGrid | H9: Vessel | I9: landings+discards | J9: All species and stocks | K9: Quarterly | L9: 2013-2015 | M9: 41 | N9: 3 | O9: some invertebrates species are not measured | P9: 36 | Q9: 6 | R9: 2 | S9: 36 | T9: 6 | U9: 1106 | V9: 11 | W9: 35 | X9: 8622 | Y9: There is an error in column N. Value in WP refers to quarter. Planned value by year was 12 (50% achivement). No of trips exceeds no of PSUs as vessels are selected with replacement. Vessels were reselected more often than we anticipated. Number of sampled trips are in accordance with plan.
A10: SWE | B10: SWE | C10: North sea and Eastern Arctic | D10: ICES | E10: 20 | F10: Skagerrak/Kattegat at-sea | G10: SWE - SkaKat (at-sea) - Act - 20 - MixTrawl | H10: Vessel | I10: landings+discards | J10: All species and stocks | K10: Quarterly | L10: 2013-2015 | M10: 68.7 | N10: 3 | O10: some invertebrates species are not measured | P10: 68 | Q10: 10 | R10: 3.333333333 | S10: 68 | T10: 10 | U10: 1704 | V10: 11 | W10: 55 | X10: 10483 | Y10: There is an error in column N. Value in WP refers to quarter. Planned value by year was 12 (83% achivement). No of trips exceeds no of PSUs as vessels are selected with replacement. Vessels were reselected more often than we anticipated. Number of sampled trips are in accordance with plan.
A11: SWE | B11: SWE | C11: North sea and Eastern Arctic | D11: ICES | E11: 21 | F11: Skagerrak/Kattegat at-sea | G11: SWE - SkaKat (at-sea) - Act - 21 - MixTrawl | H11: Vessel | I11: landings+discards | J11: All species and stocks | K11: Quarterly | L11: 2013-2015 | M11: 43 | N11: 3 | O11: some invertebrates species are not measured | P11: 48 | Q11: 11 | R11: =Q11/N11 -> 3.666666667 | S11: 48 | T11: 11 | U11: 1526 | V11: 13 | W11: 47 | X11: 13504 | Y11: There is an error in column N. Value in WP refers to quarter. Planned value by year was 12 (92% achivement). No of trips exceeds no of PSUs as vessels are selected with replacement. Vessels were reselected more often than we anticipated. Number of sampled trips are in accordance with plan.
A12: SWE | B12: SWE | C12: North sea and Eastern Arctic | D12: ICES | E12: 20,21 | F12: Skagerrak/Kattegat at-sea | G12: SWE - SkaKat (at-sea) - Pass - 20/21 - NepPots | H12: Vessel | I12: landings+discards | J12: All species and stocks | K12: Quarterly | L12: 2013-2015 | M12: 105.7 | N12: 3 | O12: some invertebrates species are not measured | P12: 94 | Q12: 11 | R12: =Q12/N12 -> 3.666666667 | S12: 94 | T12: 11 | U12: 6506 | V12: 12 | W12: 20 | X12: 5931 | Y12: There is an error in column N. Value in WP refers to quarter. Planned value by year was 12 (92% achivement). No of trips exceeds no of PSUs as vessels are selected with replacement. Vessels were reselected more often than we anticipated. Number of sampled trips are in accordance with plan.
A13: SWE | B13: SWE | C13: North sea and Eastern Arctic | D13: ICES | E13: 20,21 | F13: Skagerrak/Kattegat at-sea | G13: SWE - SkaKat (at-sea) - OutOfFrame | H13: Vessel | I13: None | J13: None | K13: None | L13: 2013-2015 | M13: 339 | N13: 0 | P13: 312 | Q13: 0 | S13: 312 | T13: 0 | U13: 10557 | V13: 0 | W13: 0 | X13: 0
A14: SWE | B14: SWE | C14: Baltic Sea | D14: ICES | E14: 22-32 | F14: Baltic self-sampling | G14: SWE - Balt (self) - Act - 22/32 - DemTrawl | H14: Week | I14: Landings | J14: selected species/stocks | K14: Quarterly | L14: 2013-2015 | M14: 52 | N14: =8*4 -> 32 | O14: Only cod is measured | P14: 52 | Q14: 27 | R14: =Q14/N14 -> 0.84375 | S14: 37 | T14: 17 | U14: 751 | V14: 80 | W14: 1 | X14: 18260 | Y14: A few of the randomly selected sampling weeks could not be sampled primarely as there were no fishery due to bad weather.
A15: SWE | B15: SWE | C15: Baltic Sea | D15: ICES | E15: 22-32 | F15: Baltic self-sampling | G15: SWE - Balt (self) - OutOfFrame | H15: Vessel | I15: None | J15: None | K15: None | L15: 2013-2015 | M15: 642.7 | N15: 0 | P15: 558 | Q15: 0 | S15: 558 | T15: 0 | U15: 31812 | V15: 0 | W15: 0 | X15: 0
A16: SWE | B16: SWE | C16: Baltic Sea | D16: ICES | E16: 24-25 | F16: Baltic at-sea | G16: SWE - Balt (at-sea) - Act - 24/25 - DemTrawl | H16: Vessel | I16: landings+discards | J16: All species and stocks | K16: Quarterly | L16: 2013-2015 | M16: 34.7 | N16: 6 | O16: some invertebrates species are not measured | P16: 36 | Q16: 6 | R16: =Q16/N16 -> 1 | S16: 36 | T16: 6 | U16: 699 | V16: 8 | W16: 9 | X16: 18409 | Y16: There is an error in column N. Value in WP refers to quarter. Planned value by year was 24 (25% achivement). Undersampled according to plan due to several reasons 1) large cut in quota (-56%) for the cod in sd 22-24 which in Sweden meant that trawlfishery for cod was forbidden in that area for the most of the year 2) seasonal closure (july-august) for the codfishery in sd 25-26 was reintroduced and 3) only relative few of the vessels on the list are active on routine basis. This makes it really difficult to randomly select vessels and organize trips.
A17: SWE | B17: SWE | C17: Baltic Sea | D17: ICES | E17: 22-32 | F17: Baltic at-sea | G17: SWE - Balt (at-sea) - OutOfFrame | H17: Vessel | I17: None | J17: None | K17: None | L17: 2013-2015 | M17: 658 | N17: 0 | P17: 571 | Q17: 0 | S17: 571 | T17: 0 | U17: 31967 | V17: 0 | W17: 0 | X17: 0
A18: SWE | B18: SWE | C18: Baltic Sea | D18: ICES | E18: 23 | F18: Baltic at-sea or self-sampling | G18: SWE - Balt (at-sea/self) - Pass - 23 - DemNets | H18: Vessel (at-sea); Week (self-sampling) | I18: landings+discards | J18: All species and stocks | K18: Quarterly | L18: 2013-2015 | M18: 51.0 (at-sea); 52 (self-sampling) | N18: 16 | O18: Final decision between at-sea and self-sampling in this scheme depends on yet-unknown logistics, safety and refusals in at-sea sampling; some invertebrates species are not measured | P18: =S18&" (at-sea); 52 (self-sampling)" -> 51 (at-sea); 52 (self-sampling) | Q18: 10 | R18: =Q18/N18 -> 0.625 | S18: 51 | T18: 10 | U18: 2250 | V18: 18 | W18: 21 | X18: 3534 | Y18: No of trips exceeds no of PSUs as vessels are selected with replacement. Vessels were reselected more often than we anticipated as many vessels have a low activity level. Number of sampled trips are in accordance with plan.
A19: SWE | B19: SWE | C19: Baltic Sea | D19: ICES | E19: 24 | F19: Baltic at-sea or self-sampling | G19: SWE - Balt (at-sea/self) - Pass - 24 - DemNets | H19: Vessel (at-sea); Week (self-sampling) | I19: landings+discards | J19: All species and stocks | K19: Quarterly | L19: 2013-2015 | M19: 42.3 (at-sea); 52 (self-sampling) | N19: 16 | O19: Final decision between at-sea and self-sampling in this scheme depends on yet-unknown logistics, safety and refusals in at-sea sampling; some invertebrates species are not measured | P19: 36 (at-sea); 52 (self-sampling) | Q19: 10 | R19: 0.625 | S19: 36 | T19: 10 | U19: 1069 | V19: 17 | W19: 15 | X19: 2639 | Y19: No of trips exceeds no of PSUs as vessels are selected with replacement. Vessels were reselected more often than we anticipated as many vessels have a low activity level. Number of sampled trips are in accordance with plan.
A20: SWE | B20: SWE | C20: Baltic Sea | D20: ICES | E20: 25 | F20: Baltic at-sea or self-sampling | G20: SWE - Balt (at-sea/self) - Pass - 25 - DemNets | H20: Vessel (at-sea); Week (self-sampling) | I20: landings+discards | J20: All species and stocks | K20: Quarterly | L20: 2013-2015 | M20: 102.3 (at-sea); 52 (self-sampling) | N20: 16 | O20: Final decision between at-sea and self-sampling in this scheme depends on yet-unknown logistics, safety and refusals in at-sea sampling; some invertebrates species are not measured | P20: 79 (at-sea); 52 (self-sampling) | Q20: 9 | R20: 0.5625 | S20: 79 | T20: 9 | U20: 1955 | V20: 14 | W20: 9 | X20: 2028 | Y20: No of trips exceeds no of PSUs as vessels are selected with replacement. Vessels were reselected more often than we anticipated as many vessels have a low activity level. Number of sampled trips are in accordance with plan.
A21: SWE | B21: SWE | C21: Baltic Sea | D21: ICES | E21: 27-29 | F21: Baltic at-sea or self-sampling | G21: SWE - Balt (at-sea/self) - Pass - 27/29 - DemNets | H21: Vessel (at-sea); Week (self-sampling) | I21: landings+discards | J21: All species and stocks | K21: Quarterly | L21: 2013-2015 | M21: 89.7 (at-sea); 52 (self-sampling) | N21: 16 | O21: Final decision between at-sea and self-sampling in this scheme depends on yet-unknown logistics, safety and refusals in at-sea sampling; some invertebrates species are not measured | P21: 66 (at-sea); 52 (self-sampling) | Q21: 0 | R21: 0 | S21: 66 | T21: 0 | U21: 1550 | V21: 0 | W21: 0 | X21: 0 | Y21: Sampling of gillnetters in these subdivisons are logistically demending as the fishery is small scale and geographically scattered over a large area. The main species of interest for sampling in the fishery is cod. Only app. 10% of the Swedish landings of Eastern Baltic cod origins from the area. In 2017 the sea-sampling in sd 27-29 failed due to logistical constrains. We simply had to focus on the subdivisions with larger cod catches. In 2018 will we have less sea-sampling and more self-sampling in the other areas allowing us to allocate sampling effort to sd 27-29.
A22: SWE | B22: SWE | C22: Baltic Sea | D22: ICES | E22: 24 | F22: Baltic at-sea or self-sampling | G22: SWE - Balt (at-sea/self) - Pass - 24 - DemLonglines | H22: Vessel (at-sea); Week (self-sampling) | I22: landings+discards | J22: All species and stocks | K22: Quarterly | L22: 2013-2015 | M22: 13.0 (at-sea); 52 (self-sampling) | N22: 12 | O22: Final decision between at-sea and self-sampling in this scheme depends on yet-unknown logistics, safety and refusals in at-sea sampling; some invertebrates species are not measured | P22: 6 (at-sea); 52 (self-sampling) | Q22: 0 | R22: 0 | S22: 6 | T22: 0 | U22: 23 | V22: 0 | W22: 0 | X22: 0 | Y22: Not sampled as the fishery was very limited 2017.
A23: SWE | B23: SWE | C23: Baltic Sea | D23: ICES | E23: 25 | F23: Baltic at-sea or self-sampling | G23: SWE - Balt (at-sea/self) - Pass - 25 - DemLonglines | H23: Vessel (at-sea); Week (self-sampling) | I23: landings+discards | J23: All species and stocks | K23: Quarterly | L23: 2013-2015 | M23: 36.7 (at-sea); 52 (self-sampling) | N23: 12 | O23: Final decision between at-sea and self-sampling in this scheme depends on yet-unknown logistics, safety and refusals in at-sea sampling; some invertebrates species are not measured | P23: 25 (at-sea); 52 (self-sampling) | Q23: 3 | R23: 0.25 | S23: 25 | T23: 3 | U23: 399 | V23: 6 | W23: 3 | X23: 1108 | Y23: Undersampled compared to plan due to low activity level in the fishery.
A24: SWE | B24: SWE | C24: Baltic Sea | D24: ICES | E24: 22-32 | F24: Baltic at-sea or self-sampling | G24: SWE - Balt (at-sea/self) - OutOfFrame | H24: Vessel | I24: None | J24: None | K24: None | L24: 2013-2015 | M24: 516 | N24: 0 | P24: 470 | Q24: 0 | S24: 470 | T24: 0 | U24: 25373 | V24: 0 | W24: 0 | X24: 0
A25: SWE | B25: SWE | C25: Baltic Sea | D25: ICES | E25: SD30 | F25: Baltic onshore sampling | G25: KBN3 | H25: Vessel | I25: Landings+Discards | J25: all species and stocks | K25: monthly | L25: 2015 | M25: 16 | N25: 1 | O25: Seasonality: Monthly throughout the year provided that ice conditions permit fishery. | P25: 4 | Q25: 3 | R25: =Q25/N25 -> 3 | S25: 4 | T25: 3 | U25: 88 | V25: 1 | W25: 1 | X25: 4594
A26: SWE | B26: SWE | C26: Baltic Sea | D26: ICES | E26: SD30-31 | F26: Baltic onshore sampling | G26: KBN4 | H26: Vessel | I26: Landings+Discards | J26: all species and stocks | K26: monthly | L26: 2015 | M26: 80 | N26: 6 | O26: Seasonality: Monthly during fishing season (April-September). | P26: 68 | Q26: 6 | R26: =Q26/N26 -> 1 | S26: 68 | T26: 6 | U26: 360 | V26: 6 | W26: 1 | X26: 4041
A27: SWE | B27: SWE | C27: Baltic Sea | D27: ICES | E27: SD31 | F27: Baltic onshore sampling | G27: KBN5 | H27: Local fishing area | I27: Landings+Discards | J27: all species and stocks | K27: monthly | L27: 2015 | M27: 5 | N27: 5 | O27: Seasonality: Monthly during fishing season (limited to the vendace's spawning period in September-October). PSU: 5 different local fishing areas are identified within the Sub-area/Fishing ground SD31. To ensure that data are collected from all these 5 areas, as required by the national stock assessment group, "local fishing area" is set as the PSU. | P27: 5 | Q27: 5 | R27: =Q27/N27 -> 1 | S27: 35 | T27: 4 | U27: 591 | V27: 4 | W27: 9 | X27: 1455
A28: SWE | B28: SWE | C28: Baltic Sea | D28: EIFAAC/ICES/GFCM | E28: SD22-24 | F28: Baltic at-sea 2 | G28: KBWE2 | H28: Vessel | I28: Landings+Discards | J28: all species and stocks | K28: monthly | L28: 2015 | M28: 17 | N28: 1 | O28: Seasonality: Monthly during fishing season (special individual permit is required where start and stop days are defined). Besides the metier-sampling, silver eel are collected for biological (stock) sampling and they are selected by length stratification. | P28: 7 | Q28: 1 | R28: =Q28/N28 -> 1 | S28: 7 | T28: 1 | U28: 393 | V28: 1 | W28: 7 | X28: 181 | Y28: Furthermore, eel for stock sampling was collected from additionally 1 fishing trip.
A29: SWE | B29: SWE | C29: Baltic Sea | D29: EIFAAC/ICES/GFCM | E29: SD25-29,32 | F29: Baltic at-sea 2 | G29: KBEE2/KBEE3 | H29: Vessel | I29: Landings+Discards | J29: all species and stocks | K29: monthly | L29: 2015 | M29: 127 | N29: 2 | O29: Seasonality: Monthly during fishing season (special individual permit is required where start and stop days are defined). Besides the metier-sampling, silver eel are collected for biological (stock) sampling and they are selected by length stratification. | P29: 66 | Q29: 3 | R29: =Q29/N29 -> 1.5 | S29: 66 | T29: 3 | U29: 3235 | V29: 6 | W29: 31 | X29: 2200 | Y29: Planned No of PSUs (column N) were 3, hence % of achievement (column R) was 100%. In short, sampling was conducted in two places, one in SD 25 and one in SD 27. From start it was planned to sample two different vessels in SD 25 and one vessel in SD 27, consequently WP table 4A needs to be updated according to the on-going sampling scheme._Furthermore, eel for stock sampling was collected from additionally 19 fishing trips.
A30: SWE | B30: SWE | C30: North sea and Eastern Arctic | D30: ICES | E30: 20 | F30: Skagerrak/Kattegat other (market stock specific) | G30: SWE - SkaKat (stock spec) - Act - 20 - HerSpr | H30: Fishing trip x species (HER, SPR) | I30: landings | J30: selected species/stocks | K30: Quarterly | L30: 2013-2015 | M30: 214 | N30: Not defined | O30: PSU number calculated from trip * species combinations | P30: 107 | Q30: 47 | R30: NA | S30: 14 | T30: 12 | U30: 107 | V30: 47 | W30: 2 | X30: 3478
A31: SWE | B31: SWE | C31: North sea and Eastern Arctic | D31: ICES | E31: 21 | F31: Skagerrak/Kattegat other (market stock specific) | G31: SWE - SkaKat (stock spec) - Act - 21 - HerSpr | H31: Fishing trip x species (HER, SPR) | I31: landings | J31: selected species/stocks | K31: Quarterly | L31: 2013-2015 | M31: 64.7 | N31: Not defined | O31: PSU number calculated from trip * species combinations | P31: 100 | Q31: 27 | R31: NA | S31: 8 | T31: 7 | U31: 100 | V31: 27 | W31: 2 | X31: 2171
A32: SWE | B32: SWE | C32: North sea and Eastern Arctic | D32: ICES | E32: 20 | F32: Skagerrak/Kattegat other (market stock specific) | G32: SWE - SkaKat (stock spec) - Act - 20 - Cod | H32: Fishing trip x species (COD) | I32: Landings | J32: selected species/stocks | K32: Quarterly | L32: 2013-2015 | M32: 2254.3 | N32: Not defined | O32: PSU number calculated from trip * species combinations | P32: 2330 | Q32: 82 | R32: NA | S32: 131 | T32: 31 | U32: 2330 | V32: 82 | W32: 1 | X32: 1982
A33: SWE | B33: SWE | C33: North sea and Eastern Arctic | D33: ICES | E33: 21 | F33: Skagerrak/Kattegat other (market stock specific) | G33: SWE - SkaKat (stock spec) - Act - 21 - Cod | H33: Fishing trip x species (COD) | I33: Landings | J33: selected species/stocks | K33: Quarterly | L33: 2013-2015 | M33: 495.3 | N33: Not defined | O33: PSU number calculated from trip * species combinations | P33: 843 | Q33: 64 | R33: NA | S33: 61 | T33: 18 | U33: 843 | V33: 64 | W33: 1 | X33: 1288
A34: SWE | B34: SWE | C34: Baltic Sea | D34: ICES | E34: 24 | F34: Baltic other (market, stock specific) | G34: SWE - Balt (stock spec) - Act - 24 - HerSpr | H34: Fishing trip x species (HER, SPR) | I34: landings | J34: selected species/stocks | K34: Quarterly | L34: 2013-2015 | M34: 43 | N34: Not defined | O34: PSU number calculated from trip * species combinations | P34: 70 | Q34: 16 | R34: NA | S34: 7 | T34: 3 | U34: 70 | V34: 16 | W34: 2 | X34: 1663
A35: SWE | B35: SWE | C35: Baltic Sea | D35: ICES | E35: 25 | F35: Baltic other (market, stock specific) | G35: SWE - Balt (stock spec) - Act - 25 - HerSpr | H35: Fishing trip x species (HER, SPR) | I35: landings | J35: selected species/stocks | K35: Quarterly | L35: 2013-2015 | M35: 705.3 | N35: Not defined | O35: PSU number calculated from trip * species combinations | P35: 660 | Q35: 38 | R35: NA | S35: 32 | T35: 7 | U35: 660 | V35: 38 | W35: 2 | X35: 3863
A36: SWE | B36: SWE | C36: Baltic Sea | D36: ICES | E36: 26 | F36: Baltic other (market, stock specific) | G36: SWE - Balt (stock spec) - Act - 26 - HerSpr | H36: Fishing trip x species (HER, SPR) | I36: landings | J36: selected species/stocks | K36: Quarterly | L36: 2013-2015 | M36: 19 | N36: Not defined | O36: PSU number calculated from trip * species combinations | P36: 44 | Q36: 8 | R36: NA | S36: 12 | T36: 6 | U36: 44 | V36: 8 | W36: 2 | X36: 484
A37: SWE | B37: SWE | C37: Baltic Sea | D37: ICES | E37: 27 | F37: Baltic other (market, stock specific) | G37: SWE - Balt (stock spec) - Act - 27 - HerSpr | H37: Fishing trip x species (HER, SPR) | I37: landings | J37: selected species/stocks | K37: Quarterly | L37: 2013-2015 | M37: 592.7 | N37: Not defined | O37: PSU number calculated from trip * species combinations | P37: 490 | Q37: 13 | R37: NA | S37: 41 | T37: 5 | U37: 490 | V37: 13 | W37: 2 | X37: 1862
A38: SWE | B38: SWE | C38: Baltic Sea | D38: ICES | E38: 28 | F38: Baltic other (market, stock specific) | G38: SWE - Balt (stock spec) - Act - 28 - HerSpr | H38: Fishing trip x species (HER, SPR) | I38: landings | J38: selected species/stocks | K38: Quarterly | L38: 2013-2015 | M38: 383.3 | N38: Not defined | O38: PSU number calculated from trip * species combinations | P38: 485 | Q38: 21 | R38: NA | S38: 22 | T38: 11 | U38: 485 | V38: 21 | W38: 2 | X38: 2921
A39: SWE | B39: SWE | C39: Baltic Sea | D39: ICES | E39: 29 | F39: Baltic other (market, stock specific) | G39: SWE - Balt (stock spec) - Act - 29 - HerSpr | H39: Fishing trip x species (HER, SPR) | I39: landings | J39: selected species/stocks | K39: Quarterly | L39: 2013-2015 | M39: 115 | N39: Not defined | O39: PSU number calculated from trip * species combinations | P39: 71 | Q39: 4 | R39: NA | S39: 19 | T39: 4 | U39: 71 | V39: 4 | W39: 2 | X39: 728
A40: SWE | B40: SWE | C40: Freshwater | D40: ICES | E40: freshwater | F40: logbooks & journals | G40: EEL-Fresh | H40: Fisherman X lake | I40: landings + discard | J40: Eel | K40: annual | L40: 2015-2017 | M40: NA | N40: NA | O40: Fishery statistics required for the assessment. All trips are sampled as all catch is reported. Biological sampling described in textbox 4A and table 1C. | P40: 3 | Q40: 3 | R40: =Q40/3 -> 1 | S40: 3 | T40: 3 | U40: 3 | V40: 3 | W40: 1 | X40: 358 | Y40: Fishery statistics required for the assessment. All trips are sampled as all catch is reported to.

Sheet Table4B Sampling frame descrip
A1: Table 4B: Sampling frame description for biological data
E2: WP years | F2: 2017-2019
E3: AR year | F3: 2017
A4: MS | B4: Stratum ID number | C4: Stratum | D4: Sampling frame description | E4: Method of PSU selection | F4: Comments
A5: SWE | B5: SWE - SkaKat (at-sea) - Act - 20/21 - PanTrawlTun | C5: Shrimp trawlers operating with tunnel in Skagerrak and Kattegat | D5: List of trawlers active in the Pandalus fishery with tunnel in subdiv 20 or 21 during 2016 | E5: random draw from vessel list with unequal probability (probability proportional to number of trips; draw with replacement)
A6: SWE | B6: SWE - SkaKat (at-sea) - Act - 20/21 - PanTrawlNoTun | C6: Shrimp trawlers operating without tunnel in Skagerrak and Kattegat | D6: List of trawlers active in the Pandalus fishery without tunnel in subdiv 20 or 21 during 2016 | E6: random draw from vessel list with unequal probability (probability proportional to number of trips; draw with replacement)
A7: SWE | B7: SWE - SkaKat (at-sea) - Act - 20 - NepTrawlGrid | C7: Nephrops trawlers operating with grid in Skagerrak | D7: List of trawlers active in the Nephrops trawl fishery with grid in subdiv 20 during 2016 | E7: random draw from vessel list with unequal probability (probability proportional to number of trips; draw with replacement)
A8: SWE | B8: SWE - SkaKat (at-sea) - Act - 21 - NepTrawlGrid | C8: Nephrops trawlers operating with grid in Kattegat | D8: List of trawlers active in the Nephrops trawl fishery with grid in subdiv 21 during 2016 | E8: random draw from vessel list with unequal probability (probability proportional to number of trips; draw with replacement)
A9: SWE | B9: SWE - SkaKat (at-sea) - Act - 20 - MixTrawl | C9: Mix fish and crustacean trawlers operating in Skagerrak | D9: List of trawlers active in the Mix Fish and Crustacean fishery in subdiv 20 during 2016 | E9: random draw from vessel list with unequal probability (probability proportional to number of trips; draw with replacement)
A10: SWE | B10: SWE - SkaKat (at-sea) - Act - 21 - MixTrawl | C10: Mix fish and crustacean trawlers operating in Kattegat | D10: List of trawlers active in the Mix Fish and Crustacean fishery in subdiv 21 during 2016 | E10: random draw from vessel list with unequal probability (probability proportional to number of trips; draw with replacement)
A11: SWE | B11: SWE - SkaKat (at-sea) - Pass - 20/21 - NepPots | C11: Nephrops potters operating in Skagerrak and Kattegat | D11: List of vessels active in the Nephrops Pot fishery in subdiv 20 or 21 during 2016 | E11: random draw from vessel list with unequal probability (probability proportional to number of trips; draw with replacement)
A12: SWE | B12: SWE - SkaKat (at-sea) - OutOfFrame | C12: Vessels in region operating in fisheries not targetted in the sampling scheme Skagerrak/Kattegat at-sea | D12: List of active vessels in 2016 not covered in other strata of the sampling scheme | E12: NA
A13: SWE | B13: SWE - Balt (self) - Act - 22/32 - DemTrawl | C13: Demersal trawlers operating in Subdiv 24 to 32 | D13: List of weeks of the year (with some restrictions) | E13: random draw from list without replacement
A14: SWE | B14: SWE - Balt (self) - OutOfFrame | C14: Vessels in region operating in fisheries not targetted in the sampling scheme Baltic self-sampling | D14: List of active vessels in 2016 not covered in other strata of the sampling scheme | E14: NA
A15: SWE | B15: SWE - Balt (at-sea) - Act - 24/25 - DemTrawl | C15: Demersal trawlers operating in Subdiv 24 and 25 | D15: List of vessels active in the Demersal trawl fishery in subdiv 24 or 25 during 2016 | E15: random draw from vessel list with unequal probability (probability proportional to number of trips; draw with replacement)
A16: SWE | B16: SWE - Balt (at-sea) - OutOfFrame | C16: Vessels in region operating in fisheries not targetted in the sampling scheme Baltic at-sea | D16: List of active vessels in 2016 not covered in other strata of the sampling scheme | E16: NA
A17: SWE | B17: SWE - Balt (at-sea/self) - Pass - 23 - DemNets | C17: Demersal Gillnetters operating in Subdiv 23 | D17: List of weeks of the year or List of vessels active in the demersal fishery with nets of subdiv 23 during 2016 | E17: random draw from vessel list (if at-sea); random draw from week list without replacement (if self-sampling) | F17: Final decision between at-sea and self-sampling in this stratum depends on yet-unknown logistics, safety and refusals in at-sea sampling;
A18: SWE | B18: SWE - Balt (at-sea/self) - Pass - 24 - DemNets | C18: Demersal Gillnetters operating in Subdiv 24 | D18: List of weeks of the year or List of vessels active in the demersal fishery with nets of subdiv 24 during 2016 | E18: random draw from vessel list (if at-sea); random draw from week list without replacement (if self-sampling) | F18: Final decision between at-sea and self-sampling in this stratum depends on yet-unknown logistics, safety and refusals in at-sea sampling;
A19: SWE | B19: SWE - Balt (at-sea/self) - Pass - 25 - DemNets | C19: Demersal Gillnetters operating in Subdiv 25 | D19: List of weeks of the year or List of vessels active in the demersal fishery with nets of subdiv 25 during 2016 | E19: random draw from vessel list (if at-sea); random draw from week list without replacement (if self-sampling) | F19: Final decision between at-sea and self-sampling in this stratum depends on yet-unknown logistics, safety and refusals in at-sea sampling;
A20: SWE | B20: SWE - Balt (at-sea/self) - Pass - 27/29 - DemNets | C20: Demersal Gillnetters operating in Subdiv 27 to 29 | D20: List of weeks of the year or List of vessels active in the demersal fishery with nets of subdiv 27 to 29 during 2016 | E20: random draw from vessel list (if at-sea); random draw from week list without replacement (if self-sampling) | F20: Final decision between at-sea and self-sampling in this stratum depends on yet-unknown logistics, safety and refusals in at-sea sampling;
A21: SWE | B21: SWE - Balt (at-sea/self) - Pass - 24 - DemLonglines | C21: Demersal Longliners operating in Subdiv 24 | D21: List of weeks of the year or List of vessels active in the demersal fishery with longlines of subdiv 24 during 2016 | E21: random draw from vessel list (if at-sea); random draw from week list without replacement (if self-sampling) | F21: Final decision between at-sea and self-sampling in this stratum depends on yet-unknown logistics, safety and refusals in at-sea sampling;
A22: SWE | B22: SWE - Balt (at-sea/self) - Pass - 25 - DemLonglines | C22: Demersal Longliners operating in Subdiv 25 | D22: List of weeks of the year or List of vessels active in the demersal fishery with longlines of subdiv 25 during 2016 | E22: random draw from vessel list (if at-sea); random draw from week list without replacement (if self-sampling) | F22: Final decision between at-sea and self-sampling in this stratum depends on yet-unknown logistics, safety and refusals in at-sea sampling;
A23: SWE | B23: SWE - Balt (at-sea/self) - Pass - OutOfFrame | C23: Vessels in region operating in fisheries not targetted in the sampling scheme "Baltic at-sea or self-sampling" | D23: List of active vessels in 2016 not covered in other strata of sampling scheme | E23: NA
A24: SWE | B24: KBN3 | C24: Trawlers targeting herring | D24: Commercial trawlers targeting herring in the Bothnian Sea | E24: preselected vessels contracted on a yearly basis
A25: SWE | B25: KBN4 | C25: Gillnetters targeting herring | D25: Licensed fishermen targeting herring by gill nets in the Gulf of Bothnia | E25: preselected fishermen contracted on a yearly basis
A26: SWE | B26: KBN5 | C26: Trawlers targeting vendace | D26: Commercial vessels with permit to conduct vendace pair-trawling | E26: predefined local fishing areas
A27: SWE | B27: KBWE2 | C27: Pound nets | D27: Licensed pound net fishermen with permit to target silver eel | E27: preselected fishermen contracted on a yearly basis
A28: SWE | B28: KBEE2/KBEE3 | C28: Pound nets | D28: Licensed pound net fishermen with permit to target silver eel | E28: preselected fishermen contracted on a yearly basis
A29: SWE | B29: SWE - SkaKat (stock spec)- Act - 20 - HerSpr | C29: Landings of Herring and Sprat from vessels operating in Skagerrak | D29: Hypothetical list of fishing trips with landings of herring or sprat from subdiv 20 during 2017 | E29: ad-hoc selection by first hand buyer until sampling quota is attained
A30: SWE | B30: SWE - SkaKat (stock spec)- Act - 21 - HerSpr | C30: Landings of Herring and Sprat from vessels operating in Kattegat | D30: Hypothetical list of fishing trips with landings of herring or sprat from subdiv 21 during 2017 | E30: ad-hoc selection by first hand buyer until sampling quota is attained
A31: SWE | B31: SWE - SkaKat (stock spec)- Act - 20 - Cod | C31: Landings of Cod from vessels operating in Skagerrak | D31: Hypothetical list of fishing trips with landings of cod from subdiv 20 during 2017 | E31: ad-hoc selection by first hand buyer until sampling targets are attained
A32: SWE | B32: SWE - SkaKat (stock spec)- Act - 21 - Cod | C32: Landings of Cod from vessels operating in Kattegat | D32: Hypothetical list of fishing trips with landings of cod from subdiv 21 during 2017 | E32: ad-hoc selection by first hand buyer until sampling targets are attained
A33: SWE | B33: SWE - Balt (stock spec) - Act - 24 - HerSpr | C33: Landings of Herring and Sprat from Subdivision 24 | D33: Hypothetical list of fishing trips with landings of herring or sprat from subdiv 24 during 2017 | E33: ad-hoc selection by first hand buyer until sampling targets are attained
A34: SWE | B34: SWE - Balt (stock spec) - Act - 25 - HerSpr | C34: Landings of Herring and Sprat from Subdivision 25 | D34: Hypothetical list of fishing trips with landings of herring or sprat from subdiv 25 during 2017 | E34: ad-hoc selection by first hand buyer until sampling targets are attained
A35: SWE | B35: SWE - Balt (stock spec)- Act - 26 - HerSpr | C35: Landings of Herring and Sprat from Subdivision 26 | D35: Hypothetical list of fishing trips with landings of herring or sprat from subdiv 26 during 2017 | E35: ad-hoc selection by first hand buyer until sampling targets are attained
A36: SWE | B36: SWE - Balt (stock spec)- Act - 27 - HerSpr | C36: Landings of Herring and Sprat from Subdivision 27 | D36: Hypothetical list of fishing trips with landings of herring or sprat from subdiv 27 during 2017 | E36: ad-hoc selection by first hand buyer until sampling targets are attained
A37: SWE | B37: SWE - Balt (stock spec)- Act - 28 - HerSpr | C37: Landings of Herring and Sprat from Subdivision 28 | D37: Hypothetical list of fishing trips with landings of herring or sprat from subdiv 28 during 2017 | E37: ad-hoc selection by first hand buyer until sampling targets are attained
A38: SWE | B38: SWE - Balt (stock spec)- Act - 29 - HerSpr | C38: Landings of Herring and Sprat from Subdivision 29 | D38: Hypothetical list of fishing trips with landings of herring or sprat from subdiv 29 during 2017 | E38: ad-hoc selection by first hand buyer until sampling targets are attained
A39: SWE | B39: EEL-Fresh | C39: Freshwater | D39: Commercial eel fishers | E39: Representaive eelfisherman in three lakes | F39: All catch reported to SwAM for numbers and total weight. Biological sampling described in textbox 4A and table 1C.

Sheet Table4C Data on the fisheries
A1: Table 4C: Data on the fisheries by member state
U2: WP years | V2: 2017-2019
U3: AR year | V3: 2017
A4: MS | B4: Region | C4: RFMO/RFO/IO | D4: Sub-area / Fishing ground | E4: Reference years | F4: Fleet segment / Metier | G4: Targeted species / species assemblage | H4: Average number of vessels | I4: Average number of fishing trips | J4: Average number of fishing days | K4: Average landings (tons) | L4: Average landings (tons) in national ports | M4: Average landings (tons) in foreign ports | N4: Comments | O4: Number of vessels | P4: Number of fishing trips | Q4: Number of fishing days | R4: Is the fleet segment/ metier covered by any stratum (Y/N) | S4: Landings (tons) | T4: Landings (tons) in national ports | U4: Landings (tons) in foreign ports | V4: AR Comments
A5: SWE | B5: North Sea and Eastern Arctic | C5: ICES | D5: ICES area II | E5: 2013-2015 | F5: OTM_SPF_32-69_0_0 | G5: Small pelagic fish | H5: 1 | I5: 1 | J5: 1 | K5: 238 | L5: 0 | M5: 238 | N5: Vessels can be involved in more than one metier; number of trips is metier specific and cannot be summed across metiers. For vessels <10m, reporting by monthly journals, number of trips is assumed to be equal to number of fishing days. (Comment applicable to the entire table) | O5: 2 | P5: 3 | Q5: 5 | R5: N | S5: 757.65 | T5: 0 | U5: 757.65
A6: SWE | B6: North Sea and Eastern Arctic | C6: ICES | D6: ICES area II | E6: 2013-2015 | F6: PS_SPF_32-69_0_0 | G6: Small pelagic fish | H6: 1 | I6: 3 | J6: 3 | K6: 1100 | L6: 0 | M6: 1100 | O6: 2 | P6: 6 | Q6: 6 | R6: N | S6: 2120 | T6: 0 | U6: 2120
A7: SWE | B7: North Sea and Eastern Arctic | C7: ICES | D7: ICES area II | E7: 2013-2015 | F7: PTM_SPF_32-69_0_0 | G7: Small pelagic fish | H7: 1 | I7: 2 | J7: 2 | K7: 295 | L7: 0 | M7: 295 | O7: 0 | P7: 0 | Q7: 0 | R7: Not Applicable | S7: 0 | T7: 0 | U7: 0
A8: SWE | B8: Baltic Sea | C8: ICES | D8: ICES areas III b-d | E8: 2013-2015 | F8: FPN_ANA_>0_0_0 | G8: Anadromous species | H8: 1 | I8: 77 | J8: 77 | K8: 2 | L8: 2 | M8: 0 | O8: 0 | P8: 0 | Q8: 0 | R8: Not Applicable | S8: 0 | T8: 0 | U8: 0
A9: SWE | B9: Baltic Sea | C9: ICES | D9: ICES areas III b-d | E9: 2013-2015 | F9: FPN_CAT_>0_0_0 | G9: Catadromous species | H9: 79 | I9: 4390 | J9: 4390 | K9: 153 | L9: 153 | M9: 0 | O9: 75 | P9: 3610 | Q9: 3610 | R9: Y | S9: 91.3443 | T9: 91.3443 | U9: 0
A10: SWE | B10: Baltic Sea | C10: ICES | D10: ICES areas III b-d | E10: 2013-2015 | F10: FPN_DEF_>0_0_0 | G10: Demersal species | H10: 2 | I10: 26 | J10: 26 | K10: 1 | L10: 1 | M10: 0 | O10: 3 | P10: 81 | Q10: 81 | R10: N | S10: 1.473 | T10: 1.473 | U10: 0
A11: SWE | B11: Baltic Sea | C11: ICES | D11: ICES areas III b-d | E11: 2013-2015 | F11: FPN_FWS_>0_0_0 | G11: Freshwater species | H11: 6 | I11: 180 | J11: 180 | K11: 5 | L11: 5 | M11: 0 | O11: 5 | P11: 75 | Q11: 75 | R11: N | S11: 1.695 | T11: 1.695 | U11: 0
A12: SWE | B12: Baltic Sea | C12: ICES | D12: ICES areas III b-d | E12: 2013-2015 | F12: FPN_SPF_>0_0_0 | G12: Small pelagic fish | H12: 1 | I12: 38 | J12: 38 | K12: 1 | L12: 1 | M12: 0 | O12: 2 | P12: 21 | Q12: 21 | R12: Y | S12: 0.392 | T12: 0.392 | U12: 0
A13: SWE | B13: Baltic Sea | C13: ICES | D13: ICES areas III b-d | E13: 2013-2015 | F13: FPO_ANA_>0_0_0 | G13: Anadromous species | H13: 112 | I13: 2981 | J13: 2981 | K13: 224 | L13: 224 | M13: 0 | O13: 103 | P13: 2467 | Q13: 2467 | R13: Y | S13: 186.7712 | T13: 186.7712 | U13: 0
A14: SWE | B14: Baltic Sea | C14: ICES | D14: ICES areas III b-d | E14: 2013-2015 | F14: FPO_CAT_>0_0_0 | G14: Catadromous species | H14: 26 | I14: 872 | J14: 872 | K14: 15 | L14: 15 | M14: 0 | O14: 27 | P14: 817 | Q14: 817 | R14: Y | S14: 8.8466 | T14: 8.8466 | U14: 0
A15: SWE | B15: Baltic Sea | C15: ICES | D15: ICES areas III b-d | E15: 2013-2015 | F15: FPO_DEF_>0_0_0 | G15: Demersal species | H15: 9 | I15: 111 | J15: 111 | K15: 4 | L15: 4 | M15: 0 | O15: 10 | P15: 286 | Q15: 289 | R15: N | S15: 12.2941 | T15: 12.2791 | U15: 0.015
A16: SWE | B16: Baltic Sea | C16: ICES | D16: ICES areas III b-d | E16: 2013-2015 | F16: FPO_FWS_>0_0_0 | G16: Freshwater species | H16: 31 | I16: 910 | J16: 910 | K16: 20 | L16: 20 | M16: 0 | O16: 33 | P16: 894 | Q16: 894 | R16: N | S16: 32.986 | T16: 32.986 | U16: 0
A17: SWE | B17: Baltic Sea | C17: ICES | D17: ICES areas III b-d | E17: 2013-2015 | F17: FPO_SPF_>0_0_0 | G17: Small pelagic fish | H17: 1 | I17: 7 | J17: 7 | K17: 0.14 | L17: 0.14 | M17: 0 | O17: 0 | P17: 0 | Q17: 0 | R17: Not Applicable | S17: 0 | T17: 0 | U17: 0
A18: SWE | B18: Baltic Sea | C18: ICES | D18: ICES areas III b-d | E18: 2013-2015 | F18: FYK_ANA_>0_0_0 | G18: Anadromous species | H18: 10 | I18: 237 | J18: 237 | K18: 8 | L18: 8 | M18: 0 | O18: 13 | P18: 150 | Q18: 150 | R18: Y | S18: 12.2578 | T18: 12.2578 | U18: 0
A19: SWE | B19: Baltic Sea | C19: ICES | D19: ICES areas III b-d | E19: 2013-2015 | F19: FYK_CAT_>0_0_0 | G19: Catadromous species | H19: 87 | I19: 3312 | J19: 3312 | K19: 67 | L19: 67 | M19: 0 | O19: 87 | P19: 3120 | Q19: 3120 | R19: Y | S19: 55.3626 | T19: 55.3626 | U19: 0
A20: SWE | B20: Baltic Sea | C20: ICES | D20: ICES areas III b-d | E20: 2013-2015 | F20: FYK_FWS_>0_0_0 | G20: Freshwater species | H20: 10 | I20: 166 | J20: 166 | K20: 2 | L20: 2 | M20: 0 | O20: 13 | P20: 272 | Q20: 272 | R20: N | S20: 2.938 | T20: 2.938 | U20: 0
A21: SWE | B21: Baltic Sea | C21: ICES | D21: ICES areas III b-d | E21: 2013-2015 | F21: FYK_SPF_>0_0_0 | G21: Small pelagic fish | H21: 18 | I21: 504 | J21: 504 | K21: 35 | L21: 35 | M21: 0 | O21: 18 | P21: 526 | Q21: 526 | R21: Y | S21: 18.903 | T21: 18.903 | U21: 0
A22: SWE | B22: Baltic Sea | C22: ICES | D22: ICES areas III b-d | E22: 2013-2015 | F22: GNS_ANA_>=157_0_0 | G22: Anadromous species | H22: 1 | I22: 16 | J22: 16 | K22: 0.5 | L22: 0.5 | M22: 0 | O22: 2 | P22: 64 | Q22: 64 | R22: N | S22: 1.7565 | T22: 1.7565 | U22: 0
A23: SWE | B23: Baltic Sea | C23: ICES | D23: ICES areas III b-d | E23: 2013-2015 | F23: GNS_ANA_110-156_0_0 | G23: Anadromous species | H23: 8 | I23: 82 | J23: 82 | K23: 1 | L23: 1 | M23: 0 | O23: 9 | P23: 140 | Q23: 140 | R23: N | S23: 3.4826 | T23: 3.4826 | U23: 0
A24: SWE | B24: Baltic Sea | C24: ICES | D24: ICES areas III b-d | E24: 2013-2015 | F24: GNS_DEF_>=157_0_0 | G24: Demersal species | H24: 76 | I24: 1141 | J24: 1143 | K24: 242 | L24: 224 | M24: 18 | O24: 66 | P24: 956 | Q24: 954 | R24: Y | S24: 151.9442 | T24: 134.6998 | U24: 17.2444
A25: SWE | B25: Baltic Sea | C25: ICES | D25: ICES areas III b-d | E25: 2013-2015 | F25: GNS_DEF_110-156_0_0 | G25: Demersal species | H25: 229 | I25: 7645 | J25: 7721 | K25: 1254 | L25: 1231 | M25: 23 | O25: 170 | P25: 5277 | Q25: 5318 | R25: Y | S25: 784.5808 | T25: 732.3898 | U25: 52.191
A26: SWE | B26: Baltic Sea | C26: ICES | D26: ICES areas III b-d | E26: 2013-2015 | F26: GNS_DEF_90-109_0_0 | G26: Demersal species | H26: 2 | I26: 13 | J26: 13 | K26: 0.7 | L26: 0.4 | M26: 0.3 | O26: 0 | P26: 0 | Q26: 0 | R26: Not Applicable | S26: 0 | T26: 0 | U26: 0
A27: SWE | B27: Baltic Sea | C27: ICES | D27: ICES areas III b-d | E27: 2013-2015 | F27: GNS_FWS_>0_0_0 | G27: Freshwater species | H27: 201 | I27: 9021 | J27: 9056 | K27: 296 | L27: 296 | M27: 0 | O27: 175 | P27: 7182 | Q27: 7186 | R27: N | S27: 220.4216 | T27: 220.4216 | U27: 0
A28: SWE | B28: Baltic Sea | C28: ICES | D28: ICES areas III b-d | E28: 2013-2015 | F28: GNS_SPF_16-109_0_0 | G28: Small pelagic fish | H28: 92 | I28: 2098 | J28: 2087 | K28: 668 | L28: 668 | M28: 0 | O28: 80 | P28: 1754 | Q28: 1745 | R28: Y | S28: 649.2534 | T28: 649.2534 | U28: 0
A29: SWE | B29: Baltic Sea | C29: ICES | D29: ICES areas III b-d | E29: 2013-2015 | F29: GNS_SPF_32-109_0_0 | G29: Small pelagic fish | H29: 46 | I29: 949 | J29: 945 | K29: 413 | L29: 119 | M29: 294 | O29: 35 | P29: 735 | Q29: 733 | R29: Y | S29: 370.199 | T29: 89.259 | U29: 280.94
A30: SWE | B30: Baltic Sea | C30: ICES | D30: ICES areas III b-d | E30: 2013-2015 | F30: GTR_DEF_>=157_0_0 | G30: Demersal species | H30: 12 | I30: 313 | J30: 313 | K30: 48 | L30: 48 | M30: 0 | O30: 10 | P30: 166 | Q30: 166 | R30: Y | S30: 12.9831 | T30: 12.9831 | U30: 0
A31: SWE | B31: Baltic Sea | C31: ICES | D31: ICES areas III b-d | E31: 2013-2015 | F31: GTR_DEF_110-156_0_0 | G31: Demersal species | H31: 21 | I31: 606 | J31: 607 | K31: 88 | L31: 83 | M31: 5 | O31: 16 | P31: 457 | Q31: 457 | R31: Y | S31: 99.7167 | T31: 98.2657 | U31: 1.451
A32: SWE | B32: Baltic Sea | C32: ICES | D32: ICES areas III b-d | E32: 2013-2015 | F32: GTR_DEF_90-109_0_0 | G32: Demersal species | H32: 1 | I32: 1 | J32: 1 | K32: 0.01 | L32: 0.01 | M32: 0 | O32: 0 | P32: 0 | Q32: 0 | R32: Not Applicable | S32: 0 | T32: 0 | U32: 0
A33: SWE | B33: Baltic Sea | C33: ICES | D33: ICES areas III b-d | E33: 2013-2015 | F33: LHP_FIF_0_0_0 | G33: Finfish | H33: 11 | I33: 97 | J33: 97 | K33: 21 | L33: 21 | M33: 0 | O33: 10 | P33: 91 | Q33: 91 | R33: N | S33: 16.5344 | T33: 16.5344 | U33: 0
A34: SWE | B34: Baltic Sea | C34: ICES | D34: ICES areas III b-d | E34: 2013-2015 | F34: LLS_CAT_0_0_0 | G34: Catadromous species | H34: 2 | I34: 23 | J34: 23 | K34: 0.2 | L34: 0.2 | M34: 0 | O34: 2 | P34: 18 | Q34: 18 | R34: N | S34: 0.091 | T34: 0.091 | U34: 0
A35: SWE | B35: Baltic Sea | C35: ICES | D35: ICES areas III b-d | E35: 2013-2015 | F35: LLS_DEF_0_0_0 | G35: Demersal species | H35: 45 | I35: 908 | J35: 931 | K35: 299 | L35: 288 | M35: 11 | O35: 29 | P35: 422 | Q35: 422 | R35: Y | S35: 94.8423 | T35: 94.8423 | U35: 0
A36: SWE | B36: Baltic Sea | C36: ICES | D36: ICES areas III b-d | E36: 2013-2015 | F36: MIS_MIS_0_0_0 | G36: Miscellaneous | H36: 4 | I36: 42 | J36: 42 | K36: 0.4 | L36: 0.4 | M36: 0 | O36: 0 | P36: 0 | Q36: 0 | R36: Not Applicable | S36: 0 | T36: 0 | U36: 0
A37: SWE | B37: Baltic Sea | C37: ICES | D37: ICES areas III b-d | E37: 2013-2015 | F37: OTB_DEF_>=105_1_120 | G37: Demersal species | H37: 26 | I37: 621 | J37: 1065 | K37: 2395 | L37: 2278 | M37: 117 | O37: 21 | P37: 274 | Q37: 506 | R37: Y | S37: 1293.9832 | T37: 1283.2298 | U37: 10.7534
A38: SWE | B38: Baltic Sea | C38: ICES | D38: ICES areas III b-d | E38: 2013-2015 | F38: OTB_DEF_>=120_0_0 | G38: Demersal species | H38: 16 | I38: 300 | J38: 564 | K38: 1303 | L38: 1183 | M38: 120 | O38: 14 | P38: 321 | Q38: 696 | R38: Y | S38: 2052.5296 | T38: 1795.8907 | U38: 256.6389
A39: SWE | B39: Baltic Sea | C39: ICES | D39: ICES areas III b-d | E39: 2013-2015 | F39: OTB_SPF_16-104_0_0 | G39: Small pelagic fish | H39: 15 | I39: 334 | J39: 408 | K39: 5078 | L39: 5078 | M39: 0 | O39: 13 | P39: 261 | Q39: 342 | R39: Y | S39: 5236.9898 | T39: 4841.9898 | U39: 395
A40: SWE | B40: Baltic Sea | C40: ICES | D40: ICES areas III b-d | E40: 2013-2015 | F40: OTB_SPF_16-31_0_0 | G40: Small pelagic fish | H40: 12 | I40: 474 | J40: 476 | K40: 4369 | L40: 4297 | M40: 72 | O40: 10 | P40: 360 | Q40: 360 | R40: Y | S40: 2369.0484 | T40: 2334.0484 | U40: 35
A41: SWE | B41: Baltic Sea | C41: ICES | D41: ICES areas III b-d | E41: 2013-2015 | F41: OTB_SPF_32-104_0_0 | G41: Small pelagic fish | H41: 6 | I41: 164 | J41: 165 | K41: 979 | L41: 979 | M41: 0 | O41: 3 | P41: 18 | Q41: 18 | R41: Y | S41: 53.17 | T41: 53.17 | U41: 0
A42: SWE | B42: Baltic Sea | C42: ICES | D42: ICES areas III b-d | E42: 2013-2015 | F42: OTM_DEF_>=105_1_120 | G42: Demersal species | H42: 4 | I42: 10 | J42: 11 | K42: 2 | L42: 2 | M42: 0 | O42: 0 | P42: 0 | Q42: 0 | R42: Not Applicable | S42: 0 | T42: 0 | U42: 0
A43: SWE | B43: Baltic Sea | C43: ICES | D43: ICES areas III b-d | E43: 2013-2015 | F43: OTM_DEF_>=120_0_0 | G43: Demersal species | H43: 1 | I43: 7 | J43: 7 | K43: 2 | L43: 2 | M43: 0 | O43: 0 | P43: 0 | Q43: 0 | R43: Not Applicable | S43: 0 | T43: 0 | U43: 0
A44: SWE | B44: Baltic Sea | C44: ICES | D44: ICES areas III b-d | E44: 2013-2015 | F44: OTM_SPF_16-104_0_0 | G44: Small pelagic fish | H44: 19 | I44: 302 | J44: 646 | K44: 24562 | L44: 12277 | M44: 12285 | O44: 16 | P44: 369 | Q44: 685 | R44: Y | S44: 35981.874 | T44: 19909.17 | U44: 16072.704
A45: SWE | B45: Baltic Sea | C45: ICES | D45: ICES areas III b-d | E45: 2013-2015 | F45: OTM_SPF_16-31_0_0 | G45: Small pelagic fish | H45: 10 | I45: 121 | J45: 191 | K45: 11336 | L45: 3935 | M45: 7401 | O45: 14 | P45: 278 | Q45: 464 | R45: Y | S45: 30139.363 | T45: 18224.587 | U45: 11914.776
A46: SWE | B46: Baltic Sea | C46: ICES | D46: ICES areas III b-d | E46: 2013-2015 | F46: OTM_SPF_32-104_0_0 | G46: Small pelagic fish | H46: 5 | I46: 113 | J46: 111 | K46: 1730 | L46: 1707 | M46: 23 | O46: 7 | P46: 168 | Q46: 193 | R46: Y | S46: 2841.08 | T46: 2493.94 | U46: 347.14
A47: SWE | B47: Baltic Sea | C47: ICES | D47: ICES areas III b-d | E47: 2013-2015 | F47: OTT_CRU_>0_0_0 | G47: Crustaceans | H47: 1 | I47: 1 | J47: 1 | K47: 0.003 | L47: 0.003 | M47: 0 | O47: 0 | P47: 0 | Q47: 0 | R47: Not Applicable | S47: 0 | T47: 0 | U47: 0
A48: SWE | B48: Baltic Sea | C48: ICES | D48: ICES areas III b-d | E48: 2013-2015 | F48: OTT_DEF_>=105_1_120 | G48: Demersal species | H48: 7 | I48: 365 | J48: 514 | K48: 1281 | L48: 1259 | M48: 22 | O48: 5 | P48: 174 | Q48: 249 | R48: Y | S48: 642.3119 | T48: 642.3119 | U48: 0
A49: SWE | B49: Baltic Sea | C49: ICES | D49: ICES areas III b-d | E49: 2013-2015 | F49: OTT_DEF_>=120_0_0 | G49: Demersal species | H49: 3 | I49: 31 | J49: 83 | K49: 224 | L49: 207 | M49: 17 | O49: 2 | P49: 12 | Q49: 37 | R49: Y | S49: 151.1635 | T49: 151.1635 | U49: 0
A50: SWE | B50: Baltic Sea | C50: ICES | D50: ICES areas III b-d | E50: 2013-2015 | F50: PS_SPF_16-31_0_0 | G50: Small pelagic fish | H50: 2 | I50: 99 | J50: 91 | K50: 585 | L50: 585 | M50: 0 | O50: 1 | P50: 65 | Q50: 60 | R50: Y | S50: 378.677 | T50: 378.677 | U50: 0
A51: SWE | B51: Baltic Sea | C51: ICES | D51: ICES areas III b-d | E51: 2013-2015 | F51: PS_SPF_32-104_0_0 | G51: Small pelagic fish | H51: 2 | I51: 2 | J51: 2 | K51: 3 | L51: 3 | M51: 0 | O51: 1 | P51: 49 | Q51: 48 | R51: Y | S51: 159.177 | T51: 159.177 | U51: 0
A52: SWE | B52: Baltic Sea | C52: ICES | D52: ICES areas III b-d | E52: 2013-2015 | F52: PTB_FWS_>0_0_0 | G52: Freshwater species | H52: 30 | I52: 553 | J52: 547 | K52: 1724 | L52: 1724 | M52: 0 | O52: 27 | P52: 592 | Q52: 590 | R52: Y | S52: 1080.22 | T52: 1080.22 | U52: 0
A53: SWE | B53: Baltic Sea | C53: ICES | D53: ICES areas III b-d | E53: 2013-2015 | F53: PTB_SPF_16-104_0_0 | G53: Small pelagic fish | H53: 2 | I53: 17 | J53: 17 | K53: 75 | L53: 75 | M53: 0 | O53: 2 | P53: 25 | Q53: 26 | R53: Y | S53: 82.2 | T53: 82.2 | U53: 0
A54: SWE | B54: Baltic Sea | C54: ICES | D54: ICES areas III b-d | E54: 2013-2015 | F54: PTB_SPF_32-104_0_0 | G54: Small pelagic fish | H54: 2 | I54: 20 | J54: 20 | K54: 2 | L54: 2 | M54: 0 | O54: 0 | P54: 0 | Q54: 0 | R54: Not Applicable | S54: 0 | T54: 0 | U54: 0
A55: SWE | B55: Baltic Sea | C55: ICES | D55: ICES areas III b-d | E55: 2013-2015 | F55: PTM_SPF_16-104_0_0 | G55: Small pelagic fish | H55: 9 | I55: 64 | J55: 165 | K55: 25715 | L55: 11115 | M55: 14600 | O55: 5 | P55: 23 | Q55: 75 | R55: Y | S55: 10900.76 | T55: 4228.35 | U55: 6672.41
A56: SWE | B56: Baltic Sea | C56: ICES | D56: ICES areas III b-d | E56: 2013-2015 | F56: PTM_SPF_16-31_0_0 | G56: Small pelagic fish | H56: 12 | I56: 91 | J56: 152 | K56: 20299 | L56: 10967 | M56: 9332 | O56: 6 | P56: 71 | Q56: 161 | R56: Y | S56: 18912.967 | T56: 7660.357 | U56: 11252.61
A57: SWE | B57: Baltic Sea | C57: ICES | D57: ICES areas III b-d | E57: 2013-2015 | F57: PTM_SPF_32-104_0_0 | G57: Small pelagic fish | H57: 4 | I57: 75 | J57: 77 | K57: 3661 | L57: 3608 | M57: 53 | O57: 3 | P57: 80 | Q57: 85 | R57: Y | S57: 4917.228 | T57: 4917.228 | U57: 0
A58: SWE | B58: Baltic Sea | C58: ICES | D58: ICES areas III b-d | E58: 2013-2015 | F58: SB_FIF_>0_0_0 | G58: Finfish | H58: 2 | I58: 8 | J58: 8 | K58: 28 | L58: 28 | M58: 0 | O58: 1 | P58: 7 | Q58: 7 | R58: N | S58: 1.06 | T58: 1.06 | U58: 0
A59: SWE | B59: North Sea and Eastern Arctic | C59: ICES | D59: ICES area IIIa | E59: 2013-2015 | F59: DRB_MOL_>=0_0_0 | G59: Molluscs | H59: 2 | I59: 36 | J59: 36 | K59: 4 | L59: 4 | M59: 0 | O59: 0 | P59: 0 | Q59: 0 | R59: Not Applicable | S59: 0 | T59: 0 | U59: 0
A60: SWE | B60: North Sea and Eastern Arctic | C60: ICES | D60: ICES area IIIa | E60: 2013-2015 | F60: FPO_CRU_>0_0_0 | G60: Crustaceans | H60: 274 | I60: 13760 | J60: 13752 | K60: 566 | L60: 561 | M60: 5 | O60: 244 | P60: 12034 | Q60: 12002 | R60: Y | S60: 548.1832 | T60: 548.1832 | U60: 0
A61: SWE | B61: North Sea and Eastern Arctic | C61: ICES | D61: ICES area IIIa | E61: 2013-2015 | F61: FPO_FIF_>0_0_0 | G61: Finfish | H61: 9 | I61: 136 | J61: 136 | K61: 4 | L61: 4 | M61: 0 | O61: 10 | P61: 235 | Q61: 235 | R61: N | S61: 6.4501 | T61: 6.4501 | U61: 0
A62: SWE | B62: North Sea and Eastern Arctic | C62: ICES | D62: ICES area IIIa | E62: 2013-2015 | F62: FPO_MOL_>0_0_0 | G62: Molluscs | H62: 1 | I62: 14 | J62: 14 | K62: 0.2 | L62: 0.2 | M62: 0 | O62: 1 | P62: 9 | Q62: 9 | R62: N | S62: 0.12 | T62: 0.12 | U62: 0
A63: SWE | B63: North Sea and Eastern Arctic | C63: ICES | D63: ICES area IIIa | E63: 2013-2015 | F63: FYK_CAT_>0_0_0 | G63: Catadromous species | H63: 17 | I63: 849 | J63: 849 | K63: 29 | L63: 29 | M63: 0 | O63: 17 | P63: 753 | Q63: 753 | R63: N | S63: 21.1677 | T63: 21.1677 | U63: 0
A64: SWE | B64: North Sea and Eastern Arctic | C64: ICES | D64: ICES area IIIa | E64: 2013-2015 | F64: GNS_CRU_>0_0_0 | G64: Crustaceans | H64: 6 | I64: 71 | J64: 71 | K64: 13 | L64: 13 | M64: 0 | O64: 6 | P64: 91 | Q64: 91 | R64: N | S64: 9.152 | T64: 9.152 | U64: 0
A65: SWE | B65: North Sea and Eastern Arctic | C65: ICES | D65: ICES area IIIa | E65: 2013-2015 | F65: GNS_DEF_>=220_0_0 | G65: Demersal species | H65: 14 | I65: 175 | J65: 175 | K65: 45 | L65: 45 | M65: 0 | O65: 13 | P65: 229 | Q65: 229 | R65: Y | S65: 20.7344 | T65: 20.7344 | U65: 0
A66: SWE | B66: North Sea and Eastern Arctic | C66: ICES | D66: ICES area IIIa | E66: 2013-2015 | F66: GNS_DEF_100-119_0_0 | G66: Demersal species | H66: 5 | I66: 102 | J66: 102 | K66: 8 | L66: 8 | M66: 0 | O66: 4 | P66: 55 | Q66: 55 | R66: Y | S66: 2.3102 | T66: 2.3102 | U66: 0
A67: SWE | B67: North Sea and Eastern Arctic | C67: ICES | D67: ICES area IIIa | E67: 2013-2015 | F67: GNS_DEF_120-219_0_0 | G67: Demersal species | H67: 40 | I67: 687 | J67: 689 | K67: 91 | L67: 71 | M67: 20 | O67: 44 | P67: 725 | Q67: 727 | R67: Y | S67: 106.7574 | T67: 86.2154 | U67: 20.542
A68: SWE | B68: North Sea and Eastern Arctic | C68: ICES | D68: ICES area IIIa | E68: 2013-2015 | F68: GNS_DEF_90-99_0_0 | G68: Demersal species | H68: 2 | I68: 11 | J68: 11 | K68: 0.02 | L68: 0.02 | M68: 0 | O68: 2 | P68: 6 | Q68: 6 | R68: Y | S68: 0.029 | T68: 0.029 | U68: 0
A69: SWE | B69: North Sea and Eastern Arctic | C69: ICES | D69: ICES area IIIa | E69: 2013-2015 | F69: GNS_SPF_10-30_0_0 | G69: Small pelagic fish | H69: 32 | I69: 246 | J69: 245 | K69: 55 | L69: 55 | M69: 0 | O69: 13 | P69: 73 | Q69: 73 | R69: Y | S69: 21.8065 | T69: 21.8065 | U69: 0
A70: SWE | B70: North Sea and Eastern Arctic | C70: ICES | D70: ICES area IIIa | E70: 2013-2015 | F70: GNS_SPF_50-70_0_0 | G70: Small pelagic fish | H70: 75 | I70: 879 | J70: 876 | K70: 190 | L70: 189 | M70: 1 | O70: 74 | P70: 743 | Q70: 737 | R70: Y | S70: 174.0964 | T70: 170.0964 | U70: 4
A71: SWE | B71: North Sea and Eastern Arctic | C71: ICES | D71: ICES area IIIa | E71: 2013-2015 | F71: GTR_DEF_>=220_0_0 | G71: Demersal species | H71: 1 | I71: 9 | J71: 9 | K71: 1 | L71: 1 | M71: 0 | O71: 1 | P71: 9 | Q71: 10 | R71: Y | S71: 3.1765 | T71: 0 | U71: 3.1765
A72: SWE | B72: North Sea and Eastern Arctic | C72: ICES | D72: ICES area IIIa | E72: 2013-2015 | F72: GTR_DEF_100-119_0_0 | G72: Demersal species | H72: 1 | I72: 13 | J72: 13 | K72: 0.42 | L72: 0.4 | M72: 0.02 | O72: 0 | P72: 0 | Q72: 0 | R72: Not Applicable | S72: 0 | T72: 0 | U72: 0
A73: SWE | B73: North Sea and Eastern Arctic | C73: ICES | D73: ICES area IIIa | E73: 2013-2015 | F73: GTR_DEF_120-219_0_0 | G73: Demersal species | H73: 23 | I73: 616 | J73: 617 | K73: 118 | L73: 100 | M73: 18 | O73: 26 | P73: 564 | Q73: 563 | R73: Y | S73: 87.5771 | T73: 84.4822 | U73: 3.0949
A74: SWE | B74: North Sea and Eastern Arctic | C74: ICES | D74: ICES area IIIa | E74: 2013-2015 | F74: GTR_DEF_90-99_0_0 | G74: Demersal species | H74: 2 | I74: 18 | J74: 18 | K74: 2 | L74: 2 | M74: 0 | O74: 1 | P74: 1 | Q74: 1 | R74: Y | S74: 0.414 | T74: 0.414 | U74: 0
A75: SWE | B75: North Sea and Eastern Arctic | C75: ICES | D75: ICES area IIIa | E75: 2013-2015 | F75: LHP_FIF_0_0_0 | G75: Finfish | H75: 109 | I75: 1275 | J75: 1285 | K75: 193 | L75: 150 | M75: 43 | O75: 95 | P75: 978 | Q75: 983 | R75: N | S75: 156.8533 | T75: 133.4733 | U75: 23.38
A76: SWE | B76: North Sea and Eastern Arctic | C76: ICES | D76: ICES area IIIa | E76: 2013-2015 | F76: LLS_DEF_0_0_0 | G76: Demersal species | H76: 2 | I76: 4 | J76: 4 | K76: 1 | L76: 1 | M76: 0 | O76: 0 | P76: 0 | Q76: 0 | R76: Not Applicable | S76: 0 | T76: 0 | U76: 0
A77: SWE | B77: North Sea and Eastern Arctic | C77: ICES | D77: ICES area IIIa | E77: 2013-2015 | F77: MIS_MIS_0_0_0 | G77: Miscellaneous | H77: 6 | I77: 251 | J77: 251 | K77: 64 | L77: 64 | M77: 0 | O77: 7 | P77: 166 | Q77: 166 | R77: N | S77: 8.9629 | T77: 8.7952 | U77: 0.1677
A78: SWE | B78: North Sea and Eastern Arctic | C78: ICES | D78: ICES area IIIa | E78: 2013-2015 | F78: OTB_CRU_>=120_0_0 | G78: Crustaceans | H78: 1 | I78: 1 | J78: 2 | K78: 0.03 | L78: 0.03 | M78: 0 | O78: 1 | P78: 1 | Q78: 1 | R78: Y | S78: 0.06 | T78: 0.06 | U78: 0
A79: SWE | B79: North Sea and Eastern Arctic | C79: ICES | D79: ICES area IIIa | E79: 2013-2015 | F79: OTB_CRU_32-69_0_0 | G79: Crustaceans | H79: 5 | I79: 10 | J79: 18 | K79: 5 | L79: 4 | M79: 1 | O79: 0 | P79: 0 | Q79: 0 | R79: Not Applicable | S79: 0 | T79: 0 | U79: 0
A80: SWE | B80: North Sea and Eastern Arctic | C80: ICES | D80: ICES area IIIa | E80: 2013-2015 | F80: OTB_CRU_32-69_2_22 | G80: Crustaceans | H80: 51 | I80: 2135 | J80: 2689 | K80: 693 | L80: 658 | M80: 35 | O80: 44 | P80: 1983 | Q80: 2208 | R80: Y | S80: 595.5657 | T80: 595.4157 | U80: 0.15
A81: SWE | B81: North Sea and Eastern Arctic | C81: ICES | D81: ICES area IIIa | E81: 2013-2015 | F81: OTB_CRU_70-89_2_35 | G81: Crustaceans | H81: 60 | I81: 2260 | J81: 2258 | K81: 175 | L81: 174 | M81: 1 | O81: 64 | P81: 2557 | Q81: 2534 | R81: Y | S81: 228.8321 | T81: 227.7001 | U81: 1.132
A82: SWE | B82: North Sea and Eastern Arctic | C82: ICES | D82: ICES area IIIa | E82: 2013-2015 | F82: OTB_CRU_90-119_0_0 | G82: Crustaceans | H82: 9 | I82: 146 | J82: 161 | K82: 11 | L82: 11 | M82: 0 | O82: 1 | P82: 2 | Q82: 2 | R82: Y | S82: 0.145 | T82: 0.145 | U82: 0
A83: SWE | B83: North Sea and Eastern Arctic | C83: ICES | D83: ICES area IIIa | E83: 2013-2015 | F83: OTB_CRU_90-119_1_120 | G83: Crustaceans | H83: 13 | I83: 151 | J83: 164 | K83: 10 | L83: 10 | M83: 0 | O83: 29 | P83: 390 | Q83: 405 | R83: Y | S83: 33.6335 | T83: 33.2945 | U83: 0.339
A84: SWE | B84: North Sea and Eastern Arctic | C84: ICES | D84: ICES area IIIa | E84: 2013-2015 | F84: OTB_DEF_<16_0_0 | G84: Demersal species | H84: 1 | I84: 1 | J84: 1 | K84: 25 | L84: 25 | M84: 0 | O84: 1 | P84: 1 | Q84: 1 | R84: N | S84: 100 | T84: 0 | U84: 100
A85: SWE | B85: North Sea and Eastern Arctic | C85: ICES | D85: ICES area IIIa | E85: 2013-2015 | F85: OTB_DEF_>=120_0_0 | G85: Demersal species | H85: 12 | I85: 98 | J85: 117 | K85: 97 | L85: 16 | M85: 81 | O85: 8 | P85: 124 | Q85: 134 | R85: Y | S85: 83.638 | T85: 31.3246 | U85: 52.3134
A86: SWE | B86: North Sea and Eastern Arctic | C86: ICES | D86: ICES area IIIa | E86: 2013-2015 | F86: OTB_DEF_90-119_0_0 | G86: Demersal species | H86: 10 | I86: 48 | J86: 63 | K86: 594 | L86: 77 | M86: 517 | O86: 0 | P86: 0 | Q86: 0 | R86: Not Applicable | S86: 0 | T86: 0 | U86: 0
A87: SWE | B87: North Sea and Eastern Arctic | C87: ICES | D87: ICES area IIIa | E87: 2013-2015 | F87: OTB_DEF_90-119_1_120 | G87: Demersal species | H87: 22 | I87: 186 | J87: 192 | K87: 68 | L87: 63 | M87: 5 | O87: 21 | P87: 88 | Q87: 97 | R87: Y | S87: 88.7263 | T87: 45.1999 | U87: 43.5264
A88: SWE | B88: North Sea and Eastern Arctic | C88: ICES | D88: ICES area IIIa | E88: 2013-2015 | F88: OTB_MCD_>=120_0_0 | G88: Mixed crustaceans and demersal | H88: 2 | I88: 2 | J88: 2 | K88: 0.3 | L88: 0.3 | M88: 0 | O88: 1 | P88: 1 | Q88: 1 | R88: Y | S88: 0.161 | T88: 0.161 | U88: 0
A89: SWE | B89: North Sea and Eastern Arctic | C89: ICES | D89: ICES area IIIa | E89: 2013-2015 | F89: OTB_MCD_90-119_0_0 | G89: Mixed crustaceans and demersal | H89: 11 | I89: 96 | J89: 103 | K89: 15 | L89: 15 | M89: 0 | O89: 0 | P89: 0 | Q89: 0 | R89: Not Applicable | S89: 0 | T89: 0 | U89: 0
A90: SWE | B90: North Sea and Eastern Arctic | C90: ICES | D90: ICES area IIIa | E90: 2013-2015 | F90: OTB_MCD_90-119_1_120 | G90: Mixed crustaceans and demersal | H90: 17 | I90: 210 | J90: 227 | K90: 28 | L90: 28 | M90: 0 | O90: 25 | P90: 253 | Q90: 256 | R90: Y | S90: 29.186 | T90: 28.1654 | U90: 1.0206
A91: SWE | B91: North Sea and Eastern Arctic | C91: ICES | D91: ICES area IIIa | E91: 2013-2015 | F91: OTM_SPF_16-31_0_0 | G91: Small pelagic fish | H91: 2 | I91: 29 | J91: 32 | K91: 724 | L91: 31 | M91: 693 | O91: 1 | P91: 8 | Q91: 8 | R91: Y | S91: 389.5 | T91: 0 | U91: 389.5
A92: SWE | B92: North Sea and Eastern Arctic | C92: ICES | D92: ICES area IIIa | E92: 2013-2015 | F92: OTM_SPF_32-69_0_0 | G92: Small pelagic fish | H92: 6 | I92: 36 | J92: 45 | K92: 3672 | L92: 3034 | M92: 638 | O92: 8 | P92: 86 | Q92: 108 | R92: Y | S92: 11621.684 | T92: 8496.801 | U92: 3124.883
A93: SWE | B93: North Sea and Eastern Arctic | C93: ICES | D93: ICES area IIIa | E93: 2013-2015 | F93: OTT_CRU_32-69_0_0 | G93: Crustaceans | H93: 5 | I93: 16 | J93: 25 | K93: 4 | L93: 3 | M93: 1 | O93: 1 | P93: 2 | Q93: 4 | R93: Y | S93: 1.8402 | T93: 1.8402 | U93: 0
A94: SWE | B94: North Sea and Eastern Arctic | C94: ICES | D94: ICES area IIIa | E94: 2013-2015 | F94: OTT_CRU_32-69_2_22 | G94: Crustaceans | H94: 21 | I94: 537 | J94: 1246 | K94: 868 | L94: 813 | M94: 55 | O94: 20 | P94: 619 | Q94: 1356 | R94: Y | S94: 1214.3499 | T94: 1143.7933 | U94: 70.5566
A95: SWE | B95: North Sea and Eastern Arctic | C95: ICES | D95: ICES area IIIa | E95: 2013-2015 | F95: OTT_CRU_70-89_2_35 | G95: Crustaceans | H95: 55 | I95: 3133 | J95: 3144 | K95: 475 | L95: 467 | M95: 8 | O95: 44 | P95: 1834 | Q95: 1846 | R95: Y | S95: 404.1084 | T95: 399.7786 | U95: 4.3298
A96: SWE | B96: North Sea and Eastern Arctic | C96: ICES | D96: ICES area IIIa | E96: 2013-2015 | F96: OTT_CRU_90-119_0_0 | G96: Crustaceans | H96: 14 | I96: 113 | J96: 114 | K96: 12 | L96: 12 | M96: 0 | O96: 3 | P96: 16 | Q96: 16 | R96: Y | S96: 3.4216 | T96: 3.4216 | U96: 0
A97: SWE | B97: North Sea and Eastern Arctic | C97: ICES | D97: ICES area IIIa | E97: 2013-2015 | F97: OTT_CRU_90-119_1_120 | G97: Crustaceans | H97: 29 | I97: 202 | J97: 212 | K97: 28 | L97: 27 | M97: 1 | O97: 43 | P97: 933 | Q97: 975 | R97: Y | S97: 189.441 | T97: 183.3 | U97: 6.141
A98: SWE | B98: North Sea and Eastern Arctic | C98: ICES | D98: ICES area IIIa | E98: 2013-2015 | F98: OTT_DEF_>=120_0_0 | G98: Demersal species | H98: 13 | I98: 156 | J98: 256 | K98: 362 | L98: 307 | M98: 55 | O98: 10 | P98: 228 | Q98: 338 | R98: Y | S98: 477.9332 | T98: 467.139 | U98: 10.7942
A99: SWE | B99: North Sea and Eastern Arctic | C99: ICES | D99: ICES area IIIa | E99: 2013-2015 | F99: OTT_DEF_90-119_0_0 | G99: Demersal species | H99: 20 | I99: 81 | J99: 95 | K99: 63 | L99: 59 | M99: 4 | O99: 1 | P99: 1 | Q99: 2 | R99: Y | S99: 0.2007 | T99: 0.2007 | U99: 0
A100: SWE | B100: North Sea and Eastern Arctic | C100: ICES | D100: ICES area IIIa | E100: 2013-2015 | F100: OTT_DEF_90-119_1_120 | G100: Demersal species | H100: 34 | I100: 453 | J100: 533 | K100: 446 | L100: 418 | M100: 28 | O100: 39 | P100: 399 | Q100: 458 | R100: Y | S100: 370.329 | T100: 336.8679 | U100: 33.4611
A101: SWE | B101: North Sea and Eastern Arctic | C101: ICES | D101: ICES area IIIa | E101: 2013-2015 | F101: OTT_MCD_>=120_0_0 | G101: Mixed crustaceans and demersal | H101: 5 | I101: 8 | J101: 10 | K101: 4 | L101: 4 | M101: 0 | O101: 5 | P101: 5 | Q101: 5 | R101: Y | S101: 2.146 | T101: 0.6825 | U101: 1.4635
A102: SWE | B102: North Sea and Eastern Arctic | C102: ICES | D102: ICES area IIIa | E102: 2013-2015 | F102: OTT_MCD_90-119_0_0 | G102: Mixed crustaceans and demersal | H102: 25 | I102: 305 | J102: 318 | K102: 73 | L102: 72 | M102: 1 | O102: 3 | P102: 12 | Q102: 12 | R102: Y | S102: 3.0306 | T102: 3.0306 | U102: 0
A103: SWE | B103: North Sea and Eastern Arctic | C103: ICES | D103: ICES area IIIa | E103: 2013-2015 | F103: OTT_MCD_90-119_1_120 | G103: Mixed crustaceans and demersal | H103: 34 | I103: 534 | J103: 599 | K103: 203 | L103: 188 | M103: 15 | O103: 47 | P103: 1368 | Q103: 1479 | R103: Y | S103: 475.2963 | T103: 445.2831 | U103: 30.0132
A104: SWE | B104: North Sea and Eastern Arctic | C104: ICES | D104: ICES area IIIa | E104: 2013-2015 | F104: PS_SPF_16-31_0_0 | G104: Small pelagic fish | H104: 7 | I104: 106 | J104: 107 | K104: 6240 | L104: 6183 | M104: 57 | O104: 2 | P104: 13 | Q104: 13 | R104: Y | S104: 687.67 | T104: 687.67 | U104: 0
A105: SWE | B105: North Sea and Eastern Arctic | C105: ICES | D105: ICES area IIIa | E105: 2013-2015 | F105: PS_SPF_32-69_0_0 | G105: Small pelagic fish | H105: 2 | I105: 15 | J105: 15 | K105: 103 | L105: 103 | M105: 0 | O105: 1 | P105: 4 | Q105: 4 | R105: Y | S105: 16.24 | T105: 16.24 | U105: 0
A106: SWE | B106: North Sea and Eastern Arctic | C106: ICES | D106: ICES area IIIa | E106: 2013-2015 | F106: PTM_SPF_16-31_0_0 | G106: Small pelagic fish | H106: 2 | I106: 5 | J106: 5 | K106: 224 | L106: 43 | M106: 181 | O106: 1 | P106: 1 | Q106: 1 | R106: Y | S106: 41 | T106: 0 | U106: 41
A107: SWE | B107: North Sea and Eastern Arctic | C107: ICES | D107: ICES area IIIa | E107: 2013-2015 | F107: PTM_SPF_32-69_0_0 | G107: Small pelagic fish | H107: 11 | I107: 86 | J107: 93 | K107: 7401 | L107: 4502 | M107: 2899 | O107: 7 | P107: 81 | Q107: 94 | R107: Y | S107: 6315.6722 | T107: 5167.1622 | U107: 1148.51
A108: SWE | B108: North Sea and Eastern Arctic | C108: ICES | D108: ICES area IIIa | E108: 2013-2015 | F108: SB_FIF_>0_0_0 | G108: Finfish | H108: 11 | I108: 154 | J108: 154 | K108: 28 | L108: 28 | M108: 0 | O108: 4 | P108: 90 | Q108: 81 | R108: N | S108: 19.178 | T108: 19.178 | U108: 0
A109: SWE | B109: North Sea and Eastern Arctic | C109: ICES | D109: ICES area IIIa | E109: 2013-2015 | F109: SDN_DEF_>=120_0_0 | G109: Demersal species | H109: 1 | I109: 21 | J109: 33 | K109: 138 | L109: 29 | M109: 109 | O109: 1 | P109: 26 | Q109: 32 | R109: Y | S109: 154.7801 | T109: 32.9772 | U109: 121.8029
A110: SWE | B110: North Sea and Eastern Arctic | C110: ICES | D110: ICES area IV | E110: 2013-2015 | F110: LHP_FIF_0_0_0 | G110: Finfish | H110: 2 | I110: 9 | J110: 9 | K110: 2 | L110: 0 | M110: 2 | O110: 0 | P110: 0 | Q110: 0 | R110: Not Applicable | S110: 0 | T110: 0 | U110: 0
A111: SWE | B111: North Sea and Eastern Arctic | C111: ICES | D111: ICES area IV | E111: 2013-2015 | F111: OTB_CRU_32-69_0_0 | G111: Crustaceans | H111: 7 | I111: 11 | J111: 26 | K111: 52 | L111: 28 | M111: 24 | O111: 0 | P111: 0 | Q111: 0 | R111: Not Applicable | S111: 0 | T111: 0 | U111: 0
A112: SWE | B112: North Sea and Eastern Arctic | C112: ICES | D112: ICES area IV | E112: 2013-2015 | F112: OTB_CRU_32-69_2_22 | G112: Crustaceans | H112: 2 | I112: 2 | J112: 5 | K112: 1 | L112: 1 | M112: 0 | O112: 0 | P112: 0 | Q112: 0 | R112: Not Applicable | S112: 0 | T112: 0 | U112: 0
A113: SWE | B113: North Sea and Eastern Arctic | C113: ICES | D113: ICES area IV | E113: 2013-2015 | F113: OTB_CRU_70-89_2_35 | G113: Crustaceans | H113: 1 | I113: 1 | J113: 1 | K113: 0.01 | L113: 0.01 | M113: 0 | O113: 0 | P113: 0 | Q113: 0 | R113: Not Applicable | S113: 0 | T113: 0 | U113: 0
A114: SWE | B114: North Sea and Eastern Arctic | C114: ICES | D114: ICES area IV | E114: 2013-2015 | F114: OTB_DEF_<16_0_0 | G114: Demersal species | H114: 11 | I114: 45 | J114: 292 | K114: 26287 | L114: 0 | M114: 26287 | O114: 10 | P114: 58 | Q114: 227 | R114: N | S114: 41043.836 | T114: 815.13 | U114: 40228.706
A115: SWE | B115: North Sea and Eastern Arctic | C115: ICES | D115: ICES area IV | E115: 2013-2015 | F115: OTB_DEF_>=120_0_0 | G115: Demersal species | H115: 5 | I115: 83 | J115: 215 | K115: 1202 | L115: 0 | M115: 1202 | O115: 5 | P115: 104 | Q115: 269 | R115: N | S115: 1340.0306 | T115: 0 | U115: 1340.0306
A116: SWE | B116: North Sea and Eastern Arctic | C116: ICES | D116: ICES area IV | E116: 2013-2015 | F116: OTM_SPF_16-31_0_0 | G116: Small pelagic fish | H116: 3 | I116: 9 | J116: 39 | K116: 4178 | L116: 0 | M116: 4178 | O116: 3 | P116: 15 | Q116: 64 | R116: N | S116: 8113.655 | T116: 0 | U116: 8113.655
A117: SWE | B117: North Sea and Eastern Arctic | C117: ICES | D117: ICES area IV | E117: 2013-2015 | F117: OTM_SPF_32-69_0_0 | G117: Small pelagic fish | H117: 5 | I117: 15 | J117: 20 | K117: 3854 | L117: 1552 | M117: 2302 | O117: 7 | P117: 42 | Q117: 67 | R117: N | S117: 15654.913 | T117: 6086.058 | U117: 9568.855
A118: SWE | B118: North Sea and Eastern Arctic | C118: ICES | D118: ICES area IV | E118: 2013-2015 | F118: OTT_CRU_32-69_0_0 | G118: Crustaceans | H118: 7 | I118: 42 | J118: 134 | K118: 56 | L118: 31 | M118: 25 | O118: 0 | P118: 0 | Q118: 0 | R118: Not Applicable | S118: 0 | T118: 0 | U118: 0
A119: SWE | B119: North Sea and Eastern Arctic | C119: ICES | D119: ICES area IV | E119: 2013-2015 | F119: OTT_CRU_32-69_2_22 | G119: Crustaceans | H119: 11 | I119: 63 | J119: 193 | K119: 63 | L119: 42 | M119: 21 | O119: 12 | P119: 65 | Q119: 165 | R119: Y | S119: 159.5982 | T119: 103.602 | U119: 55.9962
A120: SWE | B120: North Sea and Eastern Arctic | C120: ICES | D120: ICES area IV | E120: 2013-2015 | F120: OTT_DEF_>=120_0_0 | G120: Demersal species | H120: 3 | I120: 15 | J120: 33 | K120: 212 | L120: 2 | M120: 210 | O120: 1 | P120: 5 | Q120: 11 | R120: N | S120: 42.0706 | T120: 0.6448 | U120: 41.4258
A121: SWE | B121: North Sea and Eastern Arctic | C121: ICES | D121: ICES area IV | E121: 2013-2015 | F121: PS_SPF_32-69_0_0 | G121: Small pelagic fish | H121: 3 | I121: 22 | J121: 26 | K121: 6342 | L121: 87 | M121: 6255 | O121: 3 | P121: 11 | Q121: 13 | R121: N | S121: 3348 | T121: 235.35 | U121: 3112.65
A122: SWE | B122: North Sea and Eastern Arctic | C122: ICES | D122: ICES area IV | E122: 2013-2015 | F122: PTM_SPF_32-69_0_0 | G122: Small pelagic fish | H122: 6 | I122: 24 | J122: 32 | K122: 6619 | L122: 1699 | M122: 4920 | O122: 2 | P122: 4 | Q122: 4 | R122: N | S122: 1137.28 | T122: 260.08 | U122: 877.2
A123: SWE | B123: North Sea and Eastern Arctic | C123: ICES | D123: ICES area IV | E123: 2013-2015 | F123: SDN_DEF_>=120_0_0 | G123: Demersal species | H123: 1 | I123: 10 | J123: 19 | K123: 82 | L123: 6 | M123: 76 | O123: 1 | P123: 7 | Q123: 15 | R123: N | S123: 80.5377 | T123: 0 | U123: 80.5377

Sheet Table4D Landing locations
A1: Table 4D: Landing locations
J2: WP years | K2: 2017-2019
J3: AR year | K3: 2017
A4: MS | B4: Region | C4: Sub-area / Fishing ground | D4: Reference years | E4: Landing locations(s) | F4: Average number of locations | G4: Average number of registered landings | H4: Average landed tonnage | I4: Average landed tonnage of national fleet | J4: Average landed tonnage of foreign fleet | K4: Comments
A5: SWE | B5: All regions | C5: All areas | D5: 2013-2015 | E5: ports | F5: 338 | G5: 26445 | H5: =I5+J5 -> 230222 | I5: 183952 | J5: 46270 | K5: Average number of registred landings derived from logbooks.

Sheet Table5A Quality assurance frame
A1: Table 5A: Quality assurance framework for biological data
S2: WP years | T2: 2017-2019
S3: AR year | T3: 2017
H4: Sampling design | J4: Sampling implementation | K4: Data capture | M4: Data Storage | O4: Data processing
A5: MS | B5: MS participating in sampling | C5: Sampling year/ period | D5: Region | E5: RFMO/RFO/IO | F5: Name of sampling scheme | G5: Sampling frame | H5: Is the sampling design documented? | I5: Where can documentation on sampling design be found? | J5: Are non-responses and refusals recorded? | K5: Are quality checks to validate detailed data documented? | L5: Where can documentation on quality checks for data capture be found? | M5: In which national database are data stored? | N5: In which international database(s) are data stored? | O5: Are processes to evaluate data accuracy (bias and precision) documented? | P5: Where can documentation on processes to evaluate accuracy be found? | Q5: Are the editing and imputation methods documented? | R5: Where can documentation on editing and imputation be found? | S5: Comments | T5: AR Comments
A6: SWE | B6: SWE | C6: 2017 | D6: North Sea and Eastern Arctic | E6: ICES | F6: Skagerrak/Kattegat at-sea | G6: demersal trawlers | H6: Partly | I6: Some documentation in former NPs and on internal server | J6: Y | K6: Y | L6: National quality checks in Fiskdata2; https://fd2.slu.se/Documents- User manual and System documentation #1 | M6: FiskData2 | N6: RDB-FishFrame, InterCatch | O6: N | P6: NA | Q6: N | R6: NA | S6: The aim is to have the different aspects of the sampling scheme properly documented and accessible through a public website. We will during 2017-2018 work to document designs and processes to validate detailed data. During 2018-2019, when more guidance are available from expert groups, will we work to document estimation methods and other aspects of data processing. | T6: No changes made compared to WP. Note: The link to Fiskdata2 can only be opened by authotized login.
A7: SWE | B7: SWE | C7: 2017 | D7: North Sea and Eastern Arctic | E7: ICES | F7: Skagerrak/Kattegat other (market stock specific) | G7: fishing trips * cod SD 20 | H7: Partly | I7: Some documentation in former NPs and on internal server | J7: N | K7: Y | L7: National quality checks in Fiskdata2; https://fd2.slu.se/Documents- User manual and System documentation #1 | M7: FiskData2 | N7: RDB-FishFrame, InterCatch | O7: N | P7: NA | Q7: N | R7: NA | S7: The aim is to have the different aspects of the sampling scheme properly documented and accessible through a public website. We will during 2017-2018 work to document designs and processes to validate detailed data. During 2018-2019, when more guidance are available from expert groups, will we work to document estimation methods and other aspects of data processing. | T7: No changes made compared to WP. Note: The link to Fiskdata2 can only be opened by authotized login.
A8: SWE | B8: SWE | C8: 2017 | D8: North Sea and Eastern Arctic | E8: ICES | F8: Skagerrak/Kattegat other (market stock specific) | G8: fishing trips * cod SD 21 | H8: Partly | I8: Some documentation in former NPs and on internal server | J8: N | K8: Y | L8: National quality checks in Fiskdata2; https://fd2.slu.se/Documents- User manual and System documentation #1 | M8: FiskData2 | N8: RDB-FishFrame, InterCatch | O8: N | P8: NA | Q8: N | R8: NA | S8: The aim is to have the different aspects of the sampling scheme properly documented and accessible through a public website. We will during 2017-2018 work to document designs and processes to validate detailed data. During 2018-2019, when more guidance are available from expert groups, will we work to document estimation methods and other aspects of data processing. | T8: No changes made compared to WP.
A9: SWE | B9: SWE | C9: 2017 | D9: North Sea and Eastern Arctic | E9: ICES | F9: Skagerrak/Kattegat other (market stock specific) | G9: fishing trips* herring and sprat SD 20 | H9: Partly | I9: Some documentation in former NPs and on internal server | J9: N | K9: Y | L9: National quality checks in Fiskdata2; https://fd2.slu.se/Documents- User manual and System documentation #1 | M9: FiskData2 | N9: RDB-FishFrame, InterCatch | O9: N | P9: NA | Q9: N | R9: NA | S9: The aim is to have the different aspects of the sampling scheme properly documented and accessible through a public website. We will during 2017-2018 work to document designs and processes to validate detailed data. During 2018-2019, when more guidance are available from expert groups, will we work to document estimation methods and other aspects of data processing. | T9: No changes made compared to WP.
A10: SWE | B10: SWE | C10: 2017 | D10: North Sea and Eastern Arctic | E10: ICES | F10: Skagerrak/Kattegat other (market stock specific) | G10: fishing trips* herring and sprat SD 21 | H10: Partly | I10: Some documentation in former NPs and on internal server | J10: N | K10: Y | L10: National quality checks in Fiskdata2; https://fd2.slu.se/Documents- User manual and System documentation #1 | M10: FiskData2 | N10: RDB-FishFrame, InterCatch | O10: N | P10: NA | Q10: N | R10: NA | S10: The aim is to have the different aspects of the sampling scheme properly documented and accessible through a public website. We will during 2017-2018 work to document designs and processes to validate detailed data. During 2018-2019, when more guidance are available from expert groups, will we work to document estimation methods and other aspects of data processing. | T10: No changes made compared to WP. Note: The link to Fiskdata2 can only be opened by authotized login.
A11: SWE | B11: SWE | C11: 2017 | D11: Baltic Sea | E11: ICES | F11: Baltic at-sea | G11: demersal trawlers | H11: Partly | I11: Some documentation in former NPs and on internal server | J11: Y | K11: Y | L11: National quality checks in Fiskdata2; https://fd2.slu.se/Documents- User manual and System documentation #1 | M11: FiskData2 | N11: RDB-FishFrame, InterCatch | O11: N | P11: NA | Q11: N | R11: NA | S11: The aim is to have the different aspects of the sampling scheme properly documented and accessible through a public website. We will during 2017-2018 work to document designs and processes to validate detailed data. During 2018-2019, when more guidance are available from expert groups, will we work to document estimation methods and other aspects of data processing. | T11: No changes made compared to WP. Note: The link to Fiskdata2 can only be opened by authotized login.
A12: SWE | B12: SWE | C12: 2017 | D12: Baltic Sea | E12: ICES | F12: Baltic self-sampling (market stock specific) | G12: weeks | H12: Partly | I12: Some documentation in former NPs and on internal server | J12: Y | K12: Y | L12: National quality checks in Fiskdata2; https://fd2.slu.se/Documents- User manual and System documentation #1 | M12: FiskData2 | N12: RDB-FishFrame, InterCatch | O12: N | P12: NA | Q12: N | R12: NA | S12: The aim is to have the different aspects of the sampling scheme properly documented and accessible through a public website. We will during 2017-2018 work to document designs and processes to validate detailed data. During 2018-2019, when more guidance are available from expert groups, will we work to document estimation methods and other aspects of data processing. | T12: No changes made compared to WP. Note: The link to Fiskdata2 can only be opened by authotized login.
A13: SWE | B13: SWE | C13: 2017 | D13: Baltic Sea | E13: ICES | F13: Baltic at-sea or self-sampling | G13: gillnetters (vessels if sea sampling, weeks if self-sampling) | H13: Partly | I13: Some documentation in former NPs and on internal server | J13: Y | K13: Y | L13: National quality checks in Fiskdata2; https://fd2.slu.se/Documents- User manual and System documentation #1 | M13: FiskData2 | N13: RDB-FishFrame, InterCatch | O13: N | P13: NA | Q13: N | R13: NA | S13: The aim is to have the different aspects of the sampling scheme properly documented and accessible through a public website. We will during 2017-2018 work to document designs and processes to validate detailed data. During 2018-2019, when more guidance are available from expert groups, will we work to document estimation methods and other aspects of data processing. | T13: No changes made compared to WP. Note: The link to Fiskdata2 can only be opened by authotized login.
A14: SWE | B14: SWE | C14: 2017 | D14: Baltic Sea | E14: ICES | F14: Baltic at-sea or self-sampling | G14: longliners (vessels if sea sampling, weeks if self-sampling) | H14: Partly | I14: Some documentation in former NPs and on internal server | J14: Y | K14: Y | L14: National quality checks in Fiskdata2; https://fd2.slu.se/Documents- User manual and System documentation #1 | M14: FiskData2 | N14: RDB-FishFrame, InterCatch | O14: N | P14: NA | Q14: N | R14: NA | S14: The aim is to have the different aspects of the sampling scheme properly documented and accessible through a public website. We will during 2017-2018 work to document designs and processes to validate detailed data. During 2018-2019, when more guidance are available from expert groups, will we work to document estimation methods and other aspects of data processing. | T14: No changes made compared to WP. Note: The link to Fiskdata2 can only be opened by authotized login.
A15: SWE | B15: SWE | C15: 2017 | D15: Baltic Sea | E15: ICES | F15: Baltic other (market, stock specific) | G15: fishing trips* herring and sprat SD 24 | H15: Partly | I15: Some documentation in former NPs and on internal server | J15: N | K15: Y | L15: National quality checks in Fiskdata2; https://fd2.slu.se/Documents- User manual and System documentation #1 | M15: FiskData2 | N15: RDB-FishFrame, InterCatch | O15: N | P15: NA | Q15: N | R15: NA | S15: The aim is to have the different aspects of the sampling scheme properly documented and accessible through a public website. We will during 2017-2018 work to document designs and processes to validate detailed data. During 2018-2019, when more guidance are available from expert groups, will we work to document estimation methods and other aspects of data processing. | T15: No changes made compared to WP. Note: The link to Fiskdata2 can only be opened by authotized login.
A16: SWE | B16: SWE | C16: 2017 | D16: Baltic Sea | E16: ICES | F16: Baltic other (market, stock specific) | G16: fishing trips* herring and sprat SD 25 | H16: Partly | I16: Some documentation in former NPs and on internal server | J16: N | K16: Y | L16: National quality checks in Fiskdata2; https://fd2.slu.se/Documents- User manual and System documentation #1 | M16: FiskData2 | N16: RDB-FishFrame, InterCatch | O16: N | P16: NA | Q16: N | R16: NA | S16: The aim is to have the different aspects of the sampling scheme properly documented and accessible through a public website. We will during 2017-2018 work to document designs and processes to validate detailed data. During 2018-2019, when more guidance are available from expert groups, will we work to document estimation methods and other aspects of data processing. | T16: No changes made compared to WP. Note: The link to Fiskdata2 can only be opened by authotized login.
A17: SWE | B17: SWE | C17: 2017 | D17: Baltic Sea | E17: ICES | F17: Baltic other (market, stock specific) | G17: fishing trips* herring and sprat SD 26 | H17: Partly | I17: Some documentation in former NPs and on internal server | J17: N | K17: Y | L17: National quality checks in Fiskdata2; https://fd2.slu.se/Documents- User manual and System documentation #1 | M17: FiskData2 | N17: RDB-FishFrame, InterCatch | O17: N | P17: NA | Q17: N | R17: NA | S17: The aim is to have the different aspects of the sampling scheme properly documented and accessible through a public website. We will during 2017-2018 work to document designs and processes to validate detailed data. During 2018-2019, when more guidance are available from expert groups, will we work to document estimation methods and other aspects of data processing. | T17: No changes made compared to WP. Note: The link to Fiskdata2 can only be opened by authotized login.
A18: SWE | B18: SWE | C18: 2017 | D18: Baltic Sea | E18: ICES | F18: Baltic other (market, stock specific) | G18: fishing trips* herring and sprat SD 27 | H18: Partly | I18: Some documentation in former NPs and on internal server | J18: N | K18: Y | L18: National quality checks in Fiskdata2; https://fd2.slu.se/Documents- User manual and System documentation #1 | M18: FiskData2 | N18: RDB-FishFrame, InterCatch | O18: N | P18: NA | Q18: N | R18: NA | S18: The aim is to have the different aspects of the sampling scheme properly documented and accessible through a public website. We will during 2017-2018 work to document designs and processes to validate detailed data. During 2018-2019, when more guidance are available from expert groups, will we work to document estimation methods and other aspects of data processing. | T18: No changes made compared to WP. Note: The link to Fiskdata2 can only be opened by authotized login.
A19: SWE | B19: SWE | C19: 2017 | D19: Baltic Sea | E19: ICES | F19: Baltic other (market, stock specific) | G19: fishing trips* herring and sprat SD 28 | H19: Partly | I19: Some documentation in former NPs and on internal server | J19: N | K19: Y | L19: National quality checks in Fiskdata2; https://fd2.slu.se/Documents- User manual and System documentation #1 | M19: FiskData2 | N19: RDB-FishFrame, InterCatch | O19: N | P19: NA | Q19: N | R19: NA | S19: The aim is to have the different aspects of the sampling scheme properly documented and accessible through a public website. We will during 2017-2018 work to document designs and processes to validate detailed data. During 2018-2019, when more guidance are available from expert groups, will we work to document estimation methods and other aspects of data processing. | T19: No changes made compared to WP. Note: The link to Fiskdata2 can only be opened by authotized login
A20: SWE | B20: SWE | C20: 2017 | D20: Baltic Sea | E20: ICES | F20: Baltic other (market, stock specific) | G20: fishing trips* herring and sprat SD 29 | H20: Partly | I20: Some documentation in former NPs and on internal server | J20: N | K20: Y | L20: National quality checks in Fiskdata2; https://fd2.slu.se/Documents- User manual and System documentation #1 | M20: FiskData2 | N20: RDB-FishFrame, InterCatch | O20: N | P20: NA | Q20: N | R20: NA | S20: The aim is to have the different aspects of the sampling scheme properly documented and accessible through a public website. We will during 2017-2018 work to document designs and processes to validate detailed data. During 2018-2019, when more guidance are available from expert groups, will we work to document estimation methods and other aspects of data processing. | T20: No changes made compared to WP. Note: The link to Fiskdata2 can only be opened by authotized login.
A21: SWE | B21: SWE,DNK, DEU, POL, LTU,LVA | C21: 2017 | D21: Baltic Sea | E21: ICES | F21: BITS Q1 BITS Q4 | G21: NA | H21: Y | I21: http://datras.ices.dk/Documents/Manuals/Manuals.aspx | J21: NA | K21: Y | L21: National quality checks in Fiskdata2; https://fd2.slu.se/Documents- User manual and System documentation #1 International quality checks DATRAS: http://www.ices.dk/marine-data/data-portals/Pages/DATRAS-Docs.aspx #2 | M21: FiskData2 | N21: DATRAS | O21: Partly | P21: http://www.ices.dk/community/groups/Pages/WGBIFS.aspx | Q21: Partly | R21: http://www.ices.dk/community/groups/Pages/WGBIFS.aspx | S21: #1 Access through user name and password #2 The quality assurance work on the international level are addressed to the planning group for the survey (design issues, no otoliths etc) | T21: No changes made compared to WP. The link to Fiskdata2 can only be opened by authotized login
A22: SWE | B22: SWE, DNK, DEU, POL ,LTU, LVA | C22: 2017 | D22: Baltic Sea | E22: ICES | F22: BIAS | G22: NA | H22: Y | I22: http://www.ices.dk/community/groups/Pages/WGBIFS.aspx | J22: NA | K22: Y | L22: National quality checks in Fiskdata2; https://fd2.slu.se/Documents- User manual and System documentation #1 International quality checks DATRAS: http://www.ices.dk/marine-data/data-portals/Pages/DATRAS-Docs.aspx #2 | M22: Biological data: FiskData2, Acoustic data: server, IMR, Lysekil | N22: IBAS | O22: Partly | P22: http://www.ices.dk/community/groups/Pages/WGBIFS.aspx | Q22: Partly | R22: http://www.ices.dk/community/groups/Pages/WGBIFS.aspx | S22: #1 Access through user name and password #2 The quality assurance work on the international level are addressed to the planning group for the survey (design issues, no otoliths etc) | T22: No changes made compared to WP.
A23: SWE | B23: SWE,DEU, POL,LTU, LVA,POL, EST | C23: 2017 | D23: North Sea & Eastern Arctic | E23: ICES | F23: IBTS Q1 IBTS Q3 | G23: NA | H23: Y | I23: http://datras.ices.dk/Documents/Manuals/Manuals.aspx | J23: NA | K23: Y | L23: National quality checks in Fiskdata2; https://fd2.slu.se/Documents- User manual and System documentation #1 International quality checks DATRAS: http://www.ices.dk/marine-data/data-portals/Pages/DATRAS-Docs.aspx #2 | M23: FiskData2 | N23: DATRAS | O23: Partly | P23: http://www.ices.dk/community/groups/Pages/IBTSWG.aspx | Q23: Partly | R23: http://www.ices.dk/community/groups/Pages/IBTSWG.aspx | S23: #1 Access through user name and password #2 The quality assurance work on the international level are addressed to the planning group for the survey (design issues, gear, no otoliths etc) | T23: No changes made compared to WP. Note: The link to Fiskdata2 can only be opened by authotized login.
A24: SWE | B24: SWE,DNK | C24: 2017 | D24: North Sea & Eastern Arctic | E24: ICES | F24: NTV3&4 | G24: NA | H24: Y | I24: http://www.ices.dk/community/groups/Pages/WGNEPS.aspx | J24: NA | K24: Y | L24: R script "Lin's CCC" measure quality of burrow counter | M24: On back-up DVD at Institute of Marine Research | N24: No international database | O24: R script "Lin's CCC" measure quality of burrow counter | P24: See comments | Q24: See comments | R24: See comments | S24: A Benchmark Workshop on Nephrops Stocks (WKNEP 2016) will be held 24-28 October 2016 where data processing will be described. | T24: No changes made compared to WP.
A25: SWE | B25: SWE | C25: 2017 | D25: Baltic Sea | E25: ICES | F25: fishermen logbooks, coastal (diadromous) | G25: list of licensed fishermen and sampling strata | H25: Y | I25: Local server | J25: Census | K25: Y | L25: see comments | M25: Swedish Agency for Marine and Water Management | N25: RDB-FishFrame | O25: Y | P25: NA | Q25: N | R25: NA | S25: This is part of the Swedish official catch statistics and is collected and documented accordingly | T25: No changes made compared to WP.
A26: SWE | B26: SWE | C26: 2017 | D26: Baltic Sea | E26: ICES | F26: fishermen catch reports, rivers (diadromous) | G26: list of licensed fishermen and sampling strata | H26: Y | I26: Local server | J26: Census | K26: Y | L26: see comments | M26: Swedish Agency for Marine and Water Management | N26: RDB-FishFrame | O26: Y | P26: NA | Q26: N | R26: NA | S26: This is part of the Swedish official catch statistics and is collected and documented accordingly | T26: No changes made compared to WP.
A27: SWE | B27: SWE | C27: 2017 | D27: Baltic Sea | E27: ICES | F27: Recreational river catches survey | G27: salmon recreational fishermen | H27: Partly | I27: No, but see "Översyn av fångststatistiken inom fritidsfisket efter lax i Östersjön" (Björkvik m.fl. 2014) | J27: N | K27: N | L27: NA | M27: No, work in progress | N27: No, data deliverd to WGBAST | O27: N | P27: NA | Q27: N | R27: NA | S27: Work to document data processing routines are in progress. The aim is to have the different aspects of the sampling scheme properly documented and accessible through a public website. We aim to document designs and processes for data validation in 2017-2018. In 2018-2019, when more guidance are available from expert groups, we aim to document estimation methods and other aspects of data processing. No single survey for all rivers exists. Most rivers report catches estimated from volontary reports. Torneälven have a special survey made by lst BD, documented in the report they deliver. | T27: No changes made compared to WP. The current sampling schemes have been documented and potential weaknesses in data managment and documentation has been identified. Workshops for sampling design and estimates have been held during 2017. This work continues in 2018. National database in progress.
A28: SWE | B28: SWE | C28: 2017 | D28: Baltic Sea | E28: ICES | F28: river sampling, salmon parr counts | G28: designated rivers | H28: Y | I28: http://www.slu.se/elfiskeregistret | J28: NA | K28: Y | L28: \\storage-ob.slu.se\common$\Berit\Elfiskeregistret_arbetsgång_uttagslogg | M28: Swedish Electrofishing RegiSter (SERS) #1 | N28: None | O28: N | P28: NA | Q28: N | R28: NA | S28: #1 A national database held by SLU (http://aquarapport.slu.se/default.aspx?ID=6) | T28: No changes made compared to WP.
A29: SWE | B29: SWE | C29: 2017 | D29: Baltic Sea | E29: ICES | F29: river sampling, counts of ascending individuals salmon | G29: designated rivers | H29: N | I29: No, but see "Översyn av fångststatistiken inom fritidsfisket efter lax i Östersjön" (Björkvik m.fl. 2014) | J29: NA | K29: N | L29: nowhere, work in progress | M29: No | N29: No | O29: N | P29: NA | Q29: N | R29: NA | S29: The aim is to have the different aspects of the sampling scheme properly documented and accessible through a public website. We aim to document designs and processes for data validation in 2017-2018. In 2018-2019, when more guidance are available from expert groups, we aim to document estimation methods and other aspects of data processing. | T29: No changes made compared to WP. The current sampling schemes has been documented and potential weaknesses in data managment and documentation has been identified. Workshops for sampling design and estimates has been held during 2017. This work continues in 2018.
A30: SWE | B30: SWE | C30: 2017 | D30: Baltic Sea | E30: ICES | F30: river sampling, salmon smolt counts | G30: designated rivers | H30: Y | I30: local server | J30: NA | K30: Y | L30: NA | M30: No | N30: No | O30: N | P30: NA | Q30: N | R30: NA | S30: The aim is to have the different aspects of the sampling scheme properly documented and accessible through a public website. We aim to document designs and processes for data validation in 2017-2018. In 2018-2019, when more guidance are available from expert groups, we aim to document estimation methods and other aspects of data processing. | T30: No changes made compared to WP. The current sampling schemes has been documented and potential weaknesses in data managment and documentation has been identified. Workshops for sampling design and estimates has been held during 2017. This work continues in 2018.
A31: SWE | B31: SWE | C31: 2017 | D31: Freshwater | E31: ICES | F31: Logbooks & journals | G31: Commercial eel fishers | H31: Y | I31: Local server | J31: Census | K31: Y | L31: see comments | M31: Swedish Agency for Marine and Water Management | N31: RDB-FishFrame | O31: Y | P31: NA | Q31: N | R31: NA | S31: This is part of the Swedish official catch statistics and is collected and documented accordingly | T31: No changes made compared to WP.
A32: SWE | B32: SWE | C32: 2017 | D32: Freshwater | E32: ICES | F32: yellow eel recruitment | G32: electofishing & traps | H32: Y | I32: http://www.slu.se/elfiskeregistret | J32: NA | K32: Y | L32: \\storage-ob.slu.se\common$\Berit\Elfiskeregistret_arbetsgång_uttagslogg | M32: Swedish Electrofishing RegiSter (SERS) | N32: None | O32: N | P32: NA | Q32: N | R32: NA | S32: A national database held by SLU | T32: No changes made compared to WP.
A33: SWE | B33: SWE | C33: 2017 | D33: Freshwater | E33: ICES | F33: Mark-recapure | G33: silver eel escapement | H33: N | I33: NA | J33: NA | K33: N | L33: NA | M33: Sötebasen (starting in 2017) | N33: No | O33: N | P33: NA | Q33: N | R33: NA | S33: A new database (Sötebasen) is under construction. The aim is to have the different aspects of the sampling scheme properly documented and accessible through a public website. We aim to document designs and processes for data validation in 2017-2018. In 2018-2019, when more guidance are available from expert groups, we aim to document estimation methods and other aspects of data processing. | T33: No changes made compared to WP.
A34: SWE | B34: SWE | C34: 2017 | D34: baltic/freshwater | E34: ICES | F34: recruitment and production survey | G34: designated rivers | H34: N | I34: No | J34: N | K34: N | L34: NA | M34: No | N34: No | O34: N | P34: NA | Q34: N | R34: NA | S34: Not yet implemented, starts in 2017 with a preliminary study | T34: No changes made compared to WP.
A35: SWE | B35: SWE | C35: 2017 | D35: Freshwater | E35: ICES | F35: Monitoring of introduced populations | G35: Fyke netting & traps | H35: Y | I35: NA | J35: NA | K35: Y | L35: No | M35: Sötebasen (starting in 2017) | N35: NA | O35: N | P35: NA | Q35: N | R35: NA | S35: A new database (Sötebasen) is under construction. The aim is to have the different aspects of the sampling scheme properly documented and accessible through a public website. We aim to document designs and processes for data validation in 2017-2018. In 2018-2019, when more guidance are available from expert groups, we aim to document estimation methods and other aspects of data processing. | T35: No changes made compared to WP.
A36: SWE | B36: SWE | C36: 2018 | D36: Freshwater & marine | E36: ICES | F36: data collection of stocked amounts and sites | G36: data collection of stocked amounts and sites | H36: Y | I36: NA | J36: NA | K36: Y | L36: NA | M36: Sötebasen (starting in 2017) | N36: NA | O36: N | P36: NA | Q36: N | R36: NA | S36: A new database (Sötebasen) is under construction. The aim is to have the different aspects of the sampling scheme properly documented and accessible through a public website. We aim to document designs and processes for data validation in 2017-2018. In 2018-2019, when more guidance are available from expert groups, we aim to document estimation methods and other aspects of data processing. | T36: No changes made compared to WP. The current sampling schemes has been documented and potential weaknesses in data managment has been identified. Workshops for sampling design and estimates has been held during 2017. This work continues in 2018.
A37: SWE | B37: SWE | C37: 2017 | D37: Baltic Sea | E37: ICES | F37: sampling on shore | G37: Commercial trawlers targeting herring in the Bothnian Sea | H37: Y | I37: Some documentation in former NPs and on internal server | J37: Y | K37: Y | L37: National quality checks in Fiskdata2; https://fd2.slu.se/Documents- User manual and System documentation #1 | M37: FiskData2 | N37: RDB-FishFrame, InterCatch | O37: N | P37: NA | Q37: N | R37: NA | S37: The aim is to have the different aspects of the sampling scheme properly documented and accessible through a public website. We will during 2017-2018 work to document designs and processes to validate detailed data. During 2018-2019, when more guidance are available from expert groups, will we work to document estimation methods and other aspects of data processing. | T37: No changes made compared to WP.
A38: SWE | B38: SWE | C38: 2017 | D38: Baltic Sea | E38: ICES | F38: sampling on shore | G38: Licensed fishermen targeting herring by gill nets in the Gulf of Bothnia | H38: Y | I38: Some documentation in former NPs and on internal server | J38: Y | K38: Y | L38: National quality checks in Fiskdata2; https://fd2.slu.se/Documents- User manual and System documentation #1 | M38: FiskData2 | N38: RDB-FishFrame, InterCatch | O38: N | P38: NA | Q38: N | R38: NA | S38: The aim is to have the different aspects of the sampling scheme properly documented and accessible through a public website. We will during 2017-2018 work to document designs and processes to validate detailed data. During 2018-2019, when more guidance are available from expert groups, will we work to document estimation methods and other aspects of data processing. | T38: No changes made compared to WP. Note: The link to Fiskdata2 can only be opened by authotized login.
A39: SWE | B39: SWE | C39: 2017 | D39: Baltic Sea | E39: ICES | F39: sampling on shore | G39: Commercial vessels with permit to conduct vendace pair-trawling | H39: Y | I39: See Comments | J39: N1 | K39: Y | L39: See Comments | M39: KUL | N39: See Comments | O39: N | P39: NA | Q39: N | R39: NA | S39: Documentation on sampling design, sampling implementation and data capture is stored on a locked internal share-point. This documentation will be improved, at the same time as documentation on data processing will be produced. Latest 2019, everything will be made available on an open web page. Data storage: Upload to RDB-FishFrame is underway. 1Sampling implementation/Non-responses-refusals: None has turned up so far and therefore a routine for this has not yet been established (the sampling is performed by a sub-contractor). For future work, a routine will be developed. | T39: No changes made compared to WP.
